Workbook

Sheet Instruções
A1: http://authenticator.sapphirebusinesstech.com:8080/access/v1/validate
A2: 123456789 | D2: Any use for this file other than sample using and technical analysis without authorization is stricly prohibited and protected by copyright
A3: contact@sapphirebusinesstech.com | D3: Qualquer uso desse arquivo sem autorização outro que uso de exemplo e análise técnica é extritamente proibida e protegida por direitos autorais.
D4: Cualquier uso de este archivo sin autorización que no sea para fines de ejemplo o análisis técnico está estrictamente prohibido y está protegido por derechos de autor.
A5: 200
A7: =IF(A12="",0,TODAY()-A12) -> 0
C10: INSTRUÇÕES
C15: 1. OBJETIVO DA PLANILHA
C16: Sistema completo de apoio à decisão comercial para formação de preços de venda de produtos e serviços.
C17: Reúne mais de 15 métodos de precificação, simulação de cenários, comparação entre metodologias e análise de lucratividade, margem, ROI e ponto de equilíbrio.
C18: Aplicável a comércio, indústria, serviços, alimentação, e-commerce, delivery, artesanato, infoprodutos, assinaturas e projetos.
C19: 100% compatível com Excel 2019 — sem VBA, sem macros e sem funções de matriz dinâmica.
C21: 2. ORDEM CORRETA DE UTILIZAÇÃO
C22: Passo 1 — Cadastro Geral: registre todos os produtos e serviços que serão precificados.
C23: Passo 2 — Custos Fixos: lance aluguel, energia, salários administrativos e demais custos que não variam com as vendas. Marque quais são rateáveis.
C24: Passo 3 — Custos Variáveis: lance embalagens, matéria-prima e demais custos que variam por unidade vendida.
C25: Passo 4 — Tributos: revise as alíquotas de cada regime tributário. A coluna Carga Total é calculada automaticamente.
C26: Passo 5 — Despesas Comerciais: informe comissões, taxas de cartão, marketplace, frete, marketing e embalagem.
C27: Passo 6 — Produtos, Serviços, Funcionários e Máquinas: complete os cadastros específicos. O custo unitário, o valor-hora e o custo-hora são calculados automaticamente.
C28: Passo 7 — Cálculos: defina os PARÂMETROS GLOBAIS (regime ativo, volume mensal, markup padrão, margem desejada). Esta é a única área da aba que deve ser editada.
C29: Passo 8 — Abas de Precificação: escolha o método adequado ao seu negócio e ajuste apenas as células azuis.
C30: Passo 9 — Simulador de Cenários: monte os cenários Otimista, Pessimista e Personalizado.
C31: Passo 10 — Comparativo entre Métodos: veja o preço que cada metodologia sugere para o mesmo produto.
C32: Passo 11 — Calculadoras: valide o ponto de equilíbrio, a margem de contribuição, a lucratividade e o ROI.
C33: Passo 12 — Dashboard e Relatórios: acompanhe os indicadores e imprima os relatórios gerenciais.
C35: 3. COMO CADASTRAR INFORMAÇÕES
C36: Todas as tabelas começam na célula C7 e são Tabelas do Excel (Ctrl+T) — ao digitar na primeira linha vazia abaixo da tabela, ela se expande automaticamente e as fórmulas se replicam.
C37: Campos com lista suspensa (Tipo, Categoria, Fornecedor, Unidade, Situação, Regime, Rateável) só aceitam valores da lista, evitando erros de digitação.
C38: As listas suspensas são alimentadas pela aba Cálculos, a partir da linha 87. Para incluir uma nova categoria ou fornecedor, adicione o item nessa área.
C39: Nunca apague linhas de cabeçalho nem insira colunas no meio das tabelas — isso quebra as referências das fórmulas.
C41: 4. COMO CRIAR CENÁRIOS
C42: Acesse a aba Simulador de Cenários. As colunas Atual, Otimista, Pessimista e Personalizado já estão montadas.
C43: Altere apenas as premissas nas linhas 8 a 13: variação de custo, margem desejada, markup, volume de vendas e carga tributária.
C44: Os resultados (receita, custos, tributos, lucro e margem) são recalculados automaticamente nas linhas 16 a 25.
C45: Use o cenário Personalizado para testar hipóteses específicas sem alterar os demais.
C47: 5. COMO INTERPRETAR CADA INDICADOR
C48: Custo Total | D48: Soma do custo direto do item com o custo fixo rateado. É o piso absoluto do preço.
C49: Markup | D49: Multiplicador aplicado sobre o custo. Markup 2,5x significa preço igual a 2,5 vezes o custo.
C50: Margem Bruta % | D50: Quanto sobra do preço após o custo direto, antes de tributos e despesas comerciais.
C51: Margem Líquida % | D51: Quanto sobra do preço após TODOS os custos, tributos e despesas. É o indicador mais importante.
C52: Margem de Contribuição | D52: Quanto cada venda contribui para pagar os custos fixos. Preço menos todos os custos variáveis.
C53: MC % | D53: Margem de contribuição dividida pelo preço. Acima de 35% é excelente; abaixo de 15% é crítico.
C54: Ponto de Equilíbrio | D54: Quantidade ou faturamento necessário para o lucro ser exatamente zero.
C55: Margem de Segurança | D55: O quanto as vendas podem cair antes de a empresa entrar em prejuízo.
C56: Alavancagem Operacional | D56: Quanto o lucro varia para cada 1% de variação nas vendas. Quanto maior, maior o risco e o potencial.
C57: Ticket Médio | D57: Receita total dividida pela quantidade vendida.
C58: Rentabilidade | D58: Lucro líquido dividido pelo custo investido no item.
C59: ROI | D59: Retorno sobre investimento: ganho líquido dividido pelo valor investido.
C60: Payback | D60: Número de meses necessários para recuperar o investimento.
C61: LTV / CAC | D61: Em assinaturas: quantas vezes o valor do cliente supera o custo de aquisição. Acima de 3x é saudável.
C63: 6. EXPLICAÇÃO DE CADA MÉTODO DE PRECIFICAÇÃO
C64: Markup | D64: Multiplica o custo por um fator fixo. Simples e rápido, ideal para catálogos grandes.
C65: Margem | D65: Define o preço a partir da margem líquida desejada, já descontando tributos e despesas. Mais preciso que o markup.
C66: Lucro Desejado | D66: Define o preço a partir de um valor de lucro em reais que se quer obter por unidade.
C67: Hora Trabalhada | D67: Para profissionais autônomos: consultores, designers, advogados, engenheiros, arquitetos e desenvolvedores.
C68: Homem Hora | D68: Para trabalhos em equipe: multiplica o número de profissionais pelas horas de cada um.
C69: Projeto | D69: Para escopos fechados: soma horas, custos, despesas e uma reserva de contingência.
C70: Prestadores de Serviços | D70: Considera visitas, deslocamento em km, tempo no local e materiais aplicados.
C71: Comércio | D71: Parte do custo de aquisição (compra + frete + IPI) e aplica markup sobre ele.
C72: Indústria | D72: Soma matéria-prima, mão de obra, horas-máquina, energia, depreciação e custos indiretos.
C73: E-commerce | D73: Considera comissão de marketplace, gateway de pagamento, frete, embalagem e publicidade.
C74: Delivery | D74: Considera embalagem, taxa do aplicativo, taxa de entrega cobrada e custo do motoboy.
C75: Alimentação | D75: Baseado em ficha técnica: custo dos ingredientes, rendimento em porções, perdas e CMV alvo.
C76: Artesanato | D76: Valoriza as horas do artesão, além de matéria-prima, energia e desgaste de ferramentas.
C77: Infoprodutos | D77: Rateia o custo de produção pelo volume de vendas e considera afiliados e plataforma.
C78: Assinaturas | D78: Baseado em churn, tempo de vida do cliente, CAC amortizado, suporte e infraestrutura.
C80: 7. DÚVIDAS FREQUENTES
C81: Qual método devo usar? | D81: Comece pelo método do seu segmento (Comércio, Indústria, Serviços etc.). Depois compare com Markup e Margem na aba Comparativo entre Métodos.
C82: Por que meu preço ficou tão alto? | D82: Verifique as despesas comerciais e a carga tributária na aba Cálculos. Somadas, elas frequentemente passam de 35% do preço.
C83: Por que a margem líquida é menor que a margem desejada? | D83: Na precificação por Markup a margem é consequência, não premissa. Use a aba Precificação por Margem para garantir a margem exata.
C84: Alterei um custo e nada mudou. Por quê? | D84: Confirme se o item alterado está referenciado na matriz da aba Cálculos (linhas 25 a 39) e pressione F9 para recalcular.
C85: Como incluir mais produtos? | D85: Digite na primeira linha vazia abaixo da tabela em Produtos. Depois amplie a matriz da aba Cálculos copiando a última linha para baixo.
C86: Posso mudar o regime tributário? | D86: Sim. Na aba Cálculos, célula D9, escolha o regime na lista suspensa. Todos os preços se ajustam automaticamente.
C87: Qual desconto máximo posso dar? | D87: Consulte a aba Descontos, bloco DESCONTO MÁXIMO SEM PREJUÍZO, a partir da linha 26.
C88: Vale a pena parcelar? | D88: Veja na aba Parcelamentos quanto a margem cai em cada número de parcelas.
C90: 8. CONVENÇÕES UTILIZADAS
C91: Texto em AZUL | D91: Célula de entrada — pode e deve ser alterada pelo usuário.
C92: Texto em PRETO | D92: Fórmula ou resultado calculado — não altere.
C93: Fundo AMARELO | D93: Premissa-chave que merece atenção ou revisão periódica.
C94: Fundo AZUL ESCURO | D94: Cabeçalho de tabela ou título de seção.
C95: Valores monetários | D95: Formatados em R$ (Português do Brasil). Valores negativos aparecem entre parênteses e em vermelho.
C96: Valores zerados | D96: Exibidos como "-" para facilitar a leitura.
C97: Percentuais | D97: Formatados com duas casas decimais.
C98: Múltiplos | D98: Formatados com a letra x (exemplo: 2,50x).
C99: Estrutura das tabelas | D99: Todas iniciam em C7. Colunas A e B são reservadas. A linha 4 contém os botões de navegação e a linha 6 é a divisória visual.
C101: 9. BOAS PRÁTICAS
C102: Revise os custos fixos e as despesas comerciais pelo menos uma vez por mês.
C103: Atualize o volume mensal estimado na aba Cálculos sempre que a realidade das vendas mudar — ele afeta o rateio dos custos fixos.
C104: Não aceite margem líquida abaixo de 10% sem uma justificativa estratégica clara.
C105: Antes de conceder desconto, consulte o desconto máximo sem prejuízo na aba Descontos.
C106: Compare periodicamente os regimes tributários na aba Simulação Tributária — a economia potencial pode ser relevante.
C107: Sempre simule o cenário Pessimista antes de assumir compromissos de longo prazo.
C108: Mantenha os cadastros limpos: inative itens descontinuados em vez de apagá-los, preservando o histórico.
C109: Faça uma cópia do arquivo antes de reestruturar tabelas ou incluir grandes volumes de itens.
C111: 10. LIMITAÇÕES
C112: A planilha não utiliza VBA nem macros — portanto os botões de navegação da linha 4 são elementos visuais, sem clique automático. Use as guias na parte inferior do Excel para navegar.
C113: Não há integração automática com sistemas de gestão, notas fiscais ou bancos: os dados são inseridos manualmente.
C114: O cálculo de tributos é simplificado e usa uma carga total por regime. Não substitui a apuração fiscal do seu contador.
C115: O rateio de custos fixos é linear (por unidade ou por hora). Rateios por absorção ou ABC exigem adaptação.
C116: A matriz da aba Cálculos está dimensionada para 15 itens (8 produtos e 7 serviços). Para ampliar, copie a última linha para baixo.
C117: As funções de matriz dinâmica (FILTRAR, ÚNICO, PROCX) não foram utilizadas para preservar a compatibilidade com o Excel 2019.
C118: Os valores presentes na planilha são exemplos didáticos. Substitua-os pelos dados reais do seu negócio antes de tomar decisões.

Sheet Dashboard (hidden)
C2: DASHBOARD
C7: INDICADORES EXECUTIVOS | S7: DADOS DE APOIO DOS GRÁFICOS
C9: Receita Estimada | E9: Lucro Bruto Estimado | G9: Lucro Líquido Estimado | I9: Ticket Médio | S9: Categoria | T9: Receita | V9: Item | W9: Margem Líquida % | Y9: Item | Z9: Lucro Líquido | AB9: Produto | AC9: Custo Total | AD9: Preço de Venda | AF9: Top Produtos | AG9: Lucro Líquido | AI9: Top Serviços | AJ9: Lucro Líquido
C10: =Cálculos!$D$47 -> R$ 429,702 | E10: =Cálculos!$D$49 -> R$ 292,761 | G10: =Cálculos!$D$50 -> R$ 77,452 | I10: =Cálculos!$D$51 -> R$ 346.25 | S10: Vestuário | T10: =SUMIFS(Cálculos!$J$25:$J$39,Cálculos!$E$25:$E$39,$S10) -> R$ 34,877.40 | V10: =Cálculos!C25 -> Camiseta Premium | W10: =Cálculos!P25 -> 10.13% | Y10: =Cálculos!C25 -> Camiseta Premium | Z10: =Cálculos!N25 -> R$ 11.77 | AB10: =Cálculos!C25 -> Camiseta Premium | AC10: =Cálculos!H25 -> R$ 46.48 | AD10: =Cálculos!I25 -> R$ 116.19 | AF10: =Cálculos!C74 -> Mochila Executiva | AG10: =Cálculos!D74 -> R$ 44.84 | AI10: =Cálculos!G74 -> Desenvolvimento de Sistema | AJ10: =Cálculos!H74 -> R$ 16,291.11
S11: Utilidades | T11: =SUMIFS(Cálculos!$J$25:$J$39,Cálculos!$E$25:$E$39,$S11) -> R$ 49,539.70 | V11: =Cálculos!C26 -> Caneca Cerâmica 350ml | W11: =Cálculos!P26 -> 3.46% | Y11: =Cálculos!C26 -> Caneca Cerâmica 350ml | Z11: =Cálculos!N26 -> R$ 2.57 | AB11: =Cálculos!C26 -> Caneca Cerâmica 350ml | AC11: =Cálculos!H26 -> R$ 29.76 | AD11: =Cálculos!I26 -> R$ 74.39 | AF11: =Cálculos!C75 -> Fone Bluetooth TWS | AG11: =Cálculos!D75 -> R$ 37.68 | AI11: =Cálculos!G75 -> Projeto Arquitetônico | AJ11: =Cálculos!H75 -> R$ 8,796.20
S12: Alimentos | T12: =SUMIFS(Cálculos!$J$25:$J$39,Cálculos!$E$25:$E$39,$S12) -> R$ 10,391.40 | V12: =Cálculos!C27 -> Kit Presente Gourmet | W12: =Cálculos!P27 -> 14.04% | Y12: =Cálculos!C27 -> Kit Presente Gourmet | Z12: =Cálculos!N27 -> R$ 24.32 | AB12: =Cálculos!C27 -> Kit Presente Gourmet | AC12: =Cálculos!H27 -> R$ 69.28 | AD12: =Cálculos!I27 -> R$ 173.19 | AF12: =Cálculos!C76 -> Kit Presente Gourmet | AG12: =Cálculos!D76 -> R$ 24.32 | AI12: =Cálculos!G76 -> Criação de Identidade Visual | AJ12: =Cálculos!H76 -> R$ 3,020.36
C13: Custo Médio por Item | E13: Markup Médio Efetivo | G13: Maior Margem | I13: Menor Margem | S13: Acessórios | T13: =SUMIFS(Cálculos!$J$25:$J$39,Cálculos!$E$25:$E$39,$S13) -> R$ 11,989.80 | V13: =Cálculos!C28 -> Mochila Executiva | W13: =Cálculos!P28 -> 16.83% | Y13: =Cálculos!C28 -> Mochila Executiva | Z13: =Cálculos!N28 -> R$ 44.84 | AB13: =Cálculos!C28 -> Mochila Executiva | AC13: =Cálculos!H28 -> R$ 106.58 | AD13: =Cálculos!I28 -> R$ 266.44 | AF13: =Cálculos!C77 -> Garrafa Térmica 1L | AG13: =Cálculos!D77 -> R$ 17.41 | AI13: =Cálculos!G77 -> Treinamento Corporativo | AJ13: =Cálculos!H77 -> R$ 1,408.10
C14: =Cálculos!$D$52 -> R$ 3,950.54 | E14: =Cálculos!$D$54 -> 2.50x | G14: =Cálculos!$D$55 -> 21.99% | I14: =Cálculos!$D$56 -> 3.46% | S14: Eletrônicos | T14: =SUMIFS(Cálculos!$J$25:$J$39,Cálculos!$E$25:$E$39,$S14) -> R$ 30,405.70 | V14: =Cálculos!C29 -> Fone Bluetooth TWS | W14: =Cálculos!P29 -> 16.11% | Y14: =Cálculos!C29 -> Fone Bluetooth TWS | Z14: =Cálculos!N29 -> R$ 37.68 | AB14: =Cálculos!C29 -> Fone Bluetooth TWS | AC14: =Cálculos!H29 -> R$ 93.56 | AD14: =Cálculos!I29 -> R$ 233.89 | AF14: =Cálculos!C78 -> Camiseta Premium | AG14: =Cálculos!D78 -> R$ 11.77 | AI14: =Cálculos!G78 -> Consultoria Empresarial | AJ14: =Cálculos!H78 -> R$ 1,247.71
S15: Papelaria | T15: =SUMIFS(Cálculos!$J$25:$J$39,Cálculos!$E$25:$E$39,$S15) -> R$ 10,597.40 | V15: =Cálculos!C30 -> Garrafa Térmica 1L | W15: =Cálculos!P30 -> 12.28% | Y15: =Cálculos!C30 -> Garrafa Térmica 1L | Z15: =Cálculos!N30 -> R$ 17.41 | AB15: =Cálculos!C30 -> Garrafa Térmica 1L | AC15: =Cálculos!H30 -> R$ 56.73 | AD15: =Cálculos!I30 -> R$ 141.81 | AF15: =Cálculos!C79 -> Agenda Executiva 2026 | AG15: =Cálculos!D79 -> R$ 7.40 | AI15: =Cálculos!G79 -> Assessoria Contábil Mensal | AJ15: =Cálculos!H79 -> R$ 1,054.31
S16: Consultoria | T16: =SUMIFS(Cálculos!$J$25:$J$39,Cálculos!$E$25:$E$39,$S16) -> R$ 34,389.18 | V16: =Cálculos!C31 -> Agenda Executiva 2026 | W16: =Cálculos!P31 -> 7.68% | Y16: =Cálculos!C31 -> Agenda Executiva 2026 | Z16: =Cálculos!N31 -> R$ 7.40 | AB16: =Cálculos!C31 -> Agenda Executiva 2026 | AC16: =Cálculos!H31 -> R$ 38.54 | AD16: =Cálculos!I31 -> R$ 96.34 | AF16: =Cálculos!C80 -> Boné Trucker | AG16: =Cálculos!D80 -> R$ 5.73 | AI16: =Cálculos!G80 -> Manutenção Predial | AJ16: =Cálculos!H80 -> R$ 430.27
C17: Itens Cadastrados | E17: Cenários Simulados | G17: Margem Líquida Média | I17: MC Total | S17: Design | T17: =SUMIFS(Cálculos!$J$25:$J$39,Cálculos!$E$25:$E$39,$S17) -> R$ 27,570.74 | V17: =Cálculos!C32 -> Boné Trucker | W17: =Cálculos!P32 -> 6.45% | Y17: =Cálculos!C32 -> Boné Trucker | Z17: =Cálculos!N32 -> R$ 5.73 | AB17: =Cálculos!C32 -> Boné Trucker | AC17: =Cálculos!H32 -> R$ 35.49 | AD17: =Cálculos!I32 -> R$ 88.72 | AF17: =Cálculos!C81 -> Caneca Cerâmica 350ml | AG17: =Cálculos!D81 -> R$ 2.57
C18: =Cálculos!$D$43 -> 15 | E18: =Cálculos!$D$46 -> 4 | G18: =Cálculos!$D$53 -> 15.97% | I18: =Cálculos!$D$61 -> R$ 112,392 | S18: Manutenção | T18: =SUMIFS(Cálculos!$J$25:$J$39,Cálculos!$E$25:$E$39,$S18) -> R$ 36,316.98 | V18: =Cálculos!C33 -> Consultoria Empresarial | W18: =Cálculos!P33 -> 21.77% | Y18: =Cálculos!C33 -> Consultoria Empresarial | Z18: =Cálculos!N33 -> R$ 1,247.71
S19: Tecnologia | T19: =SUMIFS(Cálculos!$J$25:$J$39,Cálculos!$E$25:$E$39,$S19) -> R$ 74,079.55 | V19: =Cálculos!C34 -> Criação de Identidade Visual | W19: =Cálculos!P34 -> 21.91% | Y19: =Cálculos!C34 -> Criação de Identidade Visual | Z19: =Cálculos!N34 -> R$ 3,020.36
S20: Contabilidade | T20: =SUMIFS(Cálculos!$J$25:$J$39,Cálculos!$E$25:$E$39,$S20) -> R$ 43,675.56 | V20: =Cálculos!C35 -> Manutenção Predial | W20: =Cálculos!P35 -> 21.33% | Y20: =Cálculos!C35 -> Manutenção Predial | Z20: =Cálculos!N35 -> R$ 430.27
C21: Produto Mais Lucrativo | E21: =Cálculos!$D$59 -> Mochila Executiva | G21: Serviço Mais Lucrativo | I21: =Cálculos!$D$60 -> Desenvolvimento de Sistema | S21: Arquitetura | T21: =SUMIFS(Cálculos!$J$25:$J$39,Cálculos!$E$25:$E$39,$S21) -> R$ 40,027.27 | V21: =Cálculos!C36 -> Desenvolvimento de Sistema | W21: =Cálculos!P36 -> 21.99% | Y21: =Cálculos!C36 -> Desenvolvimento de Sistema | Z21: =Cálculos!N36 -> R$ 16,291.11
S22: Treinamento | T22: =SUMIFS(Cálculos!$J$25:$J$39,Cálculos!$E$25:$E$39,$S22) -> R$ 25,840.92 | V22: =Cálculos!C37 -> Assessoria Contábil Mensal | W22: =Cálculos!P37 -> 21.73% | Y22: =Cálculos!C37 -> Assessoria Contábil Mensal | Z22: =Cálculos!N37 -> R$ 1,054.31
C23: Item de Maior Margem | E23: =Cálculos!$D$57 -> Desenvolvimento de Sistema | G23: Item de Menor Margem | I23: =Cálculos!$D$58 -> Caneca Cerâmica 350ml | V23: =Cálculos!C38 -> Projeto Arquitetônico | W23: =Cálculos!P38 -> 21.98% | Y23: =Cálculos!C38 -> Projeto Arquitetônico | Z23: =Cálculos!N38 -> R$ 8,796.20
V24: =Cálculos!C39 -> Treinamento Corporativo | W24: =Cálculos!P39 -> 21.80% | Y24: =Cálculos!C39 -> Treinamento Corporativo | Z24: =Cálculos!N39 -> R$ 1,408.10
C26: FILTROS ANALÍTICOS
C28: Filtrar por Categoria | E28: Vestuário | G28: Itens no filtro: | I28: =COUNTIFS(Cálculos!$E$25:$E$39,$E$28,Cálculos!$D$25:$D$39,$E$29) -> 2
C29: Filtrar por Tipo | E29: Produto | G29: Receita no filtro: | I29: =SUMIFS(Cálculos!$J$25:$J$39,Cálculos!$E$25:$E$39,$E$28,Cálculos!$D$25:$D$39,$E$29) -> R$ 34,877.40
C30: Filtrar por Cenário | E30: Atual | G30: Lucro líquido no filtro: | I30: =SUMIFS(Cálculos!$N$25:$N$39,Cálculos!$E$25:$E$39,$E$28,Cálculos!$D$25:$D$39,$E$29) -> R$ 17.50
C31: Filtrar por Status | E31: Saudável | G31: Margem média no filtro: | I31: =IFERROR(AVERAGEIFS(Cálculos!$P$25:$P$39,Cálculos!$E$25:$E$39,$E$28,Cálculos!$D$25:$D$39,$E$29),0) -> 8.29%
G32: Lucro do cenário selecionado: | I32: =IFERROR(INDEX('Simulador Cenários'!$D$23:$G$23,MATCH($E$30,'Simulador Cenários'!$D$7:$G$7,0)),0) -> R$ 66,223.03
G33: Itens com o status filtrado: | I33: =COUNTIF(Cálculos!$T$25:$T$39,$E$31) -> 14

Sheet Cadastro Geral (hidden)
C2: CADASTRO GERAL
C7: ID | D7: Tipo | E7: Produto | F7: Serviço | G7: Categoria | H7: Subcategoria | I7: Fornecedor | J7: Marca | K7: Unidade | L7: Situação | M7: Observações
C8: G-001 | D8: Produto | E8: Camiseta Premium | G8: Vestuário | H8: Camisetas | I8: Têxtil Sul Ltda | J8: BrandX | K8: UN | L8: Ativo | M8: Best seller
C9: G-002 | D9: Produto | E9: Caneca Cerâmica 350ml | G9: Utilidades | H9: Canecas | I9: Cerâmica Vale | J9: CasaBem | K9: UN | L9: Ativo
C10: G-003 | D10: Produto | E10: Kit Presente Gourmet | G10: Alimentos | H10: Kits | I10: Distrib. Gourmet | J10: GourmetPlus | K10: CX | L10: Ativo | M10: Sazonal
C11: G-004 | D11: Produto | E11: Mochila Executiva | G11: Acessórios | H11: Mochilas | I11: Couro & Cia | J11: BrandX | K11: UN | L11: Ativo
C12: G-005 | D12: Produto | E12: Fone Bluetooth TWS | G12: Eletrônicos | H12: Áudio | I12: ImportTech | J12: SoundGo | K12: UN | L12: Ativo
C13: G-006 | D13: Serviço | F13: Consultoria Empresarial | G13: Consultoria | H13: Gestão | I13: Interno | K13: H | L13: Ativo | M13: Pacote 10h
C14: G-007 | D14: Serviço | F14: Criação de Identidade Visual | G14: Design | H14: Branding | I14: Interno | K14: PROJ | L14: Ativo
C15: G-008 | D15: Serviço | F15: Manutenção Predial | G15: Manutenção | H15: Predial | I15: Interno | K15: VISITA | L15: Ativo
C16: G-009 | D16: Serviço | F16: Desenvolvimento de Sistema | G16: Tecnologia | H16: Software | I16: Interno | K16: PROJ | L16: Ativo
C17: G-010 | D17: Serviço | F17: Assessoria Contábil Mensal | G17: Contabilidade | H17: Fiscal | I17: Interno | K17: MÊS | L17: Ativo | M17: Recorrente

Sheet Custos Fixos (hidden)
C2: CUSTOS FIXOS
C7: ID | D7: Descrição | E7: Categoria | F7: Valor Mensal | G7: Rateável | H7: Centro de Custo
C8: CF-01 | D8: Aluguel | E8: Ocupação | F8: R$ 4,500.00 | G8: Sim | H8: Administrativo
C9: CF-02 | D9: Energia Elétrica (parte fixa) | E9: Utilidades | F9: R$ 850.00 | G9: Sim | H9: Produção
C10: CF-03 | D10: Internet e Telefonia | E10: Utilidades | F10: R$ 320.00 | G10: Sim | H10: Administrativo
C11: CF-04 | D11: Salários Administrativos | E11: Pessoal | F11: R$ 9,800.00 | G11: Sim | H11: Administrativo
C12: CF-05 | D12: Pró-labore | E12: Pessoal | F12: R$ 6,000.00 | G12: Sim | H12: Administrativo
C13: CF-06 | D13: Contabilidade | E13: Serviços | F13: R$ 890.00 | G13: Sim | H13: Administrativo
C14: CF-07 | D14: Software e Sistemas | E14: Tecnologia | F14: R$ 640.00 | G14: Sim | H14: Administrativo
C15: CF-08 | D15: Seguros | E15: Seguros | F15: R$ 280.00 | G15: Sim | H15: Administrativo
C16: CF-09 | D16: Manutenção Predial | E16: Ocupação | F16: R$ 450.00 | G16: Sim | H16: Produção
C17: CF-10 | D17: Marketing Fixo | E17: Comercial | F17: R$ 1,500.00 | G17: Não | H17: Comercial

Sheet Custos Variáveis (hidden)
C2: CUSTOS VARIÁVEIS
C7: ID | D7: Descrição | E7: Categoria | F7: Valor Unitário | G7: Percentual | H7: Incide sobre | I7: Observação
C8: CV-01 | D8: Matéria-prima | E8: Produção | F8: R$ 8.50 | G8: 0 | H8: Unidade | I8: Média por peça
C9: CV-02 | D9: Embalagem | E9: Produção | F9: R$ 1.80 | G9: 0 | H9: Unidade
C10: CV-03 | D10: Energia variável | E10: Produção | F10: R$ 0.95 | G10: 0 | H10: Unidade
C11: CV-04 | D11: Comissão de vendas | E11: Comercial | F11: 0 | G11: 5.00% | H11: Preço de Venda
C12: CV-05 | D12: Taxa de cartão | E12: Financeiro | F12: 0 | G12: 3.49% | H12: Preço de Venda
C13: CV-06 | D13: Frete de entrega | E13: Logística | F13: R$ 12.00 | G13: 0 | H13: Pedido
C14: CV-07 | D14: Taxa marketplace | E14: Comercial | F14: 0 | G14: 16.00% | H14: Preço de Venda
C15: CV-08 | D15: Perdas e quebras | E15: Produção | F15: 0 | G15: 2.00% | H15: Custo

Sheet Tributos (hidden)
C2: TRIBUTOS
C7: Regime | D7: ICMS | E7: IPI | F7: PIS | G7: COFINS | H7: ISS | I7: Simples | J7: IRPJ/CSLL | K7: Outros | L7: Carga Total
C8: Simples Nacional | D8: 0 | E8: 0 | F8: 0 | G8: 0 | H8: 0 | I8: 8.50% | J8: 0 | K8: 0 | L8: =SUM(D8:K8) -> 8.50%
C9: Lucro Presumido | D9: 18.00% | E9: 0 | F9: 0.65% | G9: 3.00% | H9: 0 | I9: 0 | J9: 3.08% | K9: 0 | L9: =SUM(D9:K9) -> 24.73%
C10: Lucro Real | D10: 18.00% | E10: 0 | F10: 1.65% | G10: 7.60% | H10: 0 | I10: 0 | J10: 3.40% | K10: 0 | L10: =SUM(D10:K10) -> 30.65%
C11: Serviços - Simples | D11: 0 | E11: 0 | F11: 0 | G11: 0 | H11: 0 | I11: 6.00% | J11: 0 | K11: 0 | L11: =SUM(D11:K11) -> 6.00%
C12: Serviços - Presumido | D12: 0 | E12: 0 | F12: 0.65% | G12: 3.00% | H12: 5.00% | I12: 0 | J12: 3.08% | K12: 0 | L12: =SUM(D12:K12) -> 11.73%

Sheet Despesas Comerciais (hidden)
C2: DESPESAS COMERCIAIS
C7: ID | D7: Descrição | E7: Tipo | F7: Percentual | G7: Valor Fixo | H7: Incide sobre | I7: Observação
C8: DC-01 | D8: Comissão | E8: Percentual | F8: 5.00% | G8: 0 | H8: Preço de Venda
C9: DC-02 | D9: Marketplace | E9: Percentual | F9: 16.00% | G9: 0 | H9: Preço de Venda | I9: Média marketplaces
C10: DC-03 | D10: Cartão / Gateway | E10: Percentual | F10: 3.49% | G10: 0 | H10: Preço de Venda
C11: DC-04 | D11: Frete | E11: Valor Fixo | F11: 0 | G11: R$ 12.00 | H11: Pedido
C12: DC-05 | D12: Marketing | E12: Percentual | F12: 4.00% | G12: 0 | H12: Preço de Venda
C13: DC-06 | D13: Embalagem | E13: Valor Fixo | F13: 0 | G13: R$ 1.80 | H13: Unidade
C14: DC-07 | D14: Outros | E14: Percentual | F14: 1.00% | G14: 0 | H14: Preço de Venda

Sheet Produtos (hidden)
C2: PRODUTOS
C7: Código | D7: Produto | E7: Categoria | F7: Fornecedor | G7: Custo Compra | H7: IPI | I7: Frete | J7: Seguro | K7: Outras Despesas | L7: Quantidade | M7: Custo Unitário
C8: P-001 | D8: Camiseta Premium | E8: Vestuário | F8: Têxtil Sul Ltda | G8: R$ 22.00 | H8: 0 | I8: R$ 180.00 | J8: R$ 15.00 | K8: R$ 40.00 | L8: 50 | M8: =IFERROR((G8*(1+H8)*L8+I8+J8+K8)/L8,0) -> R$ 26.70
C9: P-002 | D9: Caneca Cerâmica 350ml | E9: Utilidades | F9: Cerâmica Vale | G9: R$ 8.50 | H9: 0 | I9: R$ 120.00 | J9: R$ 8.00 | K9: R$ 20.00 | L9: 100 | M9: R$ 9.98
C10: P-003 | D10: Kit Presente Gourmet | E10: Alimentos | F10: Distrib. Gourmet | G10: R$ 45.00 | H10: 0 | I10: R$ 90.00 | J10: R$ 10.00 | K10: R$ 35.00 | L10: 30 | M10: R$ 49.50
C11: P-004 | D11: Mochila Executiva | E11: Acessórios | F11: Couro & Cia | G11: R$ 78.00 | H11: 0 | I11: R$ 150.00 | J11: R$ 20.00 | K11: R$ 50.00 | L11: 25 | M11: R$ 86.80
C12: P-005 | D12: Fone Bluetooth TWS | E12: Eletrônicos | F12: ImportTech | G12: R$ 62.00 | H12: 6.50% | I12: R$ 220.00 | J12: R$ 30.00 | K12: R$ 60.00 | L12: 40 | M12: R$ 73.78
C13: P-006 | D13: Garrafa Térmica 1L | E13: Utilidades | F13: ImportTech | G13: R$ 34.00 | H13: 0 | I13: R$ 140.00 | J13: R$ 12.00 | K13: R$ 25.00 | L13: 60 | M13: R$ 36.95
C14: P-007 | D14: Agenda Executiva 2026 | E14: Papelaria | F14: Gráfica Central | G14: R$ 17.50 | H14: 0 | I14: R$ 80.00 | J14: R$ 6.00 | K14: R$ 15.00 | L14: 80 | M14: R$ 18.76
C15: P-008 | D15: Boné Trucker | E15: Vestuário | F15: Têxtil Sul Ltda | G15: R$ 14.00 | H15: 0 | I15: R$ 95.00 | J15: R$ 7.00 | K15: R$ 18.00 | L15: 70 | M15: R$ 15.71

Sheet Serviços (hidden)
C2: SERVIÇOS
C7: Código | D7: Serviço | E7: Categoria | F7: Tempo (h) | G7: Valor Hora | H7: Custos Diretos | I7: Custos Indiretos | J7: Despesas | K7: Custo Total
C8: S-001 | D8: Consultoria Empresarial | E8: Consultoria | F8: 10 | G8: R$ 180.00 | H8: R$ 150.00 | I8: R$ 90.00 | J8: R$ 60.00 | K8: =IFERROR(F8*G8+H8+I8+J8,0) -> R$ 2,100.00
C9: S-002 | D9: Criação de Identidade Visual | E9: Design | F9: 35 | G9: R$ 120.00 | H9: R$ 320.00 | I9: R$ 180.00 | J9: R$ 140.00 | K9: R$ 4,840.00
C10: S-003 | D10: Manutenção Predial | E10: Manutenção | F10: 4 | G10: R$ 95.00 | H10: R$ 210.00 | I10: R$ 60.00 | J10: R$ 80.00 | K10: R$ 730.00
C11: S-004 | D11: Desenvolvimento de Sistema | E11: Tecnologia | F11: 160 | G11: R$ 145.00 | H11: R$ 1,800.00 | I11: R$ 900.00 | J11: R$ 650.00 | K11: R$ 26,550.00
C12: S-005 | D12: Assessoria Contábil Mensal | E12: Contabilidade | F12: 12 | G12: R$ 110.00 | H12: R$ 180.00 | I12: R$ 120.00 | J12: R$ 90.00 | K12: R$ 1,710.00
C13: S-006 | D13: Projeto Arquitetônico | E13: Arquitetura | F13: 80 | G13: R$ 160.00 | H13: R$ 900.00 | I13: R$ 450.00 | J13: R$ 320.00 | K13: R$ 14,470.00
C14: S-007 | D14: Treinamento Corporativo | E14: Treinamento | F14: 8 | G14: R$ 220.00 | H14: R$ 400.00 | I14: R$ 120.00 | J14: R$ 150.00 | K14: R$ 2,430.00

Sheet Funcionários (hidden)
C2: FUNCIONÁRIOS
C7: Nome | D7: Cargo | E7: Salário | F7: Encargos (%) | G7: Horas Mensais | H7: Valor Hora
C8: Ana Souza | D8: Consultora Sênior | E8: R$ 7,800.00 | F8: 68.00% | G8: 176 | H8: =IFERROR(E8*(1+F8)/G8,0) -> R$ 74.45
C9: Bruno Lima | D9: Designer Gráfico | E9: R$ 5,200.00 | F9: 68.00% | G9: 176 | H9: R$ 49.64
C10: Carla Mendes | D10: Desenvolvedora | E10: R$ 9,500.00 | F10: 68.00% | G10: 176 | H10: R$ 90.68
C11: Diego Alves | D11: Técnico de Manutenção | E11: R$ 3,400.00 | F11: 72.00% | G11: 176 | H11: R$ 33.23
C12: Elaine Costa | D12: Analista Contábil | E12: R$ 4,600.00 | F12: 68.00% | G12: 176 | H12: R$ 43.91
C13: Fábio Rocha | D13: Arquiteto | E13: R$ 8,200.00 | F13: 68.00% | G13: 176 | H13: R$ 78.27
C14: Gabriela Dias | D14: Auxiliar de Produção | E14: R$ 2,400.00 | F14: 72.00% | G14: 176 | H14: R$ 23.45

Sheet Máquinas (hidden)
C2: MÁQUINAS
C7: Máquina | D7: Valor de Aquisição | E7: Vida Útil (anos) | F7: Depreciação Mensal | G7: Horas Disponíveis/mês | H7: Custo Hora
C8: Impressora DTF | D8: R$ 42,000.00 | E8: 10 | F8: =IFERROR(D8/(E8*12),0) -> R$ 350.00 | G8: 160 | H8: =IFERROR(F8/G8,0) -> R$ 2.19
C9: Prensa Térmica | D9: R$ 8,500.00 | E9: 8 | F9: R$ 88.54 | G9: 160 | H9: R$ 0.55
C10: Torno CNC | D10: R$ 96,000.00 | E10: 12 | F10: R$ 666.67 | G10: 180 | H10: R$ 3.70
C11: Compressor Industrial | D11: R$ 14,500.00 | E11: 10 | F11: R$ 120.83 | G11: 180 | H11: R$ 0.67
C12: Máquina de Corte Laser | D12: R$ 68,000.00 | E12: 10 | F12: R$ 566.67 | G12: 160 | H12: R$ 3.54
C13: Forno Industrial | D13: R$ 23,000.00 | E13: 8 | F13: R$ 239.58 | G13: 200 | H13: R$ 1.20

Sheet Prec Markup (hidden)
C2: PREC MARKUP
C7: Item | D7: Tipo | E7: Custo Total | F7: Markup | G7: Preço de Venda | H7: Lucro Bruto | I7: Margem Bruta % | J7: Tributos | K7: Desp. Comerciais | L7: Lucro Líquido | M7: Margem Líquida %
C8: =Cálculos!C25 -> Camiseta Premium | D8: =Cálculos!D25 -> Produto | E8: =Cálculos!H25 -> R$ 46.48 | F8: =Cálculos!$D$17 -> 2.50x | G8: =ROUND(E8*F8,2) -> R$ 116.19 | H8: =G8-E8 -> R$ 69.72 | I8: =IFERROR(H8/G8,0) -> 60.00% | J8: =G8*Cálculos!$D$10 -> R$ 9.88 | K8: =G8*Cálculos!$D$15+Cálculos!$D$16 -> R$ 48.06 | L8: =G8-E8-J8-K8 -> R$ 11.77 | M8: =IFERROR(L8/G8,0) -> 10.13%
C9: =Cálculos!C26 -> Caneca Cerâmica 350ml | D9: =Cálculos!D26 -> Produto | E9: =Cálculos!H26 -> R$ 29.76 | F9: =Cálculos!$D$17 -> 2.50x | G9: R$ 74.39 | H9: R$ 44.64 | I9: 60.00% | J9: =G9*Cálculos!$D$10 -> R$ 6.32 | K9: =G9*Cálculos!$D$15+Cálculos!$D$16 -> R$ 35.74 | L9: R$ 2.57 | M9: 3.46%
C10: =Cálculos!C27 -> Kit Presente Gourmet | D10: =Cálculos!D27 -> Produto | E10: =Cálculos!H27 -> R$ 69.28 | F10: =Cálculos!$D$17 -> 2.50x | G10: R$ 173.19 | H10: R$ 103.92 | I10: 60.00% | J10: =G10*Cálculos!$D$10 -> R$ 14.72 | K10: =G10*Cálculos!$D$15+Cálculos!$D$16 -> R$ 64.87 | L10: R$ 24.32 | M10: 14.04%
C11: =Cálculos!C28 -> Mochila Executiva | D11: =Cálculos!D28 -> Produto | E11: =Cálculos!H28 -> R$ 106.58 | F11: =Cálculos!$D$17 -> 2.50x | G11: R$ 266.44 | H11: R$ 159.87 | I11: 60.00% | J11: =G11*Cálculos!$D$10 -> R$ 22.65 | K11: =G11*Cálculos!$D$15+Cálculos!$D$16 -> R$ 92.37 | L11: R$ 44.84 | M11: 16.83%
C12: =Cálculos!C29 -> Fone Bluetooth TWS | D12: =Cálculos!D29 -> Produto | E12: =Cálculos!H29 -> R$ 93.56 | F12: =Cálculos!$D$17 -> 2.50x | G12: R$ 233.89 | H12: R$ 140.34 | I12: 60.00% | J12: =G12*Cálculos!$D$10 -> R$ 19.88 | K12: =G12*Cálculos!$D$15+Cálculos!$D$16 -> R$ 82.77 | L12: R$ 37.68 | M12: 16.11%
C13: =Cálculos!C30 -> Garrafa Térmica 1L | D13: =Cálculos!D30 -> Produto | E13: =Cálculos!H30 -> R$ 56.73 | F13: =Cálculos!$D$17 -> 2.50x | G13: R$ 141.81 | H13: R$ 85.09 | I13: 60.00% | J13: =G13*Cálculos!$D$10 -> R$ 12.05 | K13: =G13*Cálculos!$D$15+Cálculos!$D$16 -> R$ 55.62 | L13: R$ 17.41 | M13: 12.28%
C14: =Cálculos!C31 -> Agenda Executiva 2026 | D14: =Cálculos!D31 -> Produto | E14: =Cálculos!H31 -> R$ 38.54 | F14: =Cálculos!$D$17 -> 2.50x | G14: R$ 96.34 | H14: R$ 57.80 | I14: 60.00% | J14: =G14*Cálculos!$D$10 -> R$ 8.19 | K14: =G14*Cálculos!$D$15+Cálculos!$D$16 -> R$ 42.21 | L14: R$ 7.40 | M14: 7.68%
C15: =Cálculos!C32 -> Boné Trucker | D15: =Cálculos!D32 -> Produto | E15: =Cálculos!H32 -> R$ 35.49 | F15: =Cálculos!$D$17 -> 2.50x | G15: R$ 88.72 | H15: R$ 53.23 | I15: 60.00% | J15: =G15*Cálculos!$D$10 -> R$ 7.54 | K15: =G15*Cálculos!$D$15+Cálculos!$D$16 -> R$ 39.96 | L15: R$ 5.73 | M15: 6.45%
C16: =Cálculos!C33 -> Consultoria Empresarial | D16: =Cálculos!D33 -> Serviço | E16: =Cálculos!H33 -> R$ 2,292.61 | F16: =Cálculos!$D$17 -> 2.50x | G16: R$ 5,731.53 | H16: R$ 3,438.92 | I16: 60.00% | J16: =G16*Cálculos!$D$10 -> R$ 487.18 | K16: =G16*Cálculos!$D$15+Cálculos!$D$16 -> R$ 1,704.03 | L16: R$ 1,247.71 | M16: 21.77%
C17: =Cálculos!C34 -> Criação de Identidade Visual | D17: =Cálculos!D34 -> Serviço | E17: =Cálculos!H34 -> R$ 5,514.15 | F17: =Cálculos!$D$17 -> 2.50x | G17: R$ 13,785.37 | H17: R$ 8,271.22 | I17: 60.00% | J17: =G17*Cálculos!$D$10 -> R$ 1,171.76 | K17: =G17*Cálculos!$D$15+Cálculos!$D$16 -> R$ 4,079.11 | L17: R$ 3,020.36 | M17: 21.91%
C18: =Cálculos!C35 -> Manutenção Predial | D18: =Cálculos!D35 -> Serviço | E18: =Cálculos!H35 -> R$ 807.05 | F18: =Cálculos!$D$17 -> 2.50x | G18: R$ 2,017.61 | H18: R$ 1,210.56 | I18: 60.00% | J18: =G18*Cálculos!$D$10 -> R$ 171.50 | K18: =G18*Cálculos!$D$15+Cálculos!$D$16 -> R$ 608.79 | L18: R$ 430.27 | M18: 21.33%
C19: =Cálculos!C36 -> Desenvolvimento de Sistema | D19: =Cálculos!D36 -> Serviço | E19: =Cálculos!H36 -> R$ 29,631.82 | F19: =Cálculos!$D$17 -> 2.50x | G19: R$ 74,079.55 | H19: R$ 44,447.73 | I19: 60.00% | J19: =G19*Cálculos!$D$10 -> R$ 6,296.76 | K19: =G19*Cálculos!$D$15+Cálculos!$D$16 -> R$ 21,859.86 | L19: R$ 16,291.11 | M19: 21.99%
C20: =Cálculos!C37 -> Assessoria Contábil Mensal | D20: =Cálculos!D37 -> Serviço | E20: =Cálculos!H37 -> R$ 1,941.14 | F20: =Cálculos!$D$17 -> 2.50x | G20: R$ 4,852.84 | H20: R$ 2,911.70 | I20: 60.00% | J20: =G20*Cálculos!$D$10 -> R$ 412.49 | K20: =G20*Cálculos!$D$15+Cálculos!$D$16 -> R$ 1,444.90 | L20: R$ 1,054.31 | M20: 21.73%
C21: =Cálculos!C38 -> Projeto Arquitetônico | D21: =Cálculos!D38 -> Serviço | E21: =Cálculos!H38 -> R$ 16,010.91 | F21: =Cálculos!$D$17 -> 2.50x | G21: R$ 40,027.27 | H21: R$ 24,016.36 | I21: 60.00% | J21: =G21*Cálculos!$D$10 -> R$ 3,402.32 | K21: =G21*Cálculos!$D$15+Cálculos!$D$16 -> R$ 11,817.84 | L21: R$ 8,796.20 | M21: 21.98%
C22: =Cálculos!C39 -> Treinamento Corporativo | D22: =Cálculos!D39 -> Serviço | E22: =Cálculos!H39 -> R$ 2,584.09 | F22: =Cálculos!$D$17 -> 2.50x | G22: R$ 6,460.23 | H22: R$ 3,876.14 | I22: 60.00% | J22: =G22*Cálculos!$D$10 -> R$ 549.12 | K22: =G22*Cálculos!$D$15+Cálculos!$D$16 -> R$ 1,918.92 | L22: R$ 1,408.10 | M22: 21.80%

Sheet Prec Margem (hidden)
C2: PREC MARGEM
C7: Item | D7: Tipo | E7: Custo Total | F7: Margem Desejada % | G7: Preço de Venda | H7: Lucro Bruto | I7: Tributos | J7: Desp. Comerciais | K7: Lucro Líquido | L7: Margem Líquida Real % | M7: Markup Implícito
C8: =Cálculos!C25 -> Camiseta Premium | D8: =Cálculos!D25 -> Produto | E8: =Cálculos!H25 -> R$ 46.48 | F8: =Cálculos!$D$18 -> 25.00% | G8: =IFERROR(ROUND((E8+Cálculos!$D$16)/(1-F8-Cálculos!$D$10-Cálculos!$D$15),2),0) -> R$ 162.86 | H8: =G8-E8 -> R$ 116.39 | I8: =G8*Cálculos!$D$10 -> R$ 13.84 | J8: =G8*Cálculos!$D$15+Cálculos!$D$16 -> R$ 61.83 | K8: =G8-E8-I8-J8 -> R$ 40.71 | L8: =IFERROR(K8/G8,0) -> 25.00% | M8: =IFERROR(G8/E8,0) -> 3.50x
C9: =Cálculos!C26 -> Caneca Cerâmica 350ml | D9: =Cálculos!D26 -> Produto | E9: =Cálculos!H26 -> R$ 29.76 | F9: =Cálculos!$D$18 -> 25.00% | G9: =IFERROR(ROUND((E9+Cálculos!$D$16)/(1-F9-Cálculos!$D$10-Cálculos!$D$15),2),0) -> R$ 117.68 | H9: R$ 87.93 | I9: =G9*Cálculos!$D$10 -> R$ 10.00 | J9: =G9*Cálculos!$D$15+Cálculos!$D$16 -> R$ 48.50 | K9: R$ 29.42 | L9: 25.00% | M9: 3.95x
C10: =Cálculos!C27 -> Kit Presente Gourmet | D10: =Cálculos!D27 -> Produto | E10: =Cálculos!H27 -> R$ 69.28 | F10: =Cálculos!$D$18 -> 25.00% | G10: =IFERROR(ROUND((E10+Cálculos!$D$16)/(1-F10-Cálculos!$D$10-Cálculos!$D$15),2),0) -> R$ 224.47 | H10: R$ 155.20 | I10: =G10*Cálculos!$D$10 -> R$ 19.08 | J10: =G10*Cálculos!$D$15+Cálculos!$D$16 -> R$ 80.00 | K10: R$ 56.12 | L10: 25.00% | M10: 3.24x
C11: =Cálculos!C28 -> Mochila Executiva | D11: =Cálculos!D28 -> Produto | E11: =Cálculos!H28 -> R$ 106.58 | F11: =Cálculos!$D$18 -> 25.00% | G11: =IFERROR(ROUND((E11+Cálculos!$D$16)/(1-F11-Cálculos!$D$10-Cálculos!$D$15),2),0) -> R$ 325.25 | H11: R$ 218.68 | I11: =G11*Cálculos!$D$10 -> R$ 27.65 | J11: =G11*Cálculos!$D$15+Cálculos!$D$16 -> R$ 109.72 | K11: R$ 81.31 | L11: 25.00% | M11: 3.05x
C12: =Cálculos!C29 -> Fone Bluetooth TWS | D12: =Cálculos!D29 -> Produto | E12: =Cálculos!H29 -> R$ 93.56 | F12: =Cálculos!$D$18 -> 25.00% | G12: =IFERROR(ROUND((E12+Cálculos!$D$16)/(1-F12-Cálculos!$D$10-Cálculos!$D$15),2),0) -> R$ 290.07 | H12: R$ 196.52 | I12: =G12*Cálculos!$D$10 -> R$ 24.66 | J12: =G12*Cálculos!$D$15+Cálculos!$D$16 -> R$ 99.34 | K12: R$ 72.52 | L12: 25.00% | M12: 3.10x
C13: =Cálculos!C30 -> Garrafa Térmica 1L | D13: =Cálculos!D30 -> Produto | E13: =Cálculos!H30 -> R$ 56.73 | F13: =Cálculos!$D$18 -> 25.00% | G13: =IFERROR(ROUND((E13+Cálculos!$D$16)/(1-F13-Cálculos!$D$10-Cálculos!$D$15),2),0) -> R$ 190.56 | H13: R$ 133.84 | I13: =G13*Cálculos!$D$10 -> R$ 16.20 | J13: =G13*Cálculos!$D$15+Cálculos!$D$16 -> R$ 70.00 | K13: R$ 47.64 | L13: 25.00% | M13: 3.36x
C14: =Cálculos!C31 -> Agenda Executiva 2026 | D14: =Cálculos!D31 -> Produto | E14: =Cálculos!H31 -> R$ 38.54 | F14: =Cálculos!$D$18 -> 25.00% | G14: =IFERROR(ROUND((E14+Cálculos!$D$16)/(1-F14-Cálculos!$D$10-Cálculos!$D$15),2),0) -> R$ 141.41 | H14: R$ 102.87 | I14: =G14*Cálculos!$D$10 -> R$ 12.02 | J14: =G14*Cálculos!$D$15+Cálculos!$D$16 -> R$ 55.50 | K14: R$ 35.35 | L14: 25.00% | M14: 3.67x
C15: =Cálculos!C32 -> Boné Trucker | D15: =Cálculos!D32 -> Produto | E15: =Cálculos!H32 -> R$ 35.49 | F15: =Cálculos!$D$18 -> 25.00% | G15: =IFERROR(ROUND((E15+Cálculos!$D$16)/(1-F15-Cálculos!$D$10-Cálculos!$D$15),2),0) -> R$ 133.18 | H15: R$ 97.69 | I15: =G15*Cálculos!$D$10 -> R$ 11.32 | J15: =G15*Cálculos!$D$15+Cálculos!$D$16 -> R$ 53.07 | K15: R$ 33.30 | L15: 25.00% | M15: 3.75x
C16: =Cálculos!C33 -> Consultoria Empresarial | D16: =Cálculos!D33 -> Serviço | E16: =Cálculos!H33 -> R$ 2,292.61 | F16: =Cálculos!$D$18 -> 25.00% | G16: =IFERROR(ROUND((E16+Cálculos!$D$16)/(1-F16-Cálculos!$D$10-Cálculos!$D$15),2),0) -> R$ 6,231.87 | H16: R$ 3,939.26 | I16: =G16*Cálculos!$D$10 -> R$ 529.71 | J16: =G16*Cálculos!$D$15+Cálculos!$D$16 -> R$ 1,851.58 | K16: R$ 1,557.97 | L16: 25.00% | M16: 2.72x
C17: =Cálculos!C34 -> Criação de Identidade Visual | D17: =Cálculos!D34 -> Serviço | E17: =Cálculos!H34 -> R$ 5,514.15 | F17: =Cálculos!$D$18 -> 25.00% | G17: =IFERROR(ROUND((E17+Cálculos!$D$16)/(1-F17-Cálculos!$D$10-Cálculos!$D$15),2),0) -> R$ 14,936.36 | H17: R$ 9,422.21 | I17: =G17*Cálculos!$D$10 -> R$ 1,269.59 | J17: =G17*Cálculos!$D$15+Cálculos!$D$16 -> R$ 4,418.53 | K17: R$ 3,734.09 | L17: 25.00% | M17: 2.71x
C18: =Cálculos!C35 -> Manutenção Predial | D18: =Cálculos!D35 -> Serviço | E18: =Cálculos!H35 -> R$ 807.05 | F18: =Cálculos!$D$18 -> 25.00% | G18: =IFERROR(ROUND((E18+Cálculos!$D$16)/(1-F18-Cálculos!$D$10-Cálculos!$D$15),2),0) -> R$ 2,217.90 | H18: R$ 1,410.85 | I18: =G18*Cálculos!$D$10 -> R$ 188.52 | J18: =G18*Cálculos!$D$15+Cálculos!$D$16 -> R$ 667.86 | K18: R$ 554.47 | L18: 25.00% | M18: 2.75x
C19: =Cálculos!C36 -> Desenvolvimento de Sistema | D19: =Cálculos!D36 -> Serviço | E19: =Cálculos!H36 -> R$ 29,631.82 | F19: =Cálculos!$D$18 -> 25.00% | G19: =IFERROR(ROUND((E19+Cálculos!$D$16)/(1-F19-Cálculos!$D$10-Cálculos!$D$15),2),0) -> R$ 80,101.64 | H19: R$ 50,469.82 | I19: =G19*Cálculos!$D$10 -> R$ 6,808.64 | J19: =G19*Cálculos!$D$15+Cálculos!$D$16 -> R$ 23,635.77 | K19: R$ 20,025.41 | L19: 25.00% | M19: 2.70x
C20: =Cálculos!C37 -> Assessoria Contábil Mensal | D20: =Cálculos!D37 -> Serviço | E20: =Cálculos!H37 -> R$ 1,941.14 | F20: =Cálculos!$D$18 -> 25.00% | G20: =IFERROR(ROUND((E20+Cálculos!$D$16)/(1-F20-Cálculos!$D$10-Cálculos!$D$15),2),0) -> R$ 5,282.18 | H20: R$ 3,341.04 | I20: =G20*Cálculos!$D$10 -> R$ 448.99 | J20: =G20*Cálculos!$D$15+Cálculos!$D$16 -> R$ 1,571.51 | K20: R$ 1,320.54 | L20: 25.00% | M20: 2.72x
C21: =Cálculos!C38 -> Projeto Arquitetônico | D21: =Cálculos!D38 -> Serviço | E21: =Cálculos!H38 -> R$ 16,010.91 | F21: =Cálculos!$D$18 -> 25.00% | G21: =IFERROR(ROUND((E21+Cálculos!$D$16)/(1-F21-Cálculos!$D$10-Cálculos!$D$15),2),0) -> R$ 43,298.32 | H21: R$ 27,287.41 | I21: =G21*Cálculos!$D$10 -> R$ 3,680.36 | J21: =G21*Cálculos!$D$15+Cálculos!$D$16 -> R$ 12,782.47 | K21: R$ 10,824.58 | L21: 25.00% | M21: 2.70x
C22: =Cálculos!C39 -> Treinamento Corporativo | D22: =Cálculos!D39 -> Serviço | E22: =Cálculos!H39 -> R$ 2,584.09 | F22: =Cálculos!$D$18 -> 25.00% | G22: =IFERROR(ROUND((E22+Cálculos!$D$16)/(1-F22-Cálculos!$D$10-Cálculos!$D$15),2),0) -> R$ 7,019.43 | H22: R$ 4,435.34 | I22: =G22*Cálculos!$D$10 -> R$ 596.65 | J22: =G22*Cálculos!$D$15+Cálculos!$D$16 -> R$ 2,083.83 | K22: R$ 1,754.86 | L22: 25.00% | M22: 2.72x

Sheet Prec Lucro Desejado (hidden)
C2: PREC LUCRO DESEJADO
C7: Item | D7: Tipo | E7: Custo Total | F7: Lucro Desejado R$ | G7: Preço de Venda | H7: Tributos | I7: Desp. Comerciais | J7: Lucro Líquido Real | K7: Margem Líquida % | L7: Markup Implícito
C8: =Cálculos!C25 -> Camiseta Premium | D8: =Cálculos!D25 -> Produto | E8: =Cálculos!H25 -> R$ 46.48 | F8: =ROUND(E8*Cálculos!$D$18,2) -> R$ 11.62 | G8: =IFERROR(ROUND((E8+F8+Cálculos!$D$16)/(1-Cálculos!$D$10-Cálculos!$D$15),2),0) -> R$ 115.94 | H8: =G8*Cálculos!$D$10 -> R$ 9.85 | I8: =G8*Cálculos!$D$15+Cálculos!$D$16 -> R$ 47.99 | J8: =G8-E8-H8-I8 -> R$ 11.62 | K8: =IFERROR(J8/G8,0) -> 10.02% | L8: =IFERROR(G8/E8,0) -> 2.49x
C9: =Cálculos!C26 -> Caneca Cerâmica 350ml | D9: =Cálculos!D26 -> Produto | E9: =Cálculos!H26 -> R$ 29.76 | F9: =ROUND(E9*Cálculos!$D$18,2) -> R$ 7.44 | G9: =IFERROR(ROUND((E9+F9+Cálculos!$D$16)/(1-Cálculos!$D$10-Cálculos!$D$15),2),0) -> R$ 82.24 | H9: =G9*Cálculos!$D$10 -> R$ 6.99 | I9: =G9*Cálculos!$D$15+Cálculos!$D$16 -> R$ 38.05 | J9: R$ 7.44 | K9: 9.05% | L9: 2.76x
C10: =Cálculos!C27 -> Kit Presente Gourmet | D10: =Cálculos!D27 -> Produto | E10: =Cálculos!H27 -> R$ 69.28 | F10: =ROUND(E10*Cálculos!$D$18,2) -> R$ 17.32 | G10: =IFERROR(ROUND((E10+F10+Cálculos!$D$16)/(1-Cálculos!$D$10-Cálculos!$D$15),2),0) -> R$ 161.90 | H10: =G10*Cálculos!$D$10 -> R$ 13.76 | I10: =G10*Cálculos!$D$15+Cálculos!$D$16 -> R$ 61.54 | J10: R$ 17.32 | K10: 10.70% | L10: 2.34x
C11: =Cálculos!C28 -> Mochila Executiva | D11: =Cálculos!D28 -> Produto | E11: =Cálculos!H28 -> R$ 106.58 | F11: =ROUND(E11*Cálculos!$D$18,2) -> R$ 26.64 | G11: =IFERROR(ROUND((E11+F11+Cálculos!$D$16)/(1-Cálculos!$D$10-Cálculos!$D$15),2),0) -> R$ 237.08 | H11: =G11*Cálculos!$D$10 -> R$ 20.15 | I11: =G11*Cálculos!$D$15+Cálculos!$D$16 -> R$ 83.71 | J11: R$ 26.64 | K11: 11.24% | L11: 2.22x
C12: =Cálculos!C29 -> Fone Bluetooth TWS | D12: =Cálculos!D29 -> Produto | E12: =Cálculos!H29 -> R$ 93.56 | F12: =ROUND(E12*Cálculos!$D$18,2) -> R$ 23.39 | G12: =IFERROR(ROUND((E12+F12+Cálculos!$D$16)/(1-Cálculos!$D$10-Cálculos!$D$15),2),0) -> R$ 210.85 | H12: =G12*Cálculos!$D$10 -> R$ 17.92 | I12: =G12*Cálculos!$D$15+Cálculos!$D$16 -> R$ 75.98 | J12: R$ 23.39 | K12: 11.09% | L12: 2.25x
C13: =Cálculos!C30 -> Garrafa Térmica 1L | D13: =Cálculos!D30 -> Produto | E13: =Cálculos!H30 -> R$ 56.73 | F13: =ROUND(E13*Cálculos!$D$18,2) -> R$ 14.18 | G13: =IFERROR(ROUND((E13+F13+Cálculos!$D$16)/(1-Cálculos!$D$10-Cálculos!$D$15),2),0) -> R$ 136.60 | H13: =G13*Cálculos!$D$10 -> R$ 11.61 | I13: =G13*Cálculos!$D$15+Cálculos!$D$16 -> R$ 54.08 | J13: R$ 14.18 | K13: 10.38% | L13: 2.41x
C14: =Cálculos!C31 -> Agenda Executiva 2026 | D14: =Cálculos!D31 -> Produto | E14: =Cálculos!H31 -> R$ 38.54 | F14: =ROUND(E14*Cálculos!$D$18,2) -> R$ 9.63 | G14: =IFERROR(ROUND((E14+F14+Cálculos!$D$16)/(1-Cálculos!$D$10-Cálculos!$D$15),2),0) -> R$ 99.93 | H14: =G14*Cálculos!$D$10 -> R$ 8.49 | I14: =G14*Cálculos!$D$15+Cálculos!$D$16 -> R$ 43.27 | J14: R$ 9.63 | K14: 9.64% | L14: 2.59x
C15: =Cálculos!C32 -> Boné Trucker | D15: =Cálculos!D32 -> Produto | E15: =Cálculos!H32 -> R$ 35.49 | F15: =ROUND(E15*Cálculos!$D$18,2) -> R$ 8.87 | G15: =IFERROR(ROUND((E15+F15+Cálculos!$D$16)/(1-Cálculos!$D$10-Cálculos!$D$15),2),0) -> R$ 93.79 | H15: =G15*Cálculos!$D$10 -> R$ 7.97 | I15: =G15*Cálculos!$D$15+Cálculos!$D$16 -> R$ 41.46 | J15: R$ 8.87 | K15: 9.46% | L15: 2.64x
C16: =Cálculos!C33 -> Consultoria Empresarial | D16: =Cálculos!D33 -> Serviço | E16: =Cálculos!H33 -> R$ 2,292.61 | F16: =ROUND(E16*Cálculos!$D$18,2) -> R$ 573.15 | G16: =IFERROR(ROUND((E16+F16+Cálculos!$D$16)/(1-Cálculos!$D$10-Cálculos!$D$15),2),0) -> R$ 4,643.71 | H16: =G16*Cálculos!$D$10 -> R$ 394.72 | I16: =G16*Cálculos!$D$15+Cálculos!$D$16 -> R$ 1,383.23 | J16: R$ 573.15 | K16: 12.34% | L16: 2.03x
C17: =Cálculos!C34 -> Criação de Identidade Visual | D17: =Cálculos!D34 -> Serviço | E17: =Cálculos!H34 -> R$ 5,514.15 | F17: =ROUND(E17*Cálculos!$D$18,2) -> R$ 1,378.54 | G17: =IFERROR(ROUND((E17+F17+Cálculos!$D$16)/(1-Cálculos!$D$10-Cálculos!$D$15),2),0) -> R$ 11,137.70 | H17: =G17*Cálculos!$D$10 -> R$ 946.70 | I17: =G17*Cálculos!$D$15+Cálculos!$D$16 -> R$ 3,298.31 | J17: R$ 1,378.54 | K17: 12.38% | L17: 2.02x
C18: =Cálculos!C35 -> Manutenção Predial | D18: =Cálculos!D35 -> Serviço | E18: =Cálculos!H35 -> R$ 807.05 | F18: =ROUND(E18*Cálculos!$D$18,2) -> R$ 201.76 | G18: =IFERROR(ROUND((E18+F18+Cálculos!$D$16)/(1-Cálculos!$D$10-Cálculos!$D$15),2),0) -> R$ 1,649.10 | H18: =G18*Cálculos!$D$10 -> R$ 140.17 | I18: =G18*Cálculos!$D$15+Cálculos!$D$16 -> R$ 500.12 | J18: R$ 201.76 | K18: 12.23% | L18: 2.04x
C19: =Cálculos!C36 -> Desenvolvimento de Sistema | D19: =Cálculos!D36 -> Serviço | E19: =Cálculos!H36 -> R$ 29,631.82 | F19: =ROUND(E19*Cálculos!$D$18,2) -> R$ 7,407.95 | G19: =IFERROR(ROUND((E19+F19+Cálculos!$D$16)/(1-Cálculos!$D$10-Cálculos!$D$15),2),0) -> R$ 59,754.18 | H19: =G19*Cálculos!$D$10 -> R$ 5,079.11 | I19: =G19*Cálculos!$D$15+Cálculos!$D$16 -> R$ 17,635.31 | J19: R$ 7,407.95 | K19: 12.40% | L19: 2.02x
C20: =Cálculos!C37 -> Assessoria Contábil Mensal | D20: =Cálculos!D37 -> Serviço | E20: =Cálculos!H37 -> R$ 1,941.14 | F20: =ROUND(E20*Cálculos!$D$18,2) -> R$ 485.28 | G20: =IFERROR(ROUND((E20+F20+Cálculos!$D$16)/(1-Cálculos!$D$10-Cálculos!$D$15),2),0) -> R$ 3,935.20 | H20: =G20*Cálculos!$D$10 -> R$ 334.49 | I20: =G20*Cálculos!$D$15+Cálculos!$D$16 -> R$ 1,174.29 | J20: R$ 485.28 | K20: 12.33% | L20: 2.03x
C21: =Cálculos!C38 -> Projeto Arquitetônico | D21: =Cálculos!D38 -> Serviço | E21: =Cálculos!H38 -> R$ 16,010.91 | F21: =ROUND(E21*Cálculos!$D$18,2) -> R$ 4,002.73 | G21: =IFERROR(ROUND((E21+F21+Cálculos!$D$16)/(1-Cálculos!$D$10-Cálculos!$D$15),2),0) -> R$ 32,297.11 | H21: =G21*Cálculos!$D$10 -> R$ 2,745.25 | I21: =G21*Cálculos!$D$15+Cálculos!$D$16 -> R$ 9,538.22 | J21: R$ 4,002.73 | K21: 12.39% | L21: 2.02x
C22: =Cálculos!C39 -> Treinamento Corporativo | D22: =Cálculos!D39 -> Serviço | E22: =Cálculos!H39 -> R$ 2,584.09 | F22: =ROUND(E22*Cálculos!$D$18,2) -> R$ 646.02 | G22: =IFERROR(ROUND((E22+F22+Cálculos!$D$16)/(1-Cálculos!$D$10-Cálculos!$D$15),2),0) -> R$ 5,231.27 | H22: =G22*Cálculos!$D$10 -> R$ 444.66 | I22: =G22*Cálculos!$D$15+Cálculos!$D$16 -> R$ 1,556.50 | J22: R$ 646.02 | K22: 12.35% | L22: 2.02x

Sheet Prec Hora Trabalhada (hidden)
C2: PREC HORA TRABALHADA
C7: Serviço | D7: Profissional | E7: Horas | F7: Valor Hora Base | G7: Custo Mão de Obra | H7: Custos Diretos | I7: Custo Fixo Hora | J7: Custo Total | K7: Lucro Desejado % | L7: Tributos | M7: Preço Final | N7: Preço por Hora | O7: Margem Líquida %
C8: =Serviços!D8 -> Consultoria Empresarial | D8: =Funcionários!C8 -> Ana Souza | E8: =Serviços!F8 -> 10.00 | F8: =Funcionários!H8 -> R$ 74.45 | G8: =E8*F8 -> R$ 744.55 | H8: =Serviços!H8+Serviços!I8 -> R$ 240.00 | I8: =IFERROR(Cálculos!$D$12/Cálculos!$D$19*E8/COUNTA(Serviços!$D$8:$D$14),0) -> R$ 192.61 | J8: =G8+H8+I8 -> R$ 1,177.16 | K8: =Cálculos!$D$18 -> 25.00% | L8: =M8*Cálculos!$D$10 -> R$ 150.46 | M8: =IFERROR(ROUND(J8/(1-K8-Cálculos!$D$10),2),0) -> R$ 1,770.16 | N8: =IFERROR(M8/E8,0) -> R$ 177.02 | O8: =IFERROR((M8-J8-L8)/M8,0) -> 25.00%
C9: =Serviços!D9 -> Criação de Identidade Visual | D9: =Funcionários!C9 -> Bruno Lima | E9: =Serviços!F9 -> 35.00 | F9: =Funcionários!H9 -> R$ 49.64 | G9: R$ 1,737.27 | H9: =Serviços!H9+Serviços!I9 -> R$ 500.00 | I9: =IFERROR(Cálculos!$D$12/Cálculos!$D$19*E9/COUNTA(Serviços!$D$8:$D$14),0) -> R$ 674.15 | J9: R$ 2,911.42 | K9: =Cálculos!$D$18 -> 25.00% | L9: =M9*Cálculos!$D$10 -> R$ 372.14 | M9: =IFERROR(ROUND(J9/(1-K9-Cálculos!$D$10),2),0) -> R$ 4,378.08 | N9: R$ 125.09 | O9: 25.00%
C10: =Serviços!D10 -> Manutenção Predial | D10: =Funcionários!C10 -> Carla Mendes | E10: =Serviços!F10 -> 4.00 | F10: =Funcionários!H10 -> R$ 90.68 | G10: R$ 362.73 | H10: =Serviços!H10+Serviços!I10 -> R$ 270.00 | I10: =IFERROR(Cálculos!$D$12/Cálculos!$D$19*E10/COUNTA(Serviços!$D$8:$D$14),0) -> R$ 77.05 | J10: R$ 709.77 | K10: =Cálculos!$D$18 -> 25.00% | L10: =M10*Cálculos!$D$10 -> R$ 90.72 | M10: =IFERROR(ROUND(J10/(1-K10-Cálculos!$D$10),2),0) -> R$ 1,067.33 | N10: R$ 266.83 | O10: 25.00%
C11: =Serviços!D11 -> Desenvolvimento de Sistema | D11: =Funcionários!C11 -> Diego Alves | E11: =Serviços!F11 -> 160.00 | F11: =Funcionários!H11 -> R$ 33.23 | G11: R$ 5,316.36 | H11: =Serviços!H11+Serviços!I11 -> R$ 2,700.00 | I11: =IFERROR(Cálculos!$D$12/Cálculos!$D$19*E11/COUNTA(Serviços!$D$8:$D$14),0) -> R$ 3,081.82 | J11: R$ 11,098.18 | K11: =Cálculos!$D$18 -> 25.00% | L11: =M11*Cálculos!$D$10 -> R$ 1,418.57 | M11: =IFERROR(ROUND(J11/(1-K11-Cálculos!$D$10),2),0) -> R$ 16,689.00 | N11: R$ 104.31 | O11: 25.00%
C12: =Serviços!D12 -> Assessoria Contábil Mensal | D12: =Funcionários!C12 -> Elaine Costa | E12: =Serviços!F12 -> 12.00 | F12: =Funcionários!H12 -> R$ 43.91 | G12: R$ 526.91 | H12: =Serviços!H12+Serviços!I12 -> R$ 300.00 | I12: =IFERROR(Cálculos!$D$12/Cálculos!$D$19*E12/COUNTA(Serviços!$D$8:$D$14),0) -> R$ 231.14 | J12: R$ 1,058.05 | K12: =Cálculos!$D$18 -> 25.00% | L12: =M12*Cálculos!$D$10 -> R$ 135.24 | M12: =IFERROR(ROUND(J12/(1-K12-Cálculos!$D$10),2),0) -> R$ 1,591.05 | N12: R$ 132.59 | O12: 25.00%
C13: =Serviços!D13 -> Projeto Arquitetônico | D13: =Funcionários!C13 -> Fábio Rocha | E13: =Serviços!F13 -> 80.00 | F13: =Funcionários!H13 -> R$ 78.27 | G13: R$ 6,261.82 | H13: =Serviços!H13+Serviços!I13 -> R$ 1,350.00 | I13: =IFERROR(Cálculos!$D$12/Cálculos!$D$19*E13/COUNTA(Serviços!$D$8:$D$14),0) -> R$ 1,540.91 | J13: R$ 9,152.73 | K13: =Cálculos!$D$18 -> 25.00% | L13: =M13*Cálculos!$D$10 -> R$ 1,169.90 | M13: =IFERROR(ROUND(J13/(1-K13-Cálculos!$D$10),2),0) -> R$ 13,763.50 | N13: R$ 172.04 | O13: 25.00%
C14: =Serviços!D14 -> Treinamento Corporativo | D14: =Funcionários!C14 -> Gabriela Dias | E14: =Serviços!F14 -> 8.00 | F14: =Funcionários!H14 -> R$ 23.45 | G14: R$ 187.64 | H14: =Serviços!H14+Serviços!I14 -> R$ 520.00 | I14: =IFERROR(Cálculos!$D$12/Cálculos!$D$19*E14/COUNTA(Serviços!$D$8:$D$14),0) -> R$ 154.09 | J14: R$ 861.73 | K14: =Cálculos!$D$18 -> 25.00% | L14: =M14*Cálculos!$D$10 -> R$ 110.15 | M14: =IFERROR(ROUND(J14/(1-K14-Cálculos!$D$10),2),0) -> R$ 1,295.83 | N14: R$ 161.98 | O14: 25.00%

Sheet Prec Homem Hora (hidden)
C2: PREC HOMEM HORA
C7: Projeto/Serviço | D7: Nº Funcionários | E7: Horas por Pessoa | F7: Total Homem-Hora | G7: Custo Médio Hora Equipe | H7: Custo Mão de Obra | I7: Custos Indiretos | J7: Custo Total | K7: Lucro Desejado % | L7: Tributos | M7: Preço Final | N7: Preço por Homem-Hora
C8: =Serviços!D8 -> Consultoria Empresarial | D8: 2 | E8: 10.00 | F8: =D8*E8 -> 20.00 | G8: =IFERROR(AVERAGE(Funcionários!$H$8:$H$14),0) -> R$ 56.23 | H8: =F8*G8 -> R$ 1,124.68 | I8: =IFERROR(Cálculos!$D$12/Cálculos!$D$19*F8/COUNTA(Serviços!$D$8:$D$14),0) -> R$ 385.23 | J8: =H8+I8 -> R$ 1,509.90 | K8: =Cálculos!$D$18 -> 25.00% | L8: =M8*Cálculos!$D$10 -> R$ 193.00 | M8: =IFERROR(ROUND(J8/(1-K8-Cálculos!$D$10),2),0) -> R$ 2,270.53 | N8: =IFERROR(M8/F8,0) -> R$ 113.53
C9: =Serviços!D9 -> Criação de Identidade Visual | D9: 3 | E9: 35.00 | F9: 105.00 | G9: =IFERROR(AVERAGE(Funcionários!$H$8:$H$14),0) -> R$ 56.23 | H9: R$ 5,904.55 | I9: =IFERROR(Cálculos!$D$12/Cálculos!$D$19*F9/COUNTA(Serviços!$D$8:$D$14),0) -> R$ 2,022.44 | J9: R$ 7,926.99 | K9: =Cálculos!$D$18 -> 25.00% | L9: =M9*Cálculos!$D$10 -> R$ 1,013.22 | M9: =IFERROR(ROUND(J9/(1-K9-Cálculos!$D$10),2),0) -> R$ 11,920.28 | N9: R$ 113.53
C10: =Serviços!D10 -> Manutenção Predial | D10: 2 | E10: 4.00 | F10: 8.00 | G10: =IFERROR(AVERAGE(Funcionários!$H$8:$H$14),0) -> R$ 56.23 | H10: R$ 449.87 | I10: =IFERROR(Cálculos!$D$12/Cálculos!$D$19*F10/COUNTA(Serviços!$D$8:$D$14),0) -> R$ 154.09 | J10: R$ 603.96 | K10: =Cálculos!$D$18 -> 25.00% | L10: =M10*Cálculos!$D$10 -> R$ 77.20 | M10: =IFERROR(ROUND(J10/(1-K10-Cálculos!$D$10),2),0) -> R$ 908.21 | N10: R$ 113.53
C11: =Serviços!D11 -> Desenvolvimento de Sistema | D11: 4 | E11: 160.00 | F11: 640.00 | G11: =IFERROR(AVERAGE(Funcionários!$H$8:$H$14),0) -> R$ 56.23 | H11: R$ 35,989.61 | I11: =IFERROR(Cálculos!$D$12/Cálculos!$D$19*F11/COUNTA(Serviços!$D$8:$D$14),0) -> R$ 12,327.27 | J11: R$ 48,316.88 | K11: =Cálculos!$D$18 -> 25.00% | L11: =M11*Cálculos!$D$10 -> R$ 6,175.84 | M11: =IFERROR(ROUND(J11/(1-K11-Cálculos!$D$10),2),0) -> R$ 72,656.97 | N11: R$ 113.53
C12: =Serviços!D12 -> Assessoria Contábil Mensal | D12: 1 | E12: 12.00 | F12: 12.00 | G12: =IFERROR(AVERAGE(Funcionários!$H$8:$H$14),0) -> R$ 56.23 | H12: R$ 674.81 | I12: =IFERROR(Cálculos!$D$12/Cálculos!$D$19*F12/COUNTA(Serviços!$D$8:$D$14),0) -> R$ 231.14 | J12: R$ 905.94 | K12: =Cálculos!$D$18 -> 25.00% | L12: =M12*Cálculos!$D$10 -> R$ 115.80 | M12: =IFERROR(ROUND(J12/(1-K12-Cálculos!$D$10),2),0) -> R$ 1,362.32 | N12: R$ 113.53
C13: =Serviços!D13 -> Projeto Arquitetônico | D13: 3 | E13: 80.00 | F13: 240.00 | G13: =IFERROR(AVERAGE(Funcionários!$H$8:$H$14),0) -> R$ 56.23 | H13: R$ 13,496.10 | I13: =IFERROR(Cálculos!$D$12/Cálculos!$D$19*F13/COUNTA(Serviços!$D$8:$D$14),0) -> R$ 4,622.73 | J13: R$ 18,118.83 | K13: =Cálculos!$D$18 -> 25.00% | L13: =M13*Cálculos!$D$10 -> R$ 2,315.94 | M13: =IFERROR(ROUND(J13/(1-K13-Cálculos!$D$10),2),0) -> R$ 27,246.36 | N13: R$ 113.53
C14: =Serviços!D14 -> Treinamento Corporativo | D14: 2 | E14: 8.00 | F14: 16.00 | G14: =IFERROR(AVERAGE(Funcionários!$H$8:$H$14),0) -> R$ 56.23 | H14: R$ 899.74 | I14: =IFERROR(Cálculos!$D$12/Cálculos!$D$19*F14/COUNTA(Serviços!$D$8:$D$14),0) -> R$ 308.18 | J14: R$ 1,207.92 | K14: =Cálculos!$D$18 -> 25.00% | L14: =M14*Cálculos!$D$10 -> R$ 154.40 | M14: =IFERROR(ROUND(J14/(1-K14-Cálculos!$D$10),2),0) -> R$ 1,816.42 | N14: R$ 113.53

Sheet Prec Projeto (hidden)
C2: PREC PROJETO
C7: Projeto | D7: Escopo / Entregável | E7: Horas Estimadas | F7: Custo Hora Equipe | G7: Custo Mão de Obra | H7: Custos Diretos | I7: Despesas | J7: Reserva de Contingência % | K7: Valor Reserva | L7: Custo Total | M7: Lucro Desejado % | N7: Tributos | O7: Preço Final
C8: =Serviços!D8 -> Consultoria Empresarial | D8: Diagnóstico + plano de ação | E8: =Serviços!F8 -> 10.00 | F8: =IFERROR(AVERAGE(Funcionários!$H$8:$H$14),0) -> R$ 56.23 | G8: =E8*F8 -> R$ 562.34 | H8: =Serviços!H8 -> R$ 150.00 | I8: =Serviços!J8 -> R$ 60.00 | J8: 10.00% | K8: =(G8+H8+I8)*J8 -> R$ 77.23 | L8: =G8+H8+I8+K8 -> R$ 849.57 | M8: =Cálculos!$D$18 -> 25.00% | N8: =O8*Cálculos!$D$10 -> R$ 108.59 | O8: =IFERROR(ROUND(L8/(1-M8-Cálculos!$D$10),2),0) -> R$ 1,277.55
C9: =Serviços!D9 -> Criação de Identidade Visual | D9: Marca completa + manual | E9: =Serviços!F9 -> 35.00 | F9: =IFERROR(AVERAGE(Funcionários!$H$8:$H$14),0) -> R$ 56.23 | G9: R$ 1,968.18 | H9: =Serviços!H9 -> R$ 320.00 | I9: =Serviços!J9 -> R$ 140.00 | J9: 12.00% | K9: R$ 291.38 | L9: R$ 2,719.56 | M9: =Cálculos!$D$18 -> 25.00% | N9: =O9*Cálculos!$D$10 -> R$ 347.61 | O9: =IFERROR(ROUND(L9/(1-M9-Cálculos!$D$10),2),0) -> R$ 4,089.57
C10: =Serviços!D10 -> Manutenção Predial | D10: Vistoria e reparos | E10: =Serviços!F10 -> 4.00 | F10: =IFERROR(AVERAGE(Funcionários!$H$8:$H$14),0) -> R$ 56.23 | G10: R$ 224.94 | H10: =Serviços!H10 -> R$ 210.00 | I10: =Serviços!J10 -> R$ 80.00 | J10: 8.00% | K10: R$ 41.19 | L10: R$ 556.13 | M10: =Cálculos!$D$18 -> 25.00% | N10: =O10*Cálculos!$D$10 -> R$ 71.08 | O10: =IFERROR(ROUND(L10/(1-M10-Cálculos!$D$10),2),0) -> R$ 836.29
C11: =Serviços!D11 -> Desenvolvimento de Sistema | D11: Sistema web completo | E11: =Serviços!F11 -> 160.00 | F11: =IFERROR(AVERAGE(Funcionários!$H$8:$H$14),0) -> R$ 56.23 | G11: R$ 8,997.40 | H11: =Serviços!H11 -> R$ 1,800.00 | I11: =Serviços!J11 -> R$ 650.00 | J11: 15.00% | K11: R$ 1,717.11 | L11: R$ 13,164.51 | M11: =Cálculos!$D$18 -> 25.00% | N11: =O11*Cálculos!$D$10 -> R$ 1,682.68 | O11: =IFERROR(ROUND(L11/(1-M11-Cálculos!$D$10),2),0) -> R$ 19,796.26
C12: =Serviços!D12 -> Assessoria Contábil Mensal | D12: Rotina fiscal mensal | E12: =Serviços!F12 -> 12.00 | F12: =IFERROR(AVERAGE(Funcionários!$H$8:$H$14),0) -> R$ 56.23 | G12: R$ 674.81 | H12: =Serviços!H12 -> R$ 180.00 | I12: =Serviços!J12 -> R$ 90.00 | J12: 5.00% | K12: R$ 47.24 | L12: R$ 992.05 | M12: =Cálculos!$D$18 -> 25.00% | N12: =O12*Cálculos!$D$10 -> R$ 126.80 | O12: =IFERROR(ROUND(L12/(1-M12-Cálculos!$D$10),2),0) -> R$ 1,491.80
C13: =Serviços!D13 -> Projeto Arquitetônico | D13: Projeto executivo + ART | E13: =Serviços!F13 -> 80.00 | F13: =IFERROR(AVERAGE(Funcionários!$H$8:$H$14),0) -> R$ 56.23 | G13: R$ 4,498.70 | H13: =Serviços!H13 -> R$ 900.00 | I13: =Serviços!J13 -> R$ 320.00 | J13: 12.00% | K13: R$ 686.24 | L13: R$ 6,404.95 | M13: =Cálculos!$D$18 -> 25.00% | N13: =O13*Cálculos!$D$10 -> R$ 818.68 | O13: =IFERROR(ROUND(L13/(1-M13-Cálculos!$D$10),2),0) -> R$ 9,631.50
C14: =Serviços!D14 -> Treinamento Corporativo | D14: Programa de 2 dias | E14: =Serviços!F14 -> 8.00 | F14: =IFERROR(AVERAGE(Funcionários!$H$8:$H$14),0) -> R$ 56.23 | G14: R$ 449.87 | H14: =Serviços!H14 -> R$ 400.00 | I14: =Serviços!J14 -> R$ 150.00 | J14: 8.00% | K14: R$ 79.99 | L14: R$ 1,079.86 | M14: =Cálculos!$D$18 -> 25.00% | N14: =O14*Cálculos!$D$10 -> R$ 138.03 | O14: =IFERROR(ROUND(L14/(1-M14-Cálculos!$D$10),2),0) -> R$ 1,623.85

Sheet Prec Prestadores (hidden)
C2: PREC PRESTADORES
C7: Serviço | D7: Nº Visitas | E7: Km por Visita | F7: Custo por Km | G7: Custo Deslocamento | H7: Tempo por Visita (h) | I7: Valor Hora | J7: Custo Mão de Obra | K7: Materiais | L7: Custos Indiretos | M7: Custo Total | N7: Lucro Desejado % | O7: Tributos | P7: Preço Final
C8: =Serviços!D8 -> Consultoria Empresarial | D8: 2 | E8: 25.00 | F8: R$ 1.20 | G8: =D8*E8*F8 -> R$ 60.00 | H8: 5.00 | I8: =IFERROR(AVERAGE(Funcionários!$H$8:$H$14),0) -> R$ 56.23 | J8: =D8*H8*I8 -> R$ 562.34 | K8: R$ 80.00 | L8: =Serviços!I8 -> R$ 90.00 | M8: =G8+J8+K8+L8 -> R$ 792.34 | N8: =Cálculos!$D$18 -> 25.00% | O8: =P8*Cálculos!$D$10 -> R$ 101.28 | P8: =IFERROR(ROUND(M8/(1-N8-Cálculos!$D$10),2),0) -> R$ 1,191.49
C9: =Serviços!D9 -> Criação de Identidade Visual | D9: 4 | E9: 15.00 | F9: R$ 1.20 | G9: R$ 72.00 | H9: 8.00 | I9: =IFERROR(AVERAGE(Funcionários!$H$8:$H$14),0) -> R$ 56.23 | J9: R$ 1,799.48 | K9: R$ 150.00 | L9: =Serviços!I9 -> R$ 180.00 | M9: R$ 2,201.48 | N9: =Cálculos!$D$18 -> 25.00% | O9: =P9*Cálculos!$D$10 -> R$ 281.39 | P9: =IFERROR(ROUND(M9/(1-N9-Cálculos!$D$10),2),0) -> R$ 3,310.50
C10: =Serviços!D10 -> Manutenção Predial | D10: 3 | E10: 40.00 | F10: R$ 1.20 | G10: R$ 144.00 | H10: 4.00 | I10: =IFERROR(AVERAGE(Funcionários!$H$8:$H$14),0) -> R$ 56.23 | J10: R$ 674.81 | K10: R$ 320.00 | L10: =Serviços!I10 -> R$ 60.00 | M10: R$ 1,198.81 | N10: =Cálculos!$D$18 -> 25.00% | O10: =P10*Cálculos!$D$10 -> R$ 153.23 | P10: =IFERROR(ROUND(M10/(1-N10-Cálculos!$D$10),2),0) -> R$ 1,802.71
C11: =Serviços!D11 -> Desenvolvimento de Sistema | D11: 8 | E11: 10.00 | F11: R$ 1.20 | G11: R$ 96.00 | H11: 20.00 | I11: =IFERROR(AVERAGE(Funcionários!$H$8:$H$14),0) -> R$ 56.23 | J11: R$ 8,997.40 | K11: R$ 200.00 | L11: =Serviços!I11 -> R$ 900.00 | M11: R$ 10,193.40 | N11: =Cálculos!$D$18 -> 25.00% | O11: =P11*Cálculos!$D$10 -> R$ 1,302.92 | P11: =IFERROR(ROUND(M11/(1-N11-Cálculos!$D$10),2),0) -> R$ 15,328.42
C12: =Serviços!D12 -> Assessoria Contábil Mensal | D12: 1 | E12: 8.00 | F12: R$ 1.20 | G12: R$ 9.60 | H12: 12.00 | I12: =IFERROR(AVERAGE(Funcionários!$H$8:$H$14),0) -> R$ 56.23 | J12: R$ 674.81 | K12: R$ 40.00 | L12: =Serviços!I12 -> R$ 120.00 | M12: R$ 844.41 | N12: =Cálculos!$D$18 -> 25.00% | O12: =P12*Cálculos!$D$10 -> R$ 107.93 | P12: =IFERROR(ROUND(M12/(1-N12-Cálculos!$D$10),2),0) -> R$ 1,269.78
C13: =Serviços!D13 -> Projeto Arquitetônico | D13: 5 | E13: 60.00 | F13: R$ 1.20 | G13: R$ 360.00 | H13: 16.00 | I13: =IFERROR(AVERAGE(Funcionários!$H$8:$H$14),0) -> R$ 56.23 | J13: R$ 4,498.70 | K13: R$ 280.00 | L13: =Serviços!I13 -> R$ 450.00 | M13: R$ 5,588.70 | N13: =Cálculos!$D$18 -> 25.00% | O13: =P13*Cálculos!$D$10 -> R$ 714.35 | P13: =IFERROR(ROUND(M13/(1-N13-Cálculos!$D$10),2),0) -> R$ 8,404.06
C14: =Serviços!D14 -> Treinamento Corporativo | D14: 2 | E14: 30.00 | F14: R$ 1.20 | G14: R$ 72.00 | H14: 8.00 | I14: =IFERROR(AVERAGE(Funcionários!$H$8:$H$14),0) -> R$ 56.23 | J14: R$ 899.74 | K14: R$ 180.00 | L14: =Serviços!I14 -> R$ 120.00 | M14: R$ 1,271.74 | N14: =Cálculos!$D$18 -> 25.00% | O14: =P14*Cálculos!$D$10 -> R$ 162.55 | P14: =IFERROR(ROUND(M14/(1-N14-Cálculos!$D$10),2),0) -> R$ 1,912.39

Sheet Prec Comércio (hidden)
C2: PREC COMÉRCIO
C7: Produto | D7: Custo de Compra | E7: Frete de Entrada | F7: IPI | G7: Custo de Aquisição | H7: Impostos s/ Venda % | I7: Despesas Comerciais % | J7: Markup | K7: Preço de Venda | L7: Lucro Líquido | M7: Margem Líquida %
C8: =Produtos!D8 -> Camiseta Premium | D8: =Produtos!G8 -> R$ 22.00 | E8: =IFERROR(Produtos!I8/Produtos!L8,0) -> R$ 3.60 | F8: =Produtos!G8*Produtos!H8 -> 0 | G8: =D8+E8+F8 -> R$ 25.60 | H8: =Cálculos!$D$10 -> 8.50% | I8: =Cálculos!$D$15 -> 29.49% | J8: =Cálculos!$D$17 -> 2.50x | K8: =ROUND(G8*J8,2) -> R$ 64.00 | L8: =K8-G8-K8*H8-K8*I8 -> R$ 14.09 | M8: =IFERROR(L8/K8,0) -> 22.01%
C9: =Produtos!D9 -> Caneca Cerâmica 350ml | D9: =Produtos!G9 -> R$ 8.50 | E9: =IFERROR(Produtos!I9/Produtos!L9,0) -> R$ 1.20 | F9: =Produtos!G9*Produtos!H9 -> 0 | G9: R$ 9.70 | H9: =Cálculos!$D$10 -> 8.50% | I9: =Cálculos!$D$15 -> 29.49% | J9: =Cálculos!$D$17 -> 2.50x | K9: R$ 24.25 | L9: R$ 5.34 | M9: 22.01%
C10: =Produtos!D10 -> Kit Presente Gourmet | D10: =Produtos!G10 -> R$ 45.00 | E10: =IFERROR(Produtos!I10/Produtos!L10,0) -> R$ 3.00 | F10: =Produtos!G10*Produtos!H10 -> 0 | G10: R$ 48.00 | H10: =Cálculos!$D$10 -> 8.50% | I10: =Cálculos!$D$15 -> 29.49% | J10: =Cálculos!$D$17 -> 2.50x | K10: R$ 120.00 | L10: R$ 26.41 | M10: 22.01%
C11: =Produtos!D11 -> Mochila Executiva | D11: =Produtos!G11 -> R$ 78.00 | E11: =IFERROR(Produtos!I11/Produtos!L11,0) -> R$ 6.00 | F11: =Produtos!G11*Produtos!H11 -> 0 | G11: R$ 84.00 | H11: =Cálculos!$D$10 -> 8.50% | I11: =Cálculos!$D$15 -> 29.49% | J11: =Cálculos!$D$17 -> 2.50x | K11: R$ 210.00 | L11: R$ 46.22 | M11: 22.01%
C12: =Produtos!D12 -> Fone Bluetooth TWS | D12: =Produtos!G12 -> R$ 62.00 | E12: =IFERROR(Produtos!I12/Produtos!L12,0) -> R$ 5.50 | F12: =Produtos!G12*Produtos!H12 -> R$ 4.03 | G12: R$ 71.53 | H12: =Cálculos!$D$10 -> 8.50% | I12: =Cálculos!$D$15 -> 29.49% | J12: =Cálculos!$D$17 -> 2.50x | K12: R$ 178.83 | L12: R$ 39.36 | M12: 22.01%
C13: =Produtos!D13 -> Garrafa Térmica 1L | D13: =Produtos!G13 -> R$ 34.00 | E13: =IFERROR(Produtos!I13/Produtos!L13,0) -> R$ 2.33 | F13: =Produtos!G13*Produtos!H13 -> 0 | G13: R$ 36.33 | H13: =Cálculos!$D$10 -> 8.50% | I13: =Cálculos!$D$15 -> 29.49% | J13: =Cálculos!$D$17 -> 2.50x | K13: R$ 90.83 | L13: R$ 19.99 | M13: 22.01%
C14: =Produtos!D14 -> Agenda Executiva 2026 | D14: =Produtos!G14 -> R$ 17.50 | E14: =IFERROR(Produtos!I14/Produtos!L14,0) -> R$ 1.00 | F14: =Produtos!G14*Produtos!H14 -> 0 | G14: R$ 18.50 | H14: =Cálculos!$D$10 -> 8.50% | I14: =Cálculos!$D$15 -> 29.49% | J14: =Cálculos!$D$17 -> 2.50x | K14: R$ 46.25 | L14: R$ 10.18 | M14: 22.01%
C15: =Produtos!D15 -> Boné Trucker | D15: =Produtos!G15 -> R$ 14.00 | E15: =IFERROR(Produtos!I15/Produtos!L15,0) -> R$ 1.36 | F15: =Produtos!G15*Produtos!H15 -> 0 | G15: R$ 15.36 | H15: =Cálculos!$D$10 -> 8.50% | I15: =Cálculos!$D$15 -> 29.49% | J15: =Cálculos!$D$17 -> 2.50x | K15: R$ 38.39 | L15: R$ 8.45 | M15: 22.01%

Sheet Prec Indústria (hidden)
C2: PREC INDÚSTRIA
C7: Produto | D7: Matéria-Prima | E7: Mão de Obra Direta | F7: Horas Máquina | G7: Custo Hora Máquina | H7: Custo Máquina | I7: Energia | J7: Depreciação | K7: Custos Indiretos | L7: Custo de Produção | M7: Margem Desejada % | N7: Impostos % | O7: Preço de Venda | P7: Margem Líquida %
C8: =Produtos!D8 -> Camiseta Premium | D8: =Produtos!G8 -> R$ 22.00 | E8: =IFERROR(AVERAGE(Funcionários!$H$8:$H$14)*F8,0) -> R$ 28.12 | F8: 0.50 | G8: =IFERROR(AVERAGE(Máquinas!$H$8:$H$13),0) -> R$ 1.98 | H8: =F8*G8 -> R$ 0.99 | I8: R$ 0.85 | J8: =IFERROR(SUM(Máquinas!$F$8:$F$13)/Cálculos!$D$11,0) -> R$ 1.69 | K8: =Cálculos!$D$14 -> R$ 19.78 | L8: =D8+E8+H8+I8+J8+K8 -> R$ 73.42 | M8: =Cálculos!$D$18 -> 25.00% | N8: =Cálculos!$D$10 -> 8.50% | O8: =IFERROR(ROUND(L8/(1-M8-N8-Cálculos!$D$15),2),0) -> R$ 198.39 | P8: =IFERROR((O8-L8-O8*N8-O8*Cálculos!$D$15)/O8,0) -> 25.00%
C9: =Produtos!D9 -> Caneca Cerâmica 350ml | D9: =Produtos!G9 -> R$ 8.50 | E9: =IFERROR(AVERAGE(Funcionários!$H$8:$H$14)*F9,0) -> R$ 16.87 | F9: 0.30 | G9: =IFERROR(AVERAGE(Máquinas!$H$8:$H$13),0) -> R$ 1.98 | H9: R$ 0.59 | I9: R$ 0.60 | J9: =IFERROR(SUM(Máquinas!$F$8:$F$13)/Cálculos!$D$11,0) -> R$ 1.69 | K9: =Cálculos!$D$14 -> R$ 19.78 | L9: R$ 48.03 | M9: =Cálculos!$D$18 -> 25.00% | N9: =Cálculos!$D$10 -> 8.50% | O9: =IFERROR(ROUND(L9/(1-M9-N9-Cálculos!$D$15),2),0) -> R$ 129.78 | P9: =IFERROR((O9-L9-O9*N9-O9*Cálculos!$D$15)/O9,0) -> 25.00%
C10: =Produtos!D10 -> Kit Presente Gourmet | D10: =Produtos!G10 -> R$ 45.00 | E10: =IFERROR(AVERAGE(Funcionários!$H$8:$H$14)*F10,0) -> R$ 44.99 | F10: 0.80 | G10: =IFERROR(AVERAGE(Máquinas!$H$8:$H$13),0) -> R$ 1.98 | H10: R$ 1.58 | I10: R$ 1.20 | J10: =IFERROR(SUM(Máquinas!$F$8:$F$13)/Cálculos!$D$11,0) -> R$ 1.69 | K10: =Cálculos!$D$14 -> R$ 19.78 | L10: R$ 114.24 | M10: =Cálculos!$D$18 -> 25.00% | N10: =Cálculos!$D$10 -> 8.50% | O10: =IFERROR(ROUND(L10/(1-M10-N10-Cálculos!$D$15),2),0) -> R$ 308.66 | P10: =IFERROR((O10-L10-O10*N10-O10*Cálculos!$D$15)/O10,0) -> 25.00%
C11: =Produtos!D11 -> Mochila Executiva | D11: =Produtos!G11 -> R$ 78.00 | E11: =IFERROR(AVERAGE(Funcionários!$H$8:$H$14)*F11,0) -> R$ 67.48 | F11: 1.20 | G11: =IFERROR(AVERAGE(Máquinas!$H$8:$H$13),0) -> R$ 1.98 | H11: R$ 2.37 | I11: R$ 1.50 | J11: =IFERROR(SUM(Máquinas!$F$8:$F$13)/Cálculos!$D$11,0) -> R$ 1.69 | K11: =Cálculos!$D$14 -> R$ 19.78 | L11: R$ 170.82 | M11: =Cálculos!$D$18 -> 25.00% | N11: =Cálculos!$D$10 -> 8.50% | O11: =IFERROR(ROUND(L11/(1-M11-N11-Cálculos!$D$15),2),0) -> R$ 461.55 | P11: =IFERROR((O11-L11-O11*N11-O11*Cálculos!$D$15)/O11,0) -> 25.00%
C12: =Produtos!D12 -> Fone Bluetooth TWS | D12: =Produtos!G12 -> R$ 62.00 | E12: =IFERROR(AVERAGE(Funcionários!$H$8:$H$14)*F12,0) -> R$ 33.74 | F12: 0.60 | G12: =IFERROR(AVERAGE(Máquinas!$H$8:$H$13),0) -> R$ 1.98 | H12: R$ 1.19 | I12: R$ 0.95 | J12: =IFERROR(SUM(Máquinas!$F$8:$F$13)/Cálculos!$D$11,0) -> R$ 1.69 | K12: =Cálculos!$D$14 -> R$ 19.78 | L12: R$ 119.34 | M12: =Cálculos!$D$18 -> 25.00% | N12: =Cálculos!$D$10 -> 8.50% | O12: =IFERROR(ROUND(L12/(1-M12-N12-Cálculos!$D$15),2),0) -> R$ 322.47 | P12: =IFERROR((O12-L12-O12*N12-O12*Cálculos!$D$15)/O12,0) -> 25.00%
C13: =Produtos!D13 -> Garrafa Térmica 1L | D13: =Produtos!G13 -> R$ 34.00 | E13: =IFERROR(AVERAGE(Funcionários!$H$8:$H$14)*F13,0) -> R$ 22.49 | F13: 0.40 | G13: =IFERROR(AVERAGE(Máquinas!$H$8:$H$13),0) -> R$ 1.98 | H13: R$ 0.79 | I13: R$ 0.70 | J13: =IFERROR(SUM(Máquinas!$F$8:$F$13)/Cálculos!$D$11,0) -> R$ 1.69 | K13: =Cálculos!$D$14 -> R$ 19.78 | L13: R$ 79.45 | M13: =Cálculos!$D$18 -> 25.00% | N13: =Cálculos!$D$10 -> 8.50% | O13: =IFERROR(ROUND(L13/(1-M13-N13-Cálculos!$D$15),2),0) -> R$ 214.68 | P13: =IFERROR((O13-L13-O13*N13-O13*Cálculos!$D$15)/O13,0) -> 25.00%
C14: =Produtos!D14 -> Agenda Executiva 2026 | D14: =Produtos!G14 -> R$ 17.50 | E14: =IFERROR(AVERAGE(Funcionários!$H$8:$H$14)*F14,0) -> R$ 14.06 | F14: 0.25 | G14: =IFERROR(AVERAGE(Máquinas!$H$8:$H$13),0) -> R$ 1.98 | H14: R$ 0.49 | I14: R$ 0.40 | J14: =IFERROR(SUM(Máquinas!$F$8:$F$13)/Cálculos!$D$11,0) -> R$ 1.69 | K14: =Cálculos!$D$14 -> R$ 19.78 | L14: R$ 53.92 | M14: =Cálculos!$D$18 -> 25.00% | N14: =Cálculos!$D$10 -> 8.50% | O14: =IFERROR(ROUND(L14/(1-M14-N14-Cálculos!$D$15),2),0) -> R$ 145.69 | P14: =IFERROR((O14-L14-O14*N14-O14*Cálculos!$D$15)/O14,0) -> 25.00%
C15: =Produtos!D15 -> Boné Trucker | D15: =Produtos!G15 -> R$ 14.00 | E15: =IFERROR(AVERAGE(Funcionários!$H$8:$H$14)*F15,0) -> R$ 19.68 | F15: 0.35 | G15: =IFERROR(AVERAGE(Máquinas!$H$8:$H$13),0) -> R$ 1.98 | H15: R$ 0.69 | I15: R$ 0.55 | J15: =IFERROR(SUM(Máquinas!$F$8:$F$13)/Cálculos!$D$11,0) -> R$ 1.69 | K15: =Cálculos!$D$14 -> R$ 19.78 | L15: R$ 56.39 | M15: =Cálculos!$D$18 -> 25.00% | N15: =Cálculos!$D$10 -> 8.50% | O15: =IFERROR(ROUND(L15/(1-M15-N15-Cálculos!$D$15),2),0) -> R$ 152.37 | P15: =IFERROR((O15-L15-O15*N15-O15*Cálculos!$D$15)/O15,0) -> 25.00%

Sheet Prec E-commerce (hidden)
C2: PREC E-COMMERCE
C7: Produto | D7: Custo do Produto | E7: Comissão Marketplace % | F7: Gateway de Pagamento % | G7: Frete | H7: Embalagem | I7: Publicidade % | J7: Impostos % | K7: Total % s/ Preço | L7: Custos Fixos por Un. | M7: Lucro Desejado % | N7: Preço de Venda | O7: Lucro Líquido | P7: Margem Líquida %
C8: =Produtos!D8 -> Camiseta Premium | D8: =Produtos!M8 -> R$ 26.70 | E8: =IFERROR(INDEX('Despesas Comerciais'!$F$8:$F$14,MATCH("Marketplace",'Despesas Comerciais'!$D$8:$D$14,0)),0) -> 16.00% | F8: =IFERROR(INDEX('Despesas Comerciais'!$F$8:$F$14,MATCH("Cartão / Gateway",'Despesas Comerciais'!$D$8:$D$14,0)),0) -> 3.49% | G8: =IFERROR(INDEX('Despesas Comerciais'!$G$8:$G$14,MATCH("Frete",'Despesas Comerciais'!$D$8:$D$14,0)),0) -> R$ 12.00 | H8: =IFERROR(INDEX('Despesas Comerciais'!$G$8:$G$14,MATCH("Embalagem",'Despesas Comerciais'!$D$8:$D$14,0)),0) -> R$ 1.80 | I8: =IFERROR(INDEX('Despesas Comerciais'!$F$8:$F$14,MATCH("Marketing",'Despesas Comerciais'!$D$8:$D$14,0)),0) -> 4.00% | J8: =Cálculos!$D$10 -> 8.50% | K8: =E8+F8+I8+J8 -> 31.99% | L8: =Cálculos!$D$14 -> R$ 19.78 | M8: =Cálculos!$D$18 -> 25.00% | N8: =IFERROR(ROUND((D8+G8+H8+L8)/(1-K8-M8),2),0) -> R$ 140.14 | O8: =N8-D8-G8-H8-L8-N8*K8 -> R$ 35.03 | P8: =IFERROR(O8/N8,0) -> 25.00%
C9: =Produtos!D9 -> Caneca Cerâmica 350ml | D9: =Produtos!M9 -> R$ 9.98 | E9: =IFERROR(INDEX('Despesas Comerciais'!$F$8:$F$14,MATCH("Marketplace",'Despesas Comerciais'!$D$8:$D$14,0)),0) -> 16.00% | F9: =IFERROR(INDEX('Despesas Comerciais'!$F$8:$F$14,MATCH("Cartão / Gateway",'Despesas Comerciais'!$D$8:$D$14,0)),0) -> 3.49% | G9: =IFERROR(INDEX('Despesas Comerciais'!$G$8:$G$14,MATCH("Frete",'Despesas Comerciais'!$D$8:$D$14,0)),0) -> R$ 12.00 | H9: =IFERROR(INDEX('Despesas Comerciais'!$G$8:$G$14,MATCH("Embalagem",'Despesas Comerciais'!$D$8:$D$14,0)),0) -> R$ 1.80 | I9: =IFERROR(INDEX('Despesas Comerciais'!$F$8:$F$14,MATCH("Marketing",'Despesas Comerciais'!$D$8:$D$14,0)),0) -> 4.00% | J9: =Cálculos!$D$10 -> 8.50% | K9: 31.99% | L9: =Cálculos!$D$14 -> R$ 19.78 | M9: =Cálculos!$D$18 -> 25.00% | N9: R$ 101.27 | O9: R$ 25.32 | P9: 25.00%
C10: =Produtos!D10 -> Kit Presente Gourmet | D10: =Produtos!M10 -> R$ 49.50 | E10: =IFERROR(INDEX('Despesas Comerciais'!$F$8:$F$14,MATCH("Marketplace",'Despesas Comerciais'!$D$8:$D$14,0)),0) -> 16.00% | F10: =IFERROR(INDEX('Despesas Comerciais'!$F$8:$F$14,MATCH("Cartão / Gateway",'Despesas Comerciais'!$D$8:$D$14,0)),0) -> 3.49% | G10: =IFERROR(INDEX('Despesas Comerciais'!$G$8:$G$14,MATCH("Frete",'Despesas Comerciais'!$D$8:$D$14,0)),0) -> R$ 12.00 | H10: =IFERROR(INDEX('Despesas Comerciais'!$G$8:$G$14,MATCH("Embalagem",'Despesas Comerciais'!$D$8:$D$14,0)),0) -> R$ 1.80 | I10: =IFERROR(INDEX('Despesas Comerciais'!$F$8:$F$14,MATCH("Marketing",'Despesas Comerciais'!$D$8:$D$14,0)),0) -> 4.00% | J10: =Cálculos!$D$10 -> 8.50% | K10: 31.99% | L10: =Cálculos!$D$14 -> R$ 19.78 | M10: =Cálculos!$D$18 -> 25.00% | N10: R$ 193.15 | O10: R$ 48.29 | P10: 25.00%
C11: =Produtos!D11 -> Mochila Executiva | D11: =Produtos!M11 -> R$ 86.80 | E11: =IFERROR(INDEX('Despesas Comerciais'!$F$8:$F$14,MATCH("Marketplace",'Despesas Comerciais'!$D$8:$D$14,0)),0) -> 16.00% | F11: =IFERROR(INDEX('Despesas Comerciais'!$F$8:$F$14,MATCH("Cartão / Gateway",'Despesas Comerciais'!$D$8:$D$14,0)),0) -> 3.49% | G11: =IFERROR(INDEX('Despesas Comerciais'!$G$8:$G$14,MATCH("Frete",'Despesas Comerciais'!$D$8:$D$14,0)),0) -> R$ 12.00 | H11: =IFERROR(INDEX('Despesas Comerciais'!$G$8:$G$14,MATCH("Embalagem",'Despesas Comerciais'!$D$8:$D$14,0)),0) -> R$ 1.80 | I11: =IFERROR(INDEX('Despesas Comerciais'!$F$8:$F$14,MATCH("Marketing",'Despesas Comerciais'!$D$8:$D$14,0)),0) -> 4.00% | J11: =Cálculos!$D$10 -> 8.50% | K11: 31.99% | L11: =Cálculos!$D$14 -> R$ 19.78 | M11: =Cálculos!$D$18 -> 25.00% | N11: R$ 279.88 | O11: R$ 69.97 | P11: 25.00%
C12: =Produtos!D12 -> Fone Bluetooth TWS | D12: =Produtos!M12 -> R$ 73.78 | E12: =IFERROR(INDEX('Despesas Comerciais'!$F$8:$F$14,MATCH("Marketplace",'Despesas Comerciais'!$D$8:$D$14,0)),0) -> 16.00% | F12: =IFERROR(INDEX('Despesas Comerciais'!$F$8:$F$14,MATCH("Cartão / Gateway",'Despesas Comerciais'!$D$8:$D$14,0)),0) -> 3.49% | G12: =IFERROR(INDEX('Despesas Comerciais'!$G$8:$G$14,MATCH("Frete",'Despesas Comerciais'!$D$8:$D$14,0)),0) -> R$ 12.00 | H12: =IFERROR(INDEX('Despesas Comerciais'!$G$8:$G$14,MATCH("Embalagem",'Despesas Comerciais'!$D$8:$D$14,0)),0) -> R$ 1.80 | I12: =IFERROR(INDEX('Despesas Comerciais'!$F$8:$F$14,MATCH("Marketing",'Despesas Comerciais'!$D$8:$D$14,0)),0) -> 4.00% | J12: =Cálculos!$D$10 -> 8.50% | K12: 31.99% | L12: =Cálculos!$D$14 -> R$ 19.78 | M12: =Cálculos!$D$18 -> 25.00% | N12: R$ 249.60 | O12: R$ 62.40 | P12: 25.00%
C13: =Produtos!D13 -> Garrafa Térmica 1L | D13: =Produtos!M13 -> R$ 36.95 | E13: =IFERROR(INDEX('Despesas Comerciais'!$F$8:$F$14,MATCH("Marketplace",'Despesas Comerciais'!$D$8:$D$14,0)),0) -> 16.00% | F13: =IFERROR(INDEX('Despesas Comerciais'!$F$8:$F$14,MATCH("Cartão / Gateway",'Despesas Comerciais'!$D$8:$D$14,0)),0) -> 3.49% | G13: =IFERROR(INDEX('Despesas Comerciais'!$G$8:$G$14,MATCH("Frete",'Despesas Comerciais'!$D$8:$D$14,0)),0) -> R$ 12.00 | H13: =IFERROR(INDEX('Despesas Comerciais'!$G$8:$G$14,MATCH("Embalagem",'Despesas Comerciais'!$D$8:$D$14,0)),0) -> R$ 1.80 | I13: =IFERROR(INDEX('Despesas Comerciais'!$F$8:$F$14,MATCH("Marketing",'Despesas Comerciais'!$D$8:$D$14,0)),0) -> 4.00% | J13: =Cálculos!$D$10 -> 8.50% | K13: 31.99% | L13: =Cálculos!$D$14 -> R$ 19.78 | M13: =Cálculos!$D$18 -> 25.00% | N13: R$ 163.97 | O13: R$ 40.99 | P13: 25.00%
C14: =Produtos!D14 -> Agenda Executiva 2026 | D14: =Produtos!M14 -> R$ 18.76 | E14: =IFERROR(INDEX('Despesas Comerciais'!$F$8:$F$14,MATCH("Marketplace",'Despesas Comerciais'!$D$8:$D$14,0)),0) -> 16.00% | F14: =IFERROR(INDEX('Despesas Comerciais'!$F$8:$F$14,MATCH("Cartão / Gateway",'Despesas Comerciais'!$D$8:$D$14,0)),0) -> 3.49% | G14: =IFERROR(INDEX('Despesas Comerciais'!$G$8:$G$14,MATCH("Frete",'Despesas Comerciais'!$D$8:$D$14,0)),0) -> R$ 12.00 | H14: =IFERROR(INDEX('Despesas Comerciais'!$G$8:$G$14,MATCH("Embalagem",'Despesas Comerciais'!$D$8:$D$14,0)),0) -> R$ 1.80 | I14: =IFERROR(INDEX('Despesas Comerciais'!$F$8:$F$14,MATCH("Marketing",'Despesas Comerciais'!$D$8:$D$14,0)),0) -> 4.00% | J14: =Cálculos!$D$10 -> 8.50% | K14: 31.99% | L14: =Cálculos!$D$14 -> R$ 19.78 | M14: =Cálculos!$D$18 -> 25.00% | N14: R$ 121.69 | O14: R$ 30.42 | P14: 25.00%
C15: =Produtos!D15 -> Boné Trucker | D15: =Produtos!M15 -> R$ 15.71 | E15: =IFERROR(INDEX('Despesas Comerciais'!$F$8:$F$14,MATCH("Marketplace",'Despesas Comerciais'!$D$8:$D$14,0)),0) -> 16.00% | F15: =IFERROR(INDEX('Despesas Comerciais'!$F$8:$F$14,MATCH("Cartão / Gateway",'Despesas Comerciais'!$D$8:$D$14,0)),0) -> 3.49% | G15: =IFERROR(INDEX('Despesas Comerciais'!$G$8:$G$14,MATCH("Frete",'Despesas Comerciais'!$D$8:$D$14,0)),0) -> R$ 12.00 | H15: =IFERROR(INDEX('Despesas Comerciais'!$G$8:$G$14,MATCH("Embalagem",'Despesas Comerciais'!$D$8:$D$14,0)),0) -> R$ 1.80 | I15: =IFERROR(INDEX('Despesas Comerciais'!$F$8:$F$14,MATCH("Marketing",'Despesas Comerciais'!$D$8:$D$14,0)),0) -> 4.00% | J15: =Cálculos!$D$10 -> 8.50% | K15: 31.99% | L15: =Cálculos!$D$14 -> R$ 19.78 | M15: =Cálculos!$D$18 -> 25.00% | N15: R$ 114.60 | O15: R$ 28.65 | P15: 25.00%

Sheet Prec Delivery (hidden)
C2: PREC DELIVERY
C7: Produto | D7: Custo do Produto (CMV) | E7: Embalagem | F7: Taxa do Aplicativo % | G7: Taxa de Entrega Cobrada | H7: Custo Motoboy | I7: Impostos % | J7: Custos Fixos por Un. | K7: Custo Total | L7: Lucro Desejado % | M7: Preço de Venda | N7: Lucro Líquido | O7: Margem Líquida %
C8: =Produtos!D8 -> Camiseta Premium | D8: =Produtos!M8 -> R$ 26.70 | E8: =IFERROR(INDEX('Despesas Comerciais'!$G$8:$G$14,MATCH("Embalagem",'Despesas Comerciais'!$D$8:$D$14,0)),0) -> R$ 1.80 | F8: 27.00% | G8: R$ 6.99 | H8: R$ 8.50 | I8: =Cálculos!$D$10 -> 8.50% | J8: =Cálculos!$D$14 -> R$ 19.78 | K8: =D8+E8+H8+J8-G8 -> R$ 49.79 | L8: =Cálculos!$D$18 -> 25.00% | M8: =IFERROR(ROUND(K8/(1-F8-I8-L8),2),0) -> R$ 126.04 | N8: =M8-K8-M8*F8-M8*I8 -> R$ 31.51 | O8: =IFERROR(N8/M8,0) -> 25.00%
C9: =Produtos!D9 -> Caneca Cerâmica 350ml | D9: =Produtos!M9 -> R$ 9.98 | E9: =IFERROR(INDEX('Despesas Comerciais'!$G$8:$G$14,MATCH("Embalagem",'Despesas Comerciais'!$D$8:$D$14,0)),0) -> R$ 1.80 | F9: 27.00% | G9: R$ 6.99 | H9: R$ 8.50 | I9: =Cálculos!$D$10 -> 8.50% | J9: =Cálculos!$D$14 -> R$ 19.78 | K9: R$ 33.07 | L9: =Cálculos!$D$18 -> 25.00% | M9: R$ 83.71 | N9: R$ 20.93 | O9: 25.00%
C10: =Produtos!D10 -> Kit Presente Gourmet | D10: =Produtos!M10 -> R$ 49.50 | E10: =IFERROR(INDEX('Despesas Comerciais'!$G$8:$G$14,MATCH("Embalagem",'Despesas Comerciais'!$D$8:$D$14,0)),0) -> R$ 1.80 | F10: 27.00% | G10: R$ 6.99 | H10: R$ 8.50 | I10: =Cálculos!$D$10 -> 8.50% | J10: =Cálculos!$D$14 -> R$ 19.78 | K10: R$ 72.59 | L10: =Cálculos!$D$18 -> 25.00% | M10: R$ 183.76 | N10: R$ 45.94 | O10: 25.00%
C11: =Produtos!D11 -> Mochila Executiva | D11: =Produtos!M11 -> R$ 86.80 | E11: =IFERROR(INDEX('Despesas Comerciais'!$G$8:$G$14,MATCH("Embalagem",'Despesas Comerciais'!$D$8:$D$14,0)),0) -> R$ 1.80 | F11: 27.00% | G11: R$ 6.99 | H11: R$ 8.50 | I11: =Cálculos!$D$10 -> 8.50% | J11: =Cálculos!$D$14 -> R$ 19.78 | K11: R$ 109.89 | L11: =Cálculos!$D$18 -> 25.00% | M11: R$ 278.19 | N11: R$ 69.55 | O11: 25.00%
C12: =Produtos!D12 -> Fone Bluetooth TWS | D12: =Produtos!M12 -> R$ 73.78 | E12: =IFERROR(INDEX('Despesas Comerciais'!$G$8:$G$14,MATCH("Embalagem",'Despesas Comerciais'!$D$8:$D$14,0)),0) -> R$ 1.80 | F12: 27.00% | G12: R$ 6.99 | H12: R$ 8.50 | I12: =Cálculos!$D$10 -> 8.50% | J12: =Cálculos!$D$14 -> R$ 19.78 | K12: R$ 96.87 | L12: =Cálculos!$D$18 -> 25.00% | M12: R$ 245.23 | N12: R$ 61.31 | O12: 25.00%
C13: =Produtos!D13 -> Garrafa Térmica 1L | D13: =Produtos!M13 -> R$ 36.95 | E13: =IFERROR(INDEX('Despesas Comerciais'!$G$8:$G$14,MATCH("Embalagem",'Despesas Comerciais'!$D$8:$D$14,0)),0) -> R$ 1.80 | F13: 27.00% | G13: R$ 6.99 | H13: R$ 8.50 | I13: =Cálculos!$D$10 -> 8.50% | J13: =Cálculos!$D$14 -> R$ 19.78 | K13: R$ 60.04 | L13: =Cálculos!$D$18 -> 25.00% | M13: R$ 151.99 | N13: R$ 38.00 | O13: 25.00%
C14: =Produtos!D14 -> Agenda Executiva 2026 | D14: =Produtos!M14 -> R$ 18.76 | E14: =IFERROR(INDEX('Despesas Comerciais'!$G$8:$G$14,MATCH("Embalagem",'Despesas Comerciais'!$D$8:$D$14,0)),0) -> R$ 1.80 | F14: 27.00% | G14: R$ 6.99 | H14: R$ 8.50 | I14: =Cálculos!$D$10 -> 8.50% | J14: =Cálculos!$D$14 -> R$ 19.78 | K14: R$ 41.85 | L14: =Cálculos!$D$18 -> 25.00% | M14: R$ 105.94 | N14: R$ 26.48 | O14: 25.00%
C15: =Produtos!D15 -> Boné Trucker | D15: =Produtos!M15 -> R$ 15.71 | E15: =IFERROR(INDEX('Despesas Comerciais'!$G$8:$G$14,MATCH("Embalagem",'Despesas Comerciais'!$D$8:$D$14,0)),0) -> R$ 1.80 | F15: 27.00% | G15: R$ 6.99 | H15: R$ 8.50 | I15: =Cálculos!$D$10 -> 8.50% | J15: =Cálculos!$D$14 -> R$ 19.78 | K15: R$ 38.80 | L15: =Cálculos!$D$18 -> 25.00% | M15: R$ 98.23 | N15: R$ 24.56 | O15: 25.00%

Sheet Prec Alimentação (hidden)
C2: PREC ALIMENTAÇÃO
C7: Prato / Item | D7: Ficha Técnica (ingredientes) | E7: Custo Ingredientes | F7: Rendimento (porções) | G7: CMV por Porção | H7: Perdas % | I7: CMV Ajustado | J7: Mão de Obra | K7: Despesas Operacionais | L7: Custo Total | M7: CMV Alvo % | N7: Preço de Venda | O7: Lucro Líquido | P7: Margem Líquida %
C8: Feijoada Completa | D8: Feijão, carnes, linguiça, farofa, arroz, couve | E8: R$ 68.00 | F8: 6 | G8: =IFERROR(E8/F8,0) -> R$ 11.33 | H8: 5.00% | I8: =G8*(1+H8) -> R$ 11.90 | J8: R$ 4.50 | K8: =Cálculos!$D$14*0.3 -> R$ 5.93 | L8: =I8+J8+K8 -> R$ 22.33 | M8: 30.00% | N8: =IFERROR(ROUND(L8/(1-M8-Cálculos!$D$10-Cálculos!$D$15),2),0) -> R$ 69.77 | O8: =N8-L8-N8*Cálculos!$D$10-N8*Cálculos!$D$15 -> R$ 20.93 | P8: =IFERROR(O8/N8,0) -> 30.00%
C9: Risoto de Camarão | D9: Arroz arbóreo, camarão, creme, queijo | E9: R$ 92.00 | F9: 4 | G9: R$ 23.00 | H9: 8.00% | I9: R$ 24.84 | J9: R$ 7.20 | K9: =Cálculos!$D$14*0.3 -> R$ 5.93 | L9: R$ 37.97 | M9: 32.00% | N9: =IFERROR(ROUND(L9/(1-M9-Cálculos!$D$10-Cálculos!$D$15),2),0) -> R$ 126.53 | O9: =N9-L9-N9*Cálculos!$D$10-N9*Cálculos!$D$15 -> R$ 40.49 | P9: 32.00%
C10: Salada Caesar | D10: Alface, frango, croutons, parmesão, molho | E10: R$ 34.00 | F10: 5 | G10: R$ 6.80 | H10: 12.00% | I10: R$ 7.62 | J10: R$ 3.10 | K10: =Cálculos!$D$14*0.3 -> R$ 5.93 | L10: R$ 16.65 | M10: 28.00% | N10: =IFERROR(ROUND(L10/(1-M10-Cálculos!$D$10-Cálculos!$D$15),2),0) -> R$ 48.95 | O10: =N10-L10-N10*Cálculos!$D$10-N10*Cálculos!$D$15 -> R$ 13.71 | P10: 28.00%
C11: Hambúrguer Artesanal | D11: Pão, blend 180g, queijo, bacon, molho | E11: R$ 28.00 | F11: 3 | G11: R$ 9.33 | H11: 4.00% | I11: R$ 9.71 | J11: R$ 5.40 | K11: =Cálculos!$D$14*0.3 -> R$ 5.93 | L11: R$ 21.04 | M11: 30.00% | N11: =IFERROR(ROUND(L11/(1-M11-Cálculos!$D$10-Cálculos!$D$15),2),0) -> R$ 65.73 | O11: =N11-L11-N11*Cálculos!$D$10-N11*Cálculos!$D$15 -> R$ 19.72 | P11: 30.00%
C12: Lasanha Bolonhesa | D12: Massa, carne moída, molho, queijo, presunto | E12: R$ 76.00 | F12: 8 | G12: R$ 9.50 | H12: 5.00% | I12: R$ 9.98 | J12: R$ 4.80 | K12: =Cálculos!$D$14*0.3 -> R$ 5.93 | L12: R$ 20.71 | M12: 30.00% | N12: =IFERROR(ROUND(L12/(1-M12-Cálculos!$D$10-Cálculos!$D$15),2),0) -> R$ 64.69 | O12: =N12-L12-N12*Cálculos!$D$10-N12*Cálculos!$D$15 -> R$ 19.41 | P12: 30.00%
C13: Filé ao Molho Madeira | D13: Filé mignon, cogumelos, creme, batata | E13: R$ 54.00 | F13: 3 | G13: R$ 18.00 | H13: 6.00% | I13: R$ 19.08 | J13: R$ 8.90 | K13: =Cálculos!$D$14*0.3 -> R$ 5.93 | L13: R$ 33.91 | M13: 33.00% | N13: =IFERROR(ROUND(L13/(1-M13-Cálculos!$D$10-Cálculos!$D$15),2),0) -> R$ 116.90 | O13: =N13-L13-N13*Cálculos!$D$10-N13*Cálculos!$D$15 -> R$ 38.58 | P13: 33.00%
C14: Açaí 500ml | D14: Açaí, granola, banana, leite condensado | E14: R$ 18.50 | F14: 2 | G14: R$ 9.25 | H14: 10.00% | I14: R$ 10.18 | J14: R$ 2.20 | K14: =Cálculos!$D$14*0.3 -> R$ 5.93 | L14: R$ 18.31 | M14: 25.00% | N14: =IFERROR(ROUND(L14/(1-M14-Cálculos!$D$10-Cálculos!$D$15),2),0) -> R$ 49.47 | O14: =N14-L14-N14*Cálculos!$D$10-N14*Cálculos!$D$15 -> R$ 12.37 | P14: 25.00%
C15: Marmita Executiva | D15: Arroz, feijão, proteína, salada, guarnição | E15: R$ 22.00 | F15: 2 | G15: R$ 11.00 | H15: 5.00% | I15: R$ 11.55 | J15: R$ 3.60 | K15: =Cálculos!$D$14*0.3 -> R$ 5.93 | L15: R$ 21.08 | M15: 28.00% | N15: =IFERROR(ROUND(L15/(1-M15-Cálculos!$D$10-Cálculos!$D$15),2),0) -> R$ 61.99 | O15: =N15-L15-N15*Cálculos!$D$10-N15*Cálculos!$D$15 -> R$ 17.36 | P15: 28.00%

Sheet Prec Artesanato (hidden)
C2: PREC ARTESANATO
C7: Peça | D7: Matéria-Prima | E7: Horas de Trabalho | F7: Valor Hora Artesão | G7: Custo Mão de Obra | H7: Energia | I7: Desgaste de Ferramentas | J7: Custo Total | K7: Lucro Desejado % | L7: Impostos % | M7: Preço de Venda | N7: Preço Sugerido Atacado | O7: Margem Líquida %
C8: =Produtos!D8 -> Camiseta Premium | D8: =Produtos!G8 -> R$ 22.00 | E8: 1.50 | F8: R$ 45.00 | G8: =E8*F8 -> R$ 67.50 | H8: R$ 1.20 | I8: R$ 2.50 | J8: =D8+G8+H8+I8 -> R$ 93.20 | K8: =Cálculos!$D$18 -> 25.00% | L8: =Cálculos!$D$10 -> 8.50% | M8: =IFERROR(ROUND(J8/(1-K8-L8),2),0) -> R$ 140.15 | N8: =ROUND(M8*0.7,2) -> R$ 98.11 | O8: =IFERROR((M8-J8-M8*L8)/M8,0) -> 25.00%
C9: =Produtos!D9 -> Caneca Cerâmica 350ml | D9: =Produtos!G9 -> R$ 8.50 | E9: 0.80 | F9: R$ 45.00 | G9: R$ 36.00 | H9: R$ 0.80 | I9: R$ 1.20 | J9: R$ 46.50 | K9: =Cálculos!$D$18 -> 25.00% | L9: =Cálculos!$D$10 -> 8.50% | M9: R$ 69.92 | N9: R$ 48.94 | O9: 25.00%
C10: =Produtos!D10 -> Kit Presente Gourmet | D10: =Produtos!G10 -> R$ 45.00 | E10: 2.00 | F10: R$ 45.00 | G10: R$ 90.00 | H10: R$ 1.60 | I10: R$ 3.00 | J10: R$ 139.60 | K10: =Cálculos!$D$18 -> 25.00% | L10: =Cálculos!$D$10 -> 8.50% | M10: R$ 209.92 | N10: R$ 146.94 | O10: 25.00%
C11: =Produtos!D11 -> Mochila Executiva | D11: =Produtos!G11 -> R$ 78.00 | E11: 3.50 | F11: R$ 45.00 | G11: R$ 157.50 | H11: R$ 2.40 | I11: R$ 4.50 | J11: R$ 242.40 | K11: =Cálculos!$D$18 -> 25.00% | L11: =Cálculos!$D$10 -> 8.50% | M11: R$ 364.51 | N11: R$ 255.16 | O11: 25.00%
C12: =Produtos!D12 -> Fone Bluetooth TWS | D12: =Produtos!G12 -> R$ 62.00 | E12: 1.20 | F12: R$ 45.00 | G12: R$ 54.00 | H12: R$ 1.00 | I12: R$ 1.80 | J12: R$ 118.80 | K12: =Cálculos!$D$18 -> 25.00% | L12: =Cálculos!$D$10 -> 8.50% | M12: R$ 178.65 | N12: R$ 125.06 | O12: 25.00%
C13: =Produtos!D13 -> Garrafa Térmica 1L | D13: =Produtos!G13 -> R$ 34.00 | E13: 1.00 | F13: R$ 45.00 | G13: R$ 45.00 | H13: R$ 0.90 | I13: R$ 1.50 | J13: R$ 81.40 | K13: =Cálculos!$D$18 -> 25.00% | L13: =Cálculos!$D$10 -> 8.50% | M13: R$ 122.41 | N13: R$ 85.69 | O13: 25.00%
C14: =Produtos!D14 -> Agenda Executiva 2026 | D14: =Produtos!G14 -> R$ 17.50 | E14: 0.60 | F14: R$ 45.00 | G14: R$ 27.00 | H14: R$ 0.50 | I14: R$ 0.80 | J14: R$ 45.80 | K14: =Cálculos!$D$18 -> 25.00% | L14: =Cálculos!$D$10 -> 8.50% | M14: R$ 68.87 | N14: R$ 48.21 | O14: 25.00%
C15: =Produtos!D15 -> Boné Trucker | D15: =Produtos!G15 -> R$ 14.00 | E15: 0.90 | F15: R$ 45.00 | G15: R$ 40.50 | H15: R$ 0.70 | I15: R$ 1.10 | J15: R$ 56.30 | K15: =Cálculos!$D$18 -> 25.00% | L15: =Cálculos!$D$10 -> 8.50% | M15: R$ 84.66 | N15: R$ 59.26 | O15: 25.00%

Sheet Prec Infoprodutos (hidden)
C2: PREC INFOPRODUTOS
C7: Infoproduto | D7: Categoria | E7: Custo de Produção | F7: Vendas Estimadas | G7: Custo Produção por Venda | H7: Marketing por Venda | I7: Comissão Afiliados % | J7: Taxa da Plataforma % | K7: Impostos % | L7: Total % s/ Preço | M7: Lucro Desejado % | N7: Preço de Venda | O7: Lucro Líquido | P7: Margem Líquida %
C8: Curso Online de Excel | D8: Curso | E8: R$ 18,000.00 | F8: 600 | G8: =IFERROR(E8/F8,0) -> R$ 30.00 | H8: R$ 38.00 | I8: 40.00% | J8: 9.99% | K8: =Cálculos!$D$10 -> 8.50% | L8: =I8+J8+K8 -> 58.49% | M8: =Cálculos!$D$18 -> 25.00% | N8: =IFERROR(ROUND((G8+H8)/(1-L8-M8),2),0) -> R$ 411.87 | O8: =N8-G8-H8-N8*L8 -> R$ 102.97 | P8: =IFERROR(O8/N8,0) -> 25.00%
C9: E-book Precificação | D9: E-book | E9: R$ 3,500.00 | F9: 1,500 | G9: R$ 2.33 | H9: R$ 9.50 | I9: 30.00% | J9: 9.99% | K9: =Cálculos!$D$10 -> 8.50% | L9: 48.49% | M9: =Cálculos!$D$18 -> 25.00% | N9: R$ 44.64 | O9: R$ 11.16 | P9: 25.00%
C10: Mentoria em Grupo | D10: Mentoria | E10: R$ 9,000.00 | F10: 80 | G10: R$ 112.50 | H10: R$ 120.00 | I10: 20.00% | J10: 4.99% | K10: =Cálculos!$D$10 -> 8.50% | L10: 33.49% | M10: =Cálculos!$D$18 -> 25.00% | N10: R$ 560.11 | O10: R$ 140.03 | P10: 25.00%
C11: Curso de Marketing Digital | D11: Curso | E11: R$ 24,000.00 | F11: 900 | G11: R$ 26.67 | H11: R$ 52.00 | I11: 40.00% | J11: 9.99% | K11: =Cálculos!$D$10 -> 8.50% | L11: 58.49% | M11: =Cálculos!$D$18 -> 25.00% | N11: R$ 476.48 | O11: R$ 119.12 | P11: 25.00%
C12: Templates Financeiros | D12: Template | E12: R$ 6,500.00 | F12: 1,200 | G12: R$ 5.42 | H12: R$ 14.00 | I12: 35.00% | J12: 9.99% | K12: =Cálculos!$D$10 -> 8.50% | L12: 53.49% | M12: =Cálculos!$D$18 -> 25.00% | N12: R$ 90.27 | O12: R$ 22.57 | P12: 25.00%
C13: Comunidade Premium | D13: Comunidade | E13: R$ 12,000.00 | F13: 400 | G13: R$ 30.00 | H13: R$ 28.00 | I13: 25.00% | J13: 6.99% | K13: =Cálculos!$D$10 -> 8.50% | L13: 40.49% | M13: =Cálculos!$D$18 -> 25.00% | N13: R$ 168.07 | O13: R$ 42.02 | P13: 25.00%

Sheet Prec Assinaturas (hidden)
C2: PREC ASSINATURAS
C7: Plano | D7: CAC | E7: Churn Mensal % | F7: Tempo de Vida (meses) | G7: CAC por Mês | H7: Suporte por Cliente | I7: Infraestrutura por Cliente | J7: Custo Total Mensal | K7: Impostos % | L7: Margem Desejada % | M7: Mensalidade | N7: LTV | O7: LTV / CAC | P7: Margem Líquida %
C8: Plano Básico | D8: R$ 180.00 | E8: 8.00% | F8: =IFERROR(1/E8,0) -> 12.50 | G8: =IFERROR(D8/F8,0) -> R$ 14.40 | H8: R$ 8.00 | I8: R$ 6.50 | J8: =G8+H8+I8 -> R$ 28.90 | K8: =Cálculos!$D$10 -> 8.50% | L8: =Cálculos!$D$18 -> 25.00% | M8: =IFERROR(ROUND(J8/(1-K8-L8),2),0) -> R$ 43.46 | N8: =M8*F8 -> R$ 543.25 | O8: =IFERROR(N8/D8,0) -> 3.02x | P8: =IFERROR((M8-J8-M8*K8)/M8,0) -> 25.00%
C9: Plano Profissional | D9: R$ 420.00 | E9: 5.00% | F9: 20.00 | G9: R$ 21.00 | H9: R$ 18.00 | I9: R$ 14.00 | J9: R$ 53.00 | K9: =Cálculos!$D$10 -> 8.50% | L9: =Cálculos!$D$18 -> 25.00% | M9: R$ 79.70 | N9: R$ 1,594.00 | O9: 3.80x | P9: 25.00%
C10: Plano Empresarial | D10: R$ 1,200.00 | E10: 3.00% | F10: 33.33 | G10: R$ 36.00 | H10: R$ 55.00 | I10: R$ 38.00 | J10: R$ 129.00 | K10: =Cálculos!$D$10 -> 8.50% | L10: =Cálculos!$D$18 -> 25.00% | M10: R$ 193.98 | N10: R$ 6,466.00 | O10: 5.39x | P10: 25.00%
C11: Plano Enterprise | D11: R$ 3,500.00 | E11: 2.00% | F11: 50.00 | G11: R$ 70.00 | H11: R$ 180.00 | I11: R$ 120.00 | J11: R$ 370.00 | K11: =Cálculos!$D$10 -> 8.50% | L11: =Cálculos!$D$18 -> 25.00% | M11: R$ 556.39 | N11: R$ 27,819.50 | O11: 7.95x | P11: 25.00%
C12: Plano Anual Básico | D12: R$ 150.00 | E12: 4.00% | F12: 25.00 | G12: R$ 6.00 | H12: R$ 7.00 | I12: R$ 6.00 | J12: R$ 19.00 | K12: =Cálculos!$D$10 -> 8.50% | L12: =Cálculos!$D$18 -> 25.00% | M12: R$ 28.57 | N12: R$ 714.25 | O12: 4.76x | P12: 25.00%
C13: Plano Anual Pro | D13: R$ 380.00 | E13: 2.50% | F13: 40.00 | G13: R$ 9.50 | H13: R$ 16.00 | I13: R$ 13.00 | J13: R$ 38.50 | K13: =Cálculos!$D$10 -> 8.50% | L13: =Cálculos!$D$18 -> 25.00% | M13: R$ 57.89 | N13: R$ 2,315.60 | O13: 6.09x | P13: 24.99%

Sheet Simulador Cenários (hidden)
C2: SIMULADOR CENÁRIOS
C7: Variável | D7: Atual | E7: Otimista | F7: Pessimista | G7: Personalizado
C8: Variação de custo (%) | D8: 0 | E8: (10.00%) | F8: 15.00% | G8: 5.00%
C9: Margem/Lucro desejado (%) | D9: 25.00% | E9: 32.00% | F9: 18.00% | G9: 28.00%
C10: Carga tributária (%) | D10: =Cálculos!$D$10 -> 8.50% | E10: =Cálculos!$D$10*0.9 -> 7.65% | F10: =Cálculos!$D$10*1.15 -> 9.78% | G10: =Cálculos!$D$10 -> 8.50%
C11: Markup aplicado | D11: 2.50x | E11: 2.90x | F11: 2.10x | G11: 2.60x
C12: Despesas comerciais (%) | D12: =Cálculos!$D$15 -> 29.49% | E12: =Cálculos!$D$15*0.88 -> 25.95% | F12: =Cálculos!$D$15*1.2 -> 35.39% | G12: =Cálculos!$D$15 -> 29.49%
C13: Volume de vendas (un.) | D13: 1,200 | E13: 1,560 | F13: 840 | G13: 1,320
C15: RESULTADOS SIMULADOS
C16: Custo médio por unidade | D16: =Cálculos!$D$48/SUM(Cálculos!$U$25:$U$39)*(1+D$8) -> R$ 138.50 | E16: =Cálculos!$D$48/SUM(Cálculos!$U$25:$U$39)*(1+E$8) -> R$ 124.65 | F16: =Cálculos!$D$48/SUM(Cálculos!$U$25:$U$39)*(1+F$8) -> R$ 159.28 | G16: =Cálculos!$D$48/SUM(Cálculos!$U$25:$U$39)*(1+G$8) -> R$ 145.43
C17: Preço médio simulado | D17: =Cálculos!$D$51*(1+D$8)*D$11/Cálculos!$D$17 -> R$ 346.25 | E17: =Cálculos!$D$51*(1+E$8)*E$11/Cálculos!$D$17 -> R$ 361.49 | F17: =Cálculos!$D$51*(1+F$8)*F$11/Cálculos!$D$17 -> R$ 334.48 | G17: =Cálculos!$D$51*(1+G$8)*G$11/Cálculos!$D$17 -> R$ 378.11
C18: Receita total simulada | D18: =D17*D$13 -> R$ 415,505.17 | E18: =E17*E$13 -> R$ 563,923.62 | F18: =F17*F$13 -> R$ 280,964.60 | G18: =G17*G$13 -> R$ 499,104.81
C19: Custo total simulado | D19: =D16*D$13 -> R$ 166,201.73 | E19: =E16*E$13 -> R$ 194,456.02 | F19: =F16*F$13 -> R$ 133,792.39 | G19: =G16*G$13 -> R$ 191,963.00
C20: Tributos totais | D20: =D18*D$10 -> R$ 35,317.94 | E20: =E18*E$10 -> R$ 43,140.16 | F20: =F18*F$10 -> R$ 27,464.29 | G20: =G18*G$10 -> R$ 42,423.91
C21: Despesas comerciais totais | D21: =D18*D$12 -> R$ 122,532.48 | E21: =E18*E$12 -> R$ 146,344.95 | F21: =F18*F$12 -> R$ 99,427.75 | G21: =G18*G$12 -> R$ 147,186.01
C22: Custos fixos | D22: =Cálculos!$D$13 -> R$ 25,230.00 | E22: =Cálculos!$D$13 -> R$ 25,230.00 | F22: =Cálculos!$D$13 -> R$ 25,230.00 | G22: =Cálculos!$D$13 -> R$ 25,230.00
C23: Lucro líquido total | D23: =D18-D19-D20-D21-D22 -> R$ 66,223.03 | E23: =E18-E19-E20-E21-E22 -> R$ 154,752.49 | F23: =F18-F19-F20-F21-F22 -> (R$ 4,949.84) | G23: =G18-G19-G20-G21-G22 -> R$ 92,301.90
C24: Margem líquida (%) | D24: =IFERROR(D23/D18,0) -> 15.94% | E24: =IFERROR(E23/E18,0) -> 27.44% | F24: =IFERROR(F23/F18,0) -> (1.76%) | G24: =IFERROR(G23/G18,0) -> 18.49%
C25: Lucro por unidade | D25: =IFERROR(D23/D$13,0) -> R$ 55.19 | E25: =IFERROR(E23/E$13,0) -> R$ 99.20 | F25: =IFERROR(F23/F$13,0) -> (R$ 5.89) | G25: =IFERROR(G23/G$13,0) -> R$ 69.93

Sheet Comparativo Métodos (hidden)
C2: COMPARATIVO MÉTODOS
C7: Produto | D7: Custo Total | E7: Markup | F7: Margem | G7: Lucro Desejado | H7: Comércio | I7: Indústria | J7: E-commerce | K7: Delivery | L7: Artesanato | M7: Menor Preço | N7: Maior Preço | O7: Diferença % | P7: Método de Maior Preço
C8: =Produtos!D8 -> Camiseta Premium | D8: =Cálculos!H25 -> R$ 46.48 | E8: ='Prec Markup'!G8 -> R$ 116.19 | F8: ='Prec Margem'!G8 -> R$ 162.86 | G8: ='Prec Lucro Desejado'!G8 -> R$ 115.94 | H8: ='Prec Comércio'!K8 -> R$ 64.00 | I8: ='Prec Indústria'!O8 -> R$ 198.39 | J8: ='Prec E-commerce'!N8 -> R$ 140.14 | K8: ='Prec Delivery'!M8 -> R$ 126.04 | L8: ='Prec Artesanato'!M8 -> R$ 140.15 | M8: =MIN(E8:L8) -> R$ 64.00 | N8: =MAX(E8:L8) -> R$ 198.39 | O8: =IFERROR(N8/M8-1,0) -> 209.98% | P8: =IFERROR(INDEX($E$7:$L$7,MATCH(MAX(E8:L8),E8:L8,0)),"-") -> Indústria
C9: =Produtos!D9 -> Caneca Cerâmica 350ml | D9: =Cálculos!H26 -> R$ 29.76 | E9: ='Prec Markup'!G9 -> R$ 74.39 | F9: ='Prec Margem'!G9 -> R$ 117.68 | G9: ='Prec Lucro Desejado'!G9 -> R$ 82.24 | H9: ='Prec Comércio'!K9 -> R$ 24.25 | I9: ='Prec Indústria'!O9 -> R$ 129.78 | J9: ='Prec E-commerce'!N9 -> R$ 101.27 | K9: ='Prec Delivery'!M9 -> R$ 83.71 | L9: ='Prec Artesanato'!M9 -> R$ 69.92 | M9: R$ 24.25 | N9: R$ 129.78 | O9: 435.18% | P9: Indústria
C10: =Produtos!D10 -> Kit Presente Gourmet | D10: =Cálculos!H27 -> R$ 69.28 | E10: ='Prec Markup'!G10 -> R$ 173.19 | F10: ='Prec Margem'!G10 -> R$ 224.47 | G10: ='Prec Lucro Desejado'!G10 -> R$ 161.90 | H10: ='Prec Comércio'!K10 -> R$ 120.00 | I10: ='Prec Indústria'!O10 -> R$ 308.66 | J10: ='Prec E-commerce'!N10 -> R$ 193.15 | K10: ='Prec Delivery'!M10 -> R$ 183.76 | L10: ='Prec Artesanato'!M10 -> R$ 209.92 | M10: R$ 120.00 | N10: R$ 308.66 | O10: 157.22% | P10: Indústria
C11: =Produtos!D11 -> Mochila Executiva | D11: =Cálculos!H28 -> R$ 106.58 | E11: ='Prec Markup'!G11 -> R$ 266.44 | F11: ='Prec Margem'!G11 -> R$ 325.25 | G11: ='Prec Lucro Desejado'!G11 -> R$ 237.08 | H11: ='Prec Comércio'!K11 -> R$ 210.00 | I11: ='Prec Indústria'!O11 -> R$ 461.55 | J11: ='Prec E-commerce'!N11 -> R$ 279.88 | K11: ='Prec Delivery'!M11 -> R$ 278.19 | L11: ='Prec Artesanato'!M11 -> R$ 364.51 | M11: R$ 210.00 | N11: R$ 461.55 | O11: 119.79% | P11: Indústria
C12: =Produtos!D12 -> Fone Bluetooth TWS | D12: =Cálculos!H29 -> R$ 93.56 | E12: ='Prec Markup'!G12 -> R$ 233.89 | F12: ='Prec Margem'!G12 -> R$ 290.07 | G12: ='Prec Lucro Desejado'!G12 -> R$ 210.85 | H12: ='Prec Comércio'!K12 -> R$ 178.83 | I12: ='Prec Indústria'!O12 -> R$ 322.47 | J12: ='Prec E-commerce'!N12 -> R$ 249.60 | K12: ='Prec Delivery'!M12 -> R$ 245.23 | L12: ='Prec Artesanato'!M12 -> R$ 178.65 | M12: R$ 178.65 | N12: R$ 322.47 | O12: 80.50% | P12: Indústria
C13: =Produtos!D13 -> Garrafa Térmica 1L | D13: =Cálculos!H30 -> R$ 56.73 | E13: ='Prec Markup'!G13 -> R$ 141.81 | F13: ='Prec Margem'!G13 -> R$ 190.56 | G13: ='Prec Lucro Desejado'!G13 -> R$ 136.60 | H13: ='Prec Comércio'!K13 -> R$ 90.83 | I13: ='Prec Indústria'!O13 -> R$ 214.68 | J13: ='Prec E-commerce'!N13 -> R$ 163.97 | K13: ='Prec Delivery'!M13 -> R$ 151.99 | L13: ='Prec Artesanato'!M13 -> R$ 122.41 | M13: R$ 90.83 | N13: R$ 214.68 | O13: 136.35% | P13: Indústria
C14: =Produtos!D14 -> Agenda Executiva 2026 | D14: =Cálculos!H31 -> R$ 38.54 | E14: ='Prec Markup'!G14 -> R$ 96.34 | F14: ='Prec Margem'!G14 -> R$ 141.41 | G14: ='Prec Lucro Desejado'!G14 -> R$ 99.93 | H14: ='Prec Comércio'!K14 -> R$ 46.25 | I14: ='Prec Indústria'!O14 -> R$ 145.69 | J14: ='Prec E-commerce'!N14 -> R$ 121.69 | K14: ='Prec Delivery'!M14 -> R$ 105.94 | L14: ='Prec Artesanato'!M14 -> R$ 68.87 | M14: R$ 46.25 | N14: R$ 145.69 | O14: 215.01% | P14: Indústria
C15: =Produtos!D15 -> Boné Trucker | D15: =Cálculos!H32 -> R$ 35.49 | E15: ='Prec Markup'!G15 -> R$ 88.72 | F15: ='Prec Margem'!G15 -> R$ 133.18 | G15: ='Prec Lucro Desejado'!G15 -> R$ 93.79 | H15: ='Prec Comércio'!K15 -> R$ 38.39 | I15: ='Prec Indústria'!O15 -> R$ 152.37 | J15: ='Prec E-commerce'!N15 -> R$ 114.60 | K15: ='Prec Delivery'!M15 -> R$ 98.23 | L15: ='Prec Artesanato'!M15 -> R$ 84.66 | M15: R$ 38.39 | N15: R$ 152.37 | O15: 296.90% | P15: Indústria

Sheet Ponto de Equilíbrio (hidden)
C2: PONTO DE EQUILÍBRIO
C7: PAINEL CONSOLIDADO
C8: Custos fixos totais (mês) | D8: =Cálculos!$D$13 -> R$ 25,230.00
C9: Preço médio de venda (produtos) | D9: =IFERROR(AVERAGE(Cálculos!$I$25:$I$32),0) -> R$ 148.87
C10: Custo variável médio por unidade (produtos) | D10: =$D$9-$D$11 -> R$ 110.13
C11: Margem de contribuição unitária (produtos) | D11: =IFERROR(AVERAGE(Cálculos!$R$25:$R$32),0) -> R$ 38.74
C12: Margem de contribuição (%) | D12: =IFERROR($D$11/$D$9,0) -> 26.02%
C13: Quantidade no ponto de equilíbrio (un.) | D13: =IFERROR($D$8/$D$11,0) -> 651
C14: Faturamento no ponto de equilíbrio | D14: =IFERROR($D$8/$D$12,0) -> R$ 96,950.32
C15: Receita atual estimada | D15: =Cálculos!$D$47 -> R$ 429,701.60
C16: Margem de segurança (R$) | D16: =$D$15-$D$14 -> R$ 332,751.28
C17: Margem de segurança (%) | D17: =IFERROR($D$16/$D$15,0) -> 77.44%
C18: Grau de alavancagem operacional | D18: =IFERROR(Cálculos!$D$61/Cálculos!$D$50,0) -> 1.45
C21: PONTO DE EQUILÍBRIO POR ITEM
C23: Item | D23: Preço | E23: Custo Variável Un. | F23: MC Unitária | G23: MC % | H23: Qtd. p/ Equilíbrio | I23: Faturamento p/ Equilíbrio
C24: =Cálculos!C25 -> Camiseta Premium | D24: =Cálculos!I25 -> R$ 116.19 | E24: =Cálculos!I25-Cálculos!R25 -> R$ 84.64 | F24: =Cálculos!R25 -> R$ 31.55 | G24: =Cálculos!S25 -> 27.15% | H24: =IFERROR($D$8/COUNTA(Cálculos!$C$25:$C$39)/F24,0) -> 53 | I24: =H24*D24 -> R$ 6,194.46
C25: =Cálculos!C26 -> Caneca Cerâmica 350ml | D25: =Cálculos!I26 -> R$ 74.39 | E25: =Cálculos!I26-Cálculos!R26 -> R$ 52.04 | F25: =Cálculos!R26 -> R$ 22.35 | G25: =Cálculos!S26 -> 30.04% | H25: =IFERROR($D$8/COUNTA(Cálculos!$C$25:$C$39)/F25,0) -> 75 | I25: R$ 5,598.58
C26: =Cálculos!C27 -> Kit Presente Gourmet | D26: =Cálculos!I27 -> R$ 173.19 | E26: =Cálculos!I27-Cálculos!R27 -> R$ 129.09 | F26: =Cálculos!R27 -> R$ 44.10 | G26: =Cálculos!S27 -> 25.46% | H26: =IFERROR($D$8/COUNTA(Cálculos!$C$25:$C$39)/F26,0) -> 38 | I26: R$ 6,606.30
C27: =Cálculos!C28 -> Mochila Executiva | D27: =Cálculos!I28 -> R$ 266.44 | E27: =Cálculos!I28-Cálculos!R28 -> R$ 201.82 | F27: =Cálculos!R28 -> R$ 64.62 | G27: =Cálculos!S28 -> 24.25% | H27: =IFERROR($D$8/COUNTA(Cálculos!$C$25:$C$39)/F27,0) -> 26 | I27: R$ 6,935.25
C28: =Cálculos!C29 -> Fone Bluetooth TWS | D28: =Cálculos!I29 -> R$ 233.89 | E28: =Cálculos!I29-Cálculos!R29 -> R$ 176.43 | F28: =Cálculos!R29 -> R$ 57.46 | G28: =Cálculos!S29 -> 24.57% | H28: =IFERROR($D$8/COUNTA(Cálculos!$C$25:$C$39)/F28,0) -> 29 | I28: R$ 6,847.13
C29: =Cálculos!C30 -> Garrafa Térmica 1L | D29: =Cálculos!I30 -> R$ 141.81 | E29: =Cálculos!I30-Cálculos!R30 -> R$ 104.62 | F29: =Cálculos!R30 -> R$ 37.19 | G29: =Cálculos!S30 -> 26.22% | H29: =IFERROR($D$8/COUNTA(Cálculos!$C$25:$C$39)/F29,0) -> 45 | I29: R$ 6,414.30
C30: =Cálculos!C31 -> Agenda Executiva 2026 | D30: =Cálculos!I31 -> R$ 96.34 | E30: =Cálculos!I31-Cálculos!R31 -> R$ 69.16 | F30: =Cálculos!R31 -> R$ 27.18 | G30: =Cálculos!S31 -> 28.21% | H30: =IFERROR($D$8/COUNTA(Cálculos!$C$25:$C$39)/F30,0) -> 62 | I30: R$ 5,962.33
C31: =Cálculos!C32 -> Boné Trucker | D31: =Cálculos!I32 -> R$ 88.72 | E31: =Cálculos!I32-Cálculos!R32 -> R$ 63.22 | F31: =Cálculos!R32 -> R$ 25.50 | G31: =Cálculos!S32 -> 28.74% | H31: =IFERROR($D$8/COUNTA(Cálculos!$C$25:$C$39)/F31,0) -> 66 | I31: R$ 5,851.81
C32: =Cálculos!C33 -> Consultoria Empresarial | D32: =Cálculos!I33 -> R$ 5,731.53 | E32: =Cálculos!I33-Cálculos!R33 -> R$ 4,291.21 | F32: =Cálculos!R33 -> R$ 1,440.32 | G32: =Cálculos!S33 -> 25.13% | H32: =IFERROR($D$8/COUNTA(Cálculos!$C$25:$C$39)/F32,0) -> 1 | I32: R$ 6,693.25
C33: =Cálculos!C34 -> Criação de Identidade Visual | D33: =Cálculos!I34 -> R$ 13,785.37 | E33: =Cálculos!I34-Cálculos!R34 -> R$ 10,090.86 | F33: =Cálculos!R34 -> R$ 3,694.51 | G33: =Cálculos!S34 -> 26.80% | H33: =IFERROR($D$8/COUNTA(Cálculos!$C$25:$C$39)/F33,0) -> 0 | I33: R$ 6,276.07
C34: =Cálculos!C35 -> Manutenção Predial | D34: =Cálculos!I35 -> R$ 2,017.61 | E34: =Cálculos!I35-Cálculos!R35 -> R$ 1,510.29 | F34: =Cálculos!R35 -> R$ 507.32 | G34: =Cálculos!S35 -> 25.14% | H34: =IFERROR($D$8/COUNTA(Cálculos!$C$25:$C$39)/F34,0) -> 3 | I34: R$ 6,689.31
C35: =Cálculos!C36 -> Desenvolvimento de Sistema | D35: =Cálculos!I36 -> R$ 74,079.55 | E35: =Cálculos!I36-Cálculos!R36 -> R$ 54,706.62 | F35: =Cálculos!R36 -> R$ 19,372.93 | G35: =Cálculos!S36 -> 26.15% | H35: =IFERROR($D$8/COUNTA(Cálculos!$C$25:$C$39)/F35,0) -> 0 | I35: R$ 6,431.75
C36: =Cálculos!C37 -> Assessoria Contábil Mensal | D36: =Cálculos!I37 -> R$ 4,852.84 | E36: =Cálculos!I37-Cálculos!R37 -> R$ 3,567.39 | F36: =Cálculos!R37 -> R$ 1,285.45 | G36: =Cálculos!S37 -> 26.49% | H36: =IFERROR($D$8/COUNTA(Cálculos!$C$25:$C$39)/F36,0) -> 1 | I36: R$ 6,349.92
C37: =Cálculos!C38 -> Projeto Arquitetônico | D37: =Cálculos!I38 -> R$ 40,027.27 | E37: =Cálculos!I38-Cálculos!R38 -> R$ 29,690.16 | F37: =Cálculos!R38 -> R$ 10,337.11 | G37: =Cálculos!S38 -> 25.83% | H37: =IFERROR($D$8/COUNTA(Cálculos!$C$25:$C$39)/F37,0) -> 0 | I37: R$ 6,513.03
C38: =Cálculos!C39 -> Treinamento Corporativo | D38: =Cálculos!I39 -> R$ 6,460.23 | E38: =Cálculos!I39-Cálculos!R39 -> R$ 4,898.04 | F38: =Cálculos!R39 -> R$ 1,562.19 | G38: =Cálculos!S39 -> 24.18% | H38: =IFERROR($D$8/COUNTA(Cálculos!$C$25:$C$39)/F38,0) -> 1 | I38: R$ 6,955.69

Sheet Margem Contribuição (hidden)
C2: MARGEM CONTRIBUIÇÃO
C7: Item | D7: Tipo | E7: Preço de Venda | F7: Custo Variável Unitário | G7: Tributos Unitários | H7: Despesas Comerciais Un. | I7: Margem de Contribuição | J7: MC % | K7: Classificação
C8: =Cálculos!C25 -> Camiseta Premium | D8: =Cálculos!D25 -> Produto | E8: =Cálculos!I25 -> R$ 116.19 | F8: =Cálculos!F25 -> R$ 26.70 | G8: =Cálculos!K25 -> R$ 9.88 | H8: =Cálculos!L25 -> R$ 48.06 | I8: =E8-F8-G8-H8 -> R$ 31.55 | J8: =IFERROR(I8/E8,0) -> 27.15% | K8: =IF(J8>=0.35,"Excelente",IF(J8>=0.25,"Boa",IF(J8>=0.15,"Aceitável","Crítica"))) -> Boa
C9: =Cálculos!C26 -> Caneca Cerâmica 350ml | D9: =Cálculos!D26 -> Produto | E9: =Cálculos!I26 -> R$ 74.39 | F9: =Cálculos!F26 -> R$ 9.98 | G9: =Cálculos!K26 -> R$ 6.32 | H9: =Cálculos!L26 -> R$ 35.74 | I9: R$ 22.35 | J9: 30.04% | K9: Boa
C10: =Cálculos!C27 -> Kit Presente Gourmet | D10: =Cálculos!D27 -> Produto | E10: =Cálculos!I27 -> R$ 173.19 | F10: =Cálculos!F27 -> R$ 49.50 | G10: =Cálculos!K27 -> R$ 14.72 | H10: =Cálculos!L27 -> R$ 64.87 | I10: R$ 44.10 | J10: 25.46% | K10: Boa
C11: =Cálculos!C28 -> Mochila Executiva | D11: =Cálculos!D28 -> Produto | E11: =Cálculos!I28 -> R$ 266.44 | F11: =Cálculos!F28 -> R$ 86.80 | G11: =Cálculos!K28 -> R$ 22.65 | H11: =Cálculos!L28 -> R$ 92.37 | I11: R$ 64.62 | J11: 24.25% | K11: Aceitável
C12: =Cálculos!C29 -> Fone Bluetooth TWS | D12: =Cálculos!D29 -> Produto | E12: =Cálculos!I29 -> R$ 233.89 | F12: =Cálculos!F29 -> R$ 73.78 | G12: =Cálculos!K29 -> R$ 19.88 | H12: =Cálculos!L29 -> R$ 82.77 | I12: R$ 57.46 | J12: 24.57% | K12: Aceitável
C13: =Cálculos!C30 -> Garrafa Térmica 1L | D13: =Cálculos!D30 -> Produto | E13: =Cálculos!I30 -> R$ 141.81 | F13: =Cálculos!F30 -> R$ 36.95 | G13: =Cálculos!K30 -> R$ 12.05 | H13: =Cálculos!L30 -> R$ 55.62 | I13: R$ 37.19 | J13: 26.22% | K13: Boa
C14: =Cálculos!C31 -> Agenda Executiva 2026 | D14: =Cálculos!D31 -> Produto | E14: =Cálculos!I31 -> R$ 96.34 | F14: =Cálculos!F31 -> R$ 18.76 | G14: =Cálculos!K31 -> R$ 8.19 | H14: =Cálculos!L31 -> R$ 42.21 | I14: R$ 27.18 | J14: 28.21% | K14: Boa
C15: =Cálculos!C32 -> Boné Trucker | D15: =Cálculos!D32 -> Produto | E15: =Cálculos!I32 -> R$ 88.72 | F15: =Cálculos!F32 -> R$ 15.71 | G15: =Cálculos!K32 -> R$ 7.54 | H15: =Cálculos!L32 -> R$ 39.96 | I15: R$ 25.50 | J15: 28.74% | K15: Boa
C16: =Cálculos!C33 -> Consultoria Empresarial | D16: =Cálculos!D33 -> Serviço | E16: =Cálculos!I33 -> R$ 5,731.53 | F16: =Cálculos!F33 -> R$ 2,100.00 | G16: =Cálculos!K33 -> R$ 487.18 | H16: =Cálculos!L33 -> R$ 1,704.03 | I16: R$ 1,440.32 | J16: 25.13% | K16: Boa
C17: =Cálculos!C34 -> Criação de Identidade Visual | D17: =Cálculos!D34 -> Serviço | E17: =Cálculos!I34 -> R$ 13,785.37 | F17: =Cálculos!F34 -> R$ 4,840.00 | G17: =Cálculos!K34 -> R$ 1,171.76 | H17: =Cálculos!L34 -> R$ 4,079.11 | I17: R$ 3,694.51 | J17: 26.80% | K17: Boa
C18: =Cálculos!C35 -> Manutenção Predial | D18: =Cálculos!D35 -> Serviço | E18: =Cálculos!I35 -> R$ 2,017.61 | F18: =Cálculos!F35 -> R$ 730.00 | G18: =Cálculos!K35 -> R$ 171.50 | H18: =Cálculos!L35 -> R$ 608.79 | I18: R$ 507.32 | J18: 25.14% | K18: Boa
C19: =Cálculos!C36 -> Desenvolvimento de Sistema | D19: =Cálculos!D36 -> Serviço | E19: =Cálculos!I36 -> R$ 74,079.55 | F19: =Cálculos!F36 -> R$ 26,550.00 | G19: =Cálculos!K36 -> R$ 6,296.76 | H19: =Cálculos!L36 -> R$ 21,859.86 | I19: R$ 19,372.93 | J19: 26.15% | K19: Boa
C20: =Cálculos!C37 -> Assessoria Contábil Mensal | D20: =Cálculos!D37 -> Serviço | E20: =Cálculos!I37 -> R$ 4,852.84 | F20: =Cálculos!F37 -> R$ 1,710.00 | G20: =Cálculos!K37 -> R$ 412.49 | H20: =Cálculos!L37 -> R$ 1,444.90 | I20: R$ 1,285.45 | J20: 26.49% | K20: Boa
C21: =Cálculos!C38 -> Projeto Arquitetônico | D21: =Cálculos!D38 -> Serviço | E21: =Cálculos!I38 -> R$ 40,027.27 | F21: =Cálculos!F38 -> R$ 14,470.00 | G21: =Cálculos!K38 -> R$ 3,402.32 | H21: =Cálculos!L38 -> R$ 11,817.84 | I21: R$ 10,337.11 | J21: 25.83% | K21: Boa
C22: =Cálculos!C39 -> Treinamento Corporativo | D22: =Cálculos!D39 -> Serviço | E22: =Cálculos!I39 -> R$ 6,460.23 | F22: =Cálculos!F39 -> R$ 2,430.00 | G22: =Cálculos!K39 -> R$ 549.12 | H22: =Cálculos!L39 -> R$ 1,918.92 | I22: R$ 1,562.19 | J22: 24.18% | K22: Aceitável

Sheet Lucratividade (hidden)
C2: LUCRATIVIDADE
C7: Item | D7: Volume Mensal | E7: Receita | F7: Custo Total | G7: Lucro Bruto | H7: Lucro Líquido | I7: Margem Bruta % | J7: Margem Líquida % | K7: Rentabilidade % | L7: Lucro Total Mensal
C8: =Cálculos!C25 -> Camiseta Premium | D8: =Cálculos!U25 -> 220 | E8: =Cálculos!J25 -> R$ 25,561.80 | F8: =Cálculos!H25 -> R$ 46.48 | G8: =Cálculos!M25 -> R$ 89.49 | H8: =Cálculos!N25 -> R$ 11.77 | I8: =Cálculos!O25 -> 77.02% | J8: =Cálculos!P25 -> 10.13% | K8: =IFERROR(H8/F8,0) -> 25.33% | L8: =H8*D8 -> R$ 2,590.37
C9: =Cálculos!C26 -> Caneca Cerâmica 350ml | D9: =Cálculos!U26 -> 380 | E9: =Cálculos!J26 -> R$ 28,268.20 | F9: =Cálculos!H26 -> R$ 29.76 | G9: =Cálculos!M26 -> R$ 64.41 | H9: =Cálculos!N26 -> R$ 2.57 | I9: =Cálculos!O26 -> 86.58% | J9: =Cálculos!P26 -> 3.46% | K9: 8.65% | L9: R$ 978.21
C10: =Cálculos!C27 -> Kit Presente Gourmet | D10: =Cálculos!U27 -> 60 | E10: =Cálculos!J27 -> R$ 10,391.40 | F10: =Cálculos!H27 -> R$ 69.28 | G10: =Cálculos!M27 -> R$ 123.69 | H10: =Cálculos!N27 -> R$ 24.32 | I10: =Cálculos!O27 -> 71.42% | J10: =Cálculos!P27 -> 14.04% | K10: 35.11% | L10: R$ 1,459.21
C11: =Cálculos!C28 -> Mochila Executiva | D11: =Cálculos!U28 -> 45 | E11: =Cálculos!J28 -> R$ 11,989.80 | F11: =Cálculos!H28 -> R$ 106.58 | G11: =Cálculos!M28 -> R$ 179.64 | H11: =Cálculos!N28 -> R$ 44.84 | I11: =Cálculos!O28 -> 67.42% | J11: =Cálculos!P28 -> 16.83% | K11: 42.08% | L11: R$ 2,018.00
C12: =Cálculos!C29 -> Fone Bluetooth TWS | D12: =Cálculos!U29 -> 130 | E12: =Cálculos!J29 -> R$ 30,405.70 | F12: =Cálculos!H29 -> R$ 93.56 | G12: =Cálculos!M29 -> R$ 160.11 | H12: =Cálculos!N29 -> R$ 37.68 | I12: =Cálculos!O29 -> 68.46% | J12: =Cálculos!P29 -> 16.11% | K12: 40.28% | L12: R$ 4,898.42
C13: =Cálculos!C30 -> Garrafa Térmica 1L | D13: =Cálculos!U30 -> 150 | E13: =Cálculos!J30 -> R$ 21,271.50 | F13: =Cálculos!H30 -> R$ 56.73 | G13: =Cálculos!M30 -> R$ 104.86 | H13: =Cálculos!N30 -> R$ 17.41 | I13: =Cálculos!O30 -> 73.94% | J13: =Cálculos!P30 -> 12.28% | K13: 30.69% | L13: R$ 2,611.71
C14: =Cálculos!C31 -> Agenda Executiva 2026 | D14: =Cálculos!U31 -> 110 | E14: =Cálculos!J31 -> R$ 10,597.40 | F14: =Cálculos!H31 -> R$ 38.54 | G14: =Cálculos!M31 -> R$ 77.58 | H14: =Cálculos!N31 -> R$ 7.40 | I14: =Cálculos!O31 -> 80.52% | J14: =Cálculos!P31 -> 7.68% | K14: 19.21% | L14: R$ 814.32
C15: =Cálculos!C32 -> Boné Trucker | D15: =Cálculos!U32 -> 105 | E15: =Cálculos!J32 -> R$ 9,315.60 | F15: =Cálculos!H32 -> R$ 35.49 | G15: =Cálculos!M32 -> R$ 73.01 | H15: =Cálculos!N32 -> R$ 5.73 | I15: =Cálculos!O32 -> 82.29% | J15: =Cálculos!P32 -> 6.45% | K15: 16.13% | L15: R$ 601.23
C16: =Cálculos!C33 -> Consultoria Empresarial | D16: =Cálculos!U33 -> 6 | E16: =Cálculos!J33 -> R$ 34,389.18 | F16: =Cálculos!H33 -> R$ 2,292.61 | G16: =Cálculos!M33 -> R$ 3,631.53 | H16: =Cálculos!N33 -> R$ 1,247.71 | I16: =Cálculos!O33 -> 63.36% | J16: =Cálculos!P33 -> 21.77% | K16: 54.42% | L16: R$ 7,486.25
C17: =Cálculos!C34 -> Criação de Identidade Visual | D17: =Cálculos!U34 -> 2 | E17: =Cálculos!J34 -> R$ 27,570.74 | F17: =Cálculos!H34 -> R$ 5,514.15 | G17: =Cálculos!M34 -> R$ 8,945.37 | H17: =Cálculos!N34 -> R$ 3,020.36 | I17: =Cálculos!O34 -> 64.89% | J17: =Cálculos!P34 -> 21.91% | K17: 54.77% | L17: R$ 6,040.72
C18: =Cálculos!C35 -> Manutenção Predial | D18: =Cálculos!U35 -> 18 | E18: =Cálculos!J35 -> R$ 36,316.98 | F18: =Cálculos!H35 -> R$ 807.05 | G18: =Cálculos!M35 -> R$ 1,287.61 | H18: =Cálculos!N35 -> R$ 430.27 | I18: =Cálculos!O35 -> 63.82% | J18: =Cálculos!P35 -> 21.33% | K18: 53.31% | L18: R$ 7,744.94
C19: =Cálculos!C36 -> Desenvolvimento de Sistema | D19: =Cálculos!U36 -> 1 | E19: =Cálculos!J36 -> R$ 74,079.55 | F19: =Cálculos!H36 -> R$ 29,631.82 | G19: =Cálculos!M36 -> R$ 47,529.55 | H19: =Cálculos!N36 -> R$ 16,291.11 | I19: =Cálculos!O36 -> 64.16% | J19: =Cálculos!P36 -> 21.99% | K19: 54.98% | L19: R$ 16,291.11
C20: =Cálculos!C37 -> Assessoria Contábil Mensal | D20: =Cálculos!U37 -> 9 | E20: =Cálculos!J37 -> R$ 43,675.56 | F20: =Cálculos!H37 -> R$ 1,941.14 | G20: =Cálculos!M37 -> R$ 3,142.84 | H20: =Cálculos!N37 -> R$ 1,054.31 | I20: =Cálculos!O37 -> 64.76% | J20: =Cálculos!P37 -> 21.73% | K20: 54.31% | L20: R$ 9,488.79
C21: =Cálculos!C38 -> Projeto Arquitetônico | D21: =Cálculos!U38 -> 1 | E21: =Cálculos!J38 -> R$ 40,027.27 | F21: =Cálculos!H38 -> R$ 16,010.91 | G21: =Cálculos!M38 -> R$ 25,557.27 | H21: =Cálculos!N38 -> R$ 8,796.20 | I21: =Cálculos!O38 -> 63.85% | J21: =Cálculos!P38 -> 21.98% | K21: 54.94% | L21: R$ 8,796.20
C22: =Cálculos!C39 -> Treinamento Corporativo | D22: =Cálculos!U39 -> 4 | E22: =Cálculos!J39 -> R$ 25,840.92 | F22: =Cálculos!H39 -> R$ 2,584.09 | G22: =Cálculos!M39 -> R$ 4,030.23 | H22: =Cálculos!N39 -> R$ 1,408.10 | I22: =Cálculos!O39 -> 62.39% | J22: =Cálculos!P39 -> 21.80% | K22: 54.49% | L22: R$ 5,632.39

Sheet ROI (hidden)
C2: ROI
C7: Investimento / Projeto | D7: Valor Investido | E7: Retorno Mensal Esperado | F7: Prazo (meses) | G7: Retorno Total | H7: Ganho Líquido | I7: ROI % | J7: ROI Mensal % | K7: Payback (meses)
C8: Nova loja física | D8: R$ 120,000.00 | E8: R$ 9,500.00 | F8: 24.00 | G8: =E8*F8 -> R$ 228,000.00 | H8: =G8-D8 -> R$ 108,000.00 | I8: =IFERROR(H8/D8,0) -> 90.00% | J8: =IFERROR(I8/F8,0) -> 3.75% | K8: =IFERROR(D8/E8,0) -> 12.63
C9: Máquina de corte laser | D9: R$ 68,000.00 | E9: R$ 6,200.00 | F9: 36.00 | G9: R$ 223,200.00 | H9: R$ 155,200.00 | I9: 228.24% | J9: 6.34% | K9: 10.97
C10: Campanha de marketing | D10: R$ 25,000.00 | E10: R$ 4,800.00 | F10: 12.00 | G10: R$ 57,600.00 | H10: R$ 32,600.00 | I10: 130.40% | J10: 10.87% | K10: 5.21
C11: Loja virtual própria | D11: R$ 45,000.00 | E11: R$ 5,400.00 | F11: 18.00 | G11: R$ 97,200.00 | H11: R$ 52,200.00 | I11: 116.00% | J11: 6.44% | K11: 8.33
C12: Contratação de vendedor | D12: R$ 38,000.00 | E12: R$ 4,100.00 | F12: 24.00 | G12: R$ 98,400.00 | H12: R$ 60,400.00 | I12: 158.95% | J12: 6.62% | K12: 9.27
C13: Linha de produtos premium | D13: R$ 85,000.00 | E13: R$ 8,200.00 | F13: 30.00 | G13: R$ 246,000.00 | H13: R$ 161,000.00 | I13: 189.41% | J13: 6.31% | K13: 10.37
C14: Sistema de gestão (ERP) | D14: R$ 32,000.00 | E14: R$ 2,900.00 | F14: 36.00 | G14: R$ 104,400.00 | H14: R$ 72,400.00 | I14: 226.25% | J14: 6.28% | K14: 11.03

Sheet Descontos (hidden)
C2: DESCONTOS
C7: Produto | D7: Preço Cheio | E7: Custo Total | F7: % Desconto | G7: Valor do Desconto | H7: Preço Líquido | I7: Tributos | J7: Desp. Comerciais | K7: Lucro Restante | L7: Margem Restante %
C8: =Cálculos!C25 -> Camiseta Premium | D8: =Cálculos!I25 -> R$ 116.19 | E8: =Cálculos!H25 -> R$ 46.48 | F8: 5.00% | G8: =D8*F8 -> R$ 5.81 | H8: =D8-G8 -> R$ 110.38 | I8: =H8*Cálculos!$D$10 -> R$ 9.38 | J8: =H8*Cálculos!$D$15+Cálculos!$D$16 -> R$ 46.35 | K8: =H8-E8-I8-J8 -> R$ 8.17 | L8: =IFERROR(K8/H8,0) -> 7.40%
C9: =Cálculos!C26 -> Caneca Cerâmica 350ml | D9: =Cálculos!I26 -> R$ 74.39 | E9: =Cálculos!H26 -> R$ 29.76 | F9: 10.00% | G9: R$ 7.44 | H9: R$ 66.95 | I9: =H9*Cálculos!$D$10 -> R$ 5.69 | J9: =H9*Cálculos!$D$15+Cálculos!$D$16 -> R$ 33.54 | K9: (R$ 2.04) | L9: (3.05%)
C10: =Cálculos!C27 -> Kit Presente Gourmet | D10: =Cálculos!I27 -> R$ 173.19 | E10: =Cálculos!H27 -> R$ 69.28 | F10: 15.00% | G10: R$ 25.98 | H10: R$ 147.21 | I10: =H10*Cálculos!$D$10 -> R$ 12.51 | J10: =H10*Cálculos!$D$15+Cálculos!$D$16 -> R$ 57.21 | K10: R$ 8.21 | L10: 5.58%
C11: =Cálculos!C28 -> Mochila Executiva | D11: =Cálculos!I28 -> R$ 266.44 | E11: =Cálculos!H28 -> R$ 106.58 | F11: 5.00% | G11: R$ 13.32 | H11: R$ 253.12 | I11: =H11*Cálculos!$D$10 -> R$ 21.52 | J11: =H11*Cálculos!$D$15+Cálculos!$D$16 -> R$ 88.44 | K11: R$ 36.58 | L11: 14.45%
C12: =Cálculos!C29 -> Fone Bluetooth TWS | D12: =Cálculos!I29 -> R$ 233.89 | E12: =Cálculos!H29 -> R$ 93.56 | F12: 10.00% | G12: R$ 23.39 | H12: R$ 210.50 | I12: =H12*Cálculos!$D$10 -> R$ 17.89 | J12: =H12*Cálculos!$D$15+Cálculos!$D$16 -> R$ 75.88 | K12: R$ 23.18 | L12: 11.01%
C13: =Cálculos!C30 -> Garrafa Térmica 1L | D13: =Cálculos!I30 -> R$ 141.81 | E13: =Cálculos!H30 -> R$ 56.73 | F13: 5.00% | G13: R$ 7.09 | H13: R$ 134.72 | I13: =H13*Cálculos!$D$10 -> R$ 11.45 | J13: =H13*Cálculos!$D$15+Cálculos!$D$16 -> R$ 53.53 | K13: R$ 13.01 | L13: 9.66%
C14: =Cálculos!C31 -> Agenda Executiva 2026 | D14: =Cálculos!I31 -> R$ 96.34 | E14: =Cálculos!H31 -> R$ 38.54 | F14: 15.00% | G14: R$ 14.45 | H14: R$ 81.89 | I14: =H14*Cálculos!$D$10 -> R$ 6.96 | J14: =H14*Cálculos!$D$15+Cálculos!$D$16 -> R$ 37.95 | K14: (R$ 1.56) | L14: (1.90%)
C15: =Cálculos!C32 -> Boné Trucker | D15: =Cálculos!I32 -> R$ 88.72 | E15: =Cálculos!H32 -> R$ 35.49 | F15: 20.00% | G15: R$ 17.74 | H15: R$ 70.98 | I15: =H15*Cálculos!$D$10 -> R$ 6.03 | J15: =H15*Cálculos!$D$15+Cálculos!$D$16 -> R$ 34.73 | K15: (R$ 5.28) | L15: (7.44%)
C16: =Cálculos!C33 -> Consultoria Empresarial | D16: =Cálculos!I33 -> R$ 5,731.53 | E16: =Cálculos!H33 -> R$ 2,292.61 | F16: 5.00% | G16: R$ 286.58 | H16: R$ 5,444.95 | I16: =H16*Cálculos!$D$10 -> R$ 462.82 | J16: =H16*Cálculos!$D$15+Cálculos!$D$16 -> R$ 1,619.52 | K16: R$ 1,070.00 | L16: 19.65%
C17: =Cálculos!C34 -> Criação de Identidade Visual | D17: =Cálculos!I34 -> R$ 13,785.37 | E17: =Cálculos!H34 -> R$ 5,514.15 | F17: 10.00% | G17: R$ 1,378.54 | H17: R$ 12,406.83 | I17: =H17*Cálculos!$D$10 -> R$ 1,054.58 | J17: =H17*Cálculos!$D$15+Cálculos!$D$16 -> R$ 3,672.58 | K17: R$ 2,165.53 | L17: 17.45%
C18: =Cálculos!C35 -> Manutenção Predial | D18: =Cálculos!I35 -> R$ 2,017.61 | E18: =Cálculos!H35 -> R$ 807.05 | F18: 5.00% | G18: R$ 100.88 | H18: R$ 1,916.73 | I18: =H18*Cálculos!$D$10 -> R$ 162.92 | J18: =H18*Cálculos!$D$15+Cálculos!$D$16 -> R$ 579.04 | K18: R$ 367.72 | L18: 19.18%
C19: =Cálculos!C36 -> Desenvolvimento de Sistema | D19: =Cálculos!I36 -> R$ 74,079.55 | E19: =Cálculos!H36 -> R$ 29,631.82 | F19: 10.00% | G19: R$ 7,407.96 | H19: R$ 66,671.60 | I19: =H19*Cálculos!$D$10 -> R$ 5,667.09 | J19: =H19*Cálculos!$D$15+Cálculos!$D$16 -> R$ 19,675.25 | K19: R$ 11,697.44 | L19: 17.54%
C20: =Cálculos!C37 -> Assessoria Contábil Mensal | D20: =Cálculos!I37 -> R$ 4,852.84 | E20: =Cálculos!H37 -> R$ 1,941.14 | F20: 5.00% | G20: R$ 242.64 | H20: R$ 4,610.20 | I20: =H20*Cálculos!$D$10 -> R$ 391.87 | J20: =H20*Cálculos!$D$15+Cálculos!$D$16 -> R$ 1,373.35 | K20: R$ 903.85 | L20: 19.61%
C21: =Cálculos!C38 -> Projeto Arquitetônico | D21: =Cálculos!I38 -> R$ 40,027.27 | E21: =Cálculos!H38 -> R$ 16,010.91 | F21: 10.00% | G21: R$ 4,002.73 | H21: R$ 36,024.54 | I21: =H21*Cálculos!$D$10 -> R$ 3,062.09 | J21: =H21*Cálculos!$D$15+Cálculos!$D$16 -> R$ 10,637.44 | K21: R$ 6,314.11 | L21: 17.53%
C22: =Cálculos!C39 -> Treinamento Corporativo | D22: =Cálculos!I39 -> R$ 6,460.23 | E22: =Cálculos!H39 -> R$ 2,584.09 | F22: 5.00% | G22: R$ 323.01 | H22: R$ 6,137.22 | I22: =H22*Cálculos!$D$10 -> R$ 521.66 | J22: =H22*Cálculos!$D$15+Cálculos!$D$16 -> R$ 1,823.67 | K22: R$ 1,207.80 | L22: 19.68%
C25: DESCONTO MÁXIMO SEM PREJUÍZO (por item)
C26: Item | D26: Desconto Máx. (mantendo lucro zero) | E26: Desconto Máx. (mantendo 10% de margem)
C27: =Cálculos!C25 -> Camiseta Premium | D27: =IFERROR(1-(Cálculos!H25+Cálculos!$D$16)/(Cálculos!I25*(1-Cálculos!$D$10-Cálculos!$D$15)),0) -> 16.34% | E27: =IFERROR(1-(Cálculos!H25+Cálculos!$D$16)/(Cálculos!I25*(1-Cálculos!$D$10-Cálculos!$D$15-0.1)),0) -> 0.26%
C28: =Cálculos!C26 -> Caneca Cerâmica 350ml | D28: =IFERROR(1-(Cálculos!H26+Cálculos!$D$16)/(Cálculos!I26*(1-Cálculos!$D$10-Cálculos!$D$15)),0) -> 5.58% | E28: =IFERROR(1-(Cálculos!H26+Cálculos!$D$16)/(Cálculos!I26*(1-Cálculos!$D$10-Cálculos!$D$15-0.1)),0) -> (12.57%)
C29: =Cálculos!C27 -> Kit Presente Gourmet | D29: =IFERROR(1-(Cálculos!H27+Cálculos!$D$16)/(Cálculos!I27*(1-Cálculos!$D$10-Cálculos!$D$15)),0) -> 22.65% | E29: =IFERROR(1-(Cálculos!H27+Cálculos!$D$16)/(Cálculos!I27*(1-Cálculos!$D$10-Cálculos!$D$15-0.1)),0) -> 7.77%
C30: =Cálculos!C28 -> Mochila Executiva | D30: =IFERROR(1-(Cálculos!H28+Cálculos!$D$16)/(Cálculos!I28*(1-Cálculos!$D$10-Cálculos!$D$15)),0) -> 27.14% | E30: =IFERROR(1-(Cálculos!H28+Cálculos!$D$16)/(Cálculos!I28*(1-Cálculos!$D$10-Cálculos!$D$15-0.1)),0) -> 13.13%
C31: =Cálculos!C29 -> Fone Bluetooth TWS | D31: =IFERROR(1-(Cálculos!H29+Cálculos!$D$16)/(Cálculos!I29*(1-Cálculos!$D$10-Cálculos!$D$15)),0) -> 25.98% | E31: =IFERROR(1-(Cálculos!H29+Cálculos!$D$16)/(Cálculos!I29*(1-Cálculos!$D$10-Cálculos!$D$15-0.1)),0) -> 11.75%
C32: =Cálculos!C30 -> Garrafa Térmica 1L | D32: =IFERROR(1-(Cálculos!H30+Cálculos!$D$16)/(Cálculos!I30*(1-Cálculos!$D$10-Cálculos!$D$15)),0) -> 19.80% | E32: =IFERROR(1-(Cálculos!H30+Cálculos!$D$16)/(Cálculos!I30*(1-Cálculos!$D$10-Cálculos!$D$15-0.1)),0) -> 4.38%
C33: =Cálculos!C31 -> Agenda Executiva 2026 | D33: =IFERROR(1-(Cálculos!H31+Cálculos!$D$16)/(Cálculos!I31*(1-Cálculos!$D$10-Cálculos!$D$15)),0) -> 12.39% | E33: =IFERROR(1-(Cálculos!H31+Cálculos!$D$16)/(Cálculos!I31*(1-Cálculos!$D$10-Cálculos!$D$15-0.1)),0) -> (4.45%)
C34: =Cálculos!C32 -> Boné Trucker | D34: =IFERROR(1-(Cálculos!H32+Cálculos!$D$16)/(Cálculos!I32*(1-Cálculos!$D$10-Cálculos!$D$15)),0) -> 10.41% | E34: =IFERROR(1-(Cálculos!H32+Cálculos!$D$16)/(Cálculos!I32*(1-Cálculos!$D$10-Cálculos!$D$15-0.1)),0) -> (6.82%)
C35: =Cálculos!C33 -> Consultoria Empresarial | D35: =IFERROR(1-(Cálculos!H33+Cálculos!$D$16)/(Cálculos!I33*(1-Cálculos!$D$10-Cálculos!$D$15)),0) -> 35.11% | E35: =IFERROR(1-(Cálculos!H33+Cálculos!$D$16)/(Cálculos!I33*(1-Cálculos!$D$10-Cálculos!$D$15-0.1)),0) -> 22.63%
C36: =Cálculos!C34 -> Criação de Identidade Visual | D36: =IFERROR(1-(Cálculos!H34+Cálculos!$D$16)/(Cálculos!I34*(1-Cálculos!$D$10-Cálculos!$D$15)),0) -> 35.33% | E36: =IFERROR(1-(Cálculos!H34+Cálculos!$D$16)/(Cálculos!I34*(1-Cálculos!$D$10-Cálculos!$D$15-0.1)),0) -> 22.90%
C37: =Cálculos!C35 -> Manutenção Predial | D37: =IFERROR(1-(Cálculos!H35+Cálculos!$D$16)/(Cálculos!I35*(1-Cálculos!$D$10-Cálculos!$D$15)),0) -> 34.39% | E37: =IFERROR(1-(Cálculos!H35+Cálculos!$D$16)/(Cálculos!I35*(1-Cálculos!$D$10-Cálculos!$D$15-0.1)),0) -> 21.78%
C38: =Cálculos!C36 -> Desenvolvimento de Sistema | D38: =IFERROR(1-(Cálculos!H36+Cálculos!$D$16)/(Cálculos!I36*(1-Cálculos!$D$10-Cálculos!$D$15)),0) -> 35.46% | E38: =IFERROR(1-(Cálculos!H36+Cálculos!$D$16)/(Cálculos!I36*(1-Cálculos!$D$10-Cálculos!$D$15-0.1)),0) -> 23.06%
C39: =Cálculos!C37 -> Assessoria Contábil Mensal | D39: =IFERROR(1-(Cálculos!H37+Cálculos!$D$16)/(Cálculos!I37*(1-Cálculos!$D$10-Cálculos!$D$15)),0) -> 35.04% | E39: =IFERROR(1-(Cálculos!H37+Cálculos!$D$16)/(Cálculos!I37*(1-Cálculos!$D$10-Cálculos!$D$15-0.1)),0) -> 22.54%
C40: =Cálculos!C38 -> Projeto Arquitetônico | D40: =IFERROR(1-(Cálculos!H38+Cálculos!$D$16)/(Cálculos!I38*(1-Cálculos!$D$10-Cálculos!$D$15)),0) -> 35.44% | E40: =IFERROR(1-(Cálculos!H38+Cálculos!$D$16)/(Cálculos!I38*(1-Cálculos!$D$10-Cálculos!$D$15-0.1)),0) -> 23.03%
C41: =Cálculos!C39 -> Treinamento Corporativo | D41: =IFERROR(1-(Cálculos!H39+Cálculos!$D$16)/(Cálculos!I39*(1-Cálculos!$D$10-Cálculos!$D$15)),0) -> 35.15% | E41: =IFERROR(1-(Cálculos!H39+Cálculos!$D$16)/(Cálculos!I39*(1-Cálculos!$D$10-Cálculos!$D$15-0.1)),0) -> 22.68%

Sheet Parcelamentos (hidden)
C2: PARCELAMENTOS
C7: PREMISSAS
C8: Preço de venda base | D8: =Cálculos!$I$25 -> R$ 116.19
C9: Taxa da operadora por parcela (%) | D9: 1.99%
C10: Taxa de antecipação mensal (%) | D10: 1.49%
C11: Custo do item | D11: =Cálculos!$H$25 -> R$ 46.48
C14: Nº Parcelas | D14: Valor da Parcela | E14: Total Recebido do Cliente | F14: Taxa Total da Operadora | G14: Custo de Antecipação | H14: Recebimento Líquido | I14: Perda vs. À Vista | J14: Margem Líquida %
C15: =1 -> 1 | D15: =IFERROR($D$8/C15,0) -> R$ 116.19 | E15: =$D$8 -> R$ 116.19 | F15: =$D$8*$D$9*C15 -> R$ 2.31 | G15: =$D$8*$D$10*(C15-1)/2 -> 0 | H15: =E15-F15-G15 -> R$ 113.88 | I15: =$D$8-H15 -> R$ 2.31 | J15: =IFERROR((H15-$D$11-H15*Cálculos!$D$10)/H15,0) -> 50.69%
C16: =2 -> 2 | D16: R$ 58.10 | E16: R$ 116.19 | F16: R$ 4.62 | G16: R$ 0.87 | H16: R$ 110.70 | I16: R$ 5.49 | J16: =IFERROR((H16-$D$11-H16*Cálculos!$D$10)/H16,0) -> 49.52%
C17: =3 -> 3 | D17: R$ 38.73 | E17: R$ 116.19 | F17: R$ 6.94 | G17: R$ 1.73 | H17: R$ 107.52 | I17: R$ 8.67 | J17: =IFERROR((H17-$D$11-H17*Cálculos!$D$10)/H17,0) -> 48.28%
C18: =4 -> 4 | D18: R$ 29.05 | E18: R$ 116.19 | F18: R$ 9.25 | G18: R$ 2.60 | H18: R$ 104.34 | I18: R$ 11.85 | J18: =IFERROR((H18-$D$11-H18*Cálculos!$D$10)/H18,0) -> 46.96%
C19: =5 -> 5 | D19: R$ 23.24 | E19: R$ 116.19 | F19: R$ 11.56 | G19: R$ 3.46 | H19: R$ 101.17 | I19: R$ 15.02 | J19: =IFERROR((H19-$D$11-H19*Cálculos!$D$10)/H19,0) -> 45.56%
C20: =6 -> 6 | D20: R$ 19.37 | E20: R$ 116.19 | F20: R$ 13.87 | G20: R$ 4.33 | H20: R$ 97.99 | I20: R$ 18.20 | J20: =IFERROR((H20-$D$11-H20*Cálculos!$D$10)/H20,0) -> 44.07%
C21: =7 -> 7 | D21: R$ 16.60 | E21: R$ 116.19 | F21: R$ 16.19 | G21: R$ 5.19 | H21: R$ 94.81 | I21: R$ 21.38 | J21: =IFERROR((H21-$D$11-H21*Cálculos!$D$10)/H21,0) -> 42.48%
C22: =8 -> 8 | D22: R$ 14.52 | E22: R$ 116.19 | F22: R$ 18.50 | G22: R$ 6.06 | H22: R$ 91.63 | I22: R$ 24.56 | J22: =IFERROR((H22-$D$11-H22*Cálculos!$D$10)/H22,0) -> 40.78%
C23: =9 -> 9 | D23: R$ 12.91 | E23: R$ 116.19 | F23: R$ 20.81 | G23: R$ 6.92 | H23: R$ 88.46 | I23: R$ 27.73 | J23: =IFERROR((H23-$D$11-H23*Cálculos!$D$10)/H23,0) -> 38.96%
C24: =10 -> 10 | D24: R$ 11.62 | E24: R$ 116.19 | F24: R$ 23.12 | G24: R$ 7.79 | H24: R$ 85.28 | I24: R$ 30.91 | J24: =IFERROR((H24-$D$11-H24*Cálculos!$D$10)/H24,0) -> 37.00%
C25: =11 -> 11 | D25: R$ 10.56 | E25: R$ 116.19 | F25: R$ 25.43 | G25: R$ 8.66 | H25: R$ 82.10 | I25: R$ 34.09 | J25: =IFERROR((H25-$D$11-H25*Cálculos!$D$10)/H25,0) -> 34.89%
C26: =12 -> 12 | D26: R$ 9.68 | E26: R$ 116.19 | F26: R$ 27.75 | G26: R$ 9.52 | H26: R$ 78.92 | I26: R$ 37.27 | J26: =IFERROR((H26-$D$11-H26*Cálculos!$D$10)/H26,0) -> 32.61%

Sheet Simulação Tributária (hidden)
C2: SIMULAÇÃO TRIBUTÁRIA
C7: COMPARAÇÃO ENTRE REGIMES TRIBUTÁRIOS
C9: Receita mensal estimada | D9: =Cálculos!$D$47 -> R$ 429,701.60
C10: Custo total mensal | D10: =Cálculos!$D$48 -> R$ 171,880.29
C13: Regime | D13: Carga Tributária % | E13: Tributos Mensais | F13: Receita Líquida | G13: Custos | H13: Custos Fixos | I13: Lucro Líquido | J13: Margem Líquida %
C14: =Tributos!C8 -> Simples Nacional | D14: =Tributos!L8 -> 8.50% | E14: =$D$9*D14 -> R$ 36,524.64 | F14: =$D$9-E14 -> R$ 393,176.96 | G14: =$D$10 -> R$ 171,880.29 | H14: =Cálculos!$D$13 -> R$ 25,230.00 | I14: =F14-G14-H14 -> R$ 196,066.68 | J14: =IFERROR(I14/$D$9,0) -> 45.63%
C15: =Tributos!C9 -> Lucro Presumido | D15: =Tributos!L9 -> 24.73% | E15: =$D$9*D15 -> R$ 106,265.21 | F15: =$D$9-E15 -> R$ 323,436.39 | G15: =$D$10 -> R$ 171,880.29 | H15: =Cálculos!$D$13 -> R$ 25,230.00 | I15: =F15-G15-H15 -> R$ 126,326.11 | J15: =IFERROR(I15/$D$9,0) -> 29.40%
C16: =Tributos!C10 -> Lucro Real | D16: =Tributos!L10 -> 30.65% | E16: =$D$9*D16 -> R$ 131,703.54 | F16: =$D$9-E16 -> R$ 297,998.06 | G16: =$D$10 -> R$ 171,880.29 | H16: =Cálculos!$D$13 -> R$ 25,230.00 | I16: =F16-G16-H16 -> R$ 100,887.77 | J16: =IFERROR(I16/$D$9,0) -> 23.48%
C17: =Tributos!C11 -> Serviços - Simples | D17: =Tributos!L11 -> 6.00% | E17: =$D$9*D17 -> R$ 25,782.10 | F17: =$D$9-E17 -> R$ 403,919.50 | G17: =$D$10 -> R$ 171,880.29 | H17: =Cálculos!$D$13 -> R$ 25,230.00 | I17: =F17-G17-H17 -> R$ 206,809.22 | J17: =IFERROR(I17/$D$9,0) -> 48.13%
C18: =Tributos!C12 -> Serviços - Presumido | D18: =Tributos!L12 -> 11.73% | E18: =$D$9*D18 -> R$ 50,404.00 | F18: =$D$9-E18 -> R$ 379,297.60 | G18: =$D$10 -> R$ 171,880.29 | H18: =Cálculos!$D$13 -> R$ 25,230.00 | I18: =F18-G18-H18 -> R$ 182,187.31 | J18: =IFERROR(I18/$D$9,0) -> 42.40%
C21: Regime mais vantajoso | D21: =IFERROR(INDEX($C$14:$C$18,MATCH(MAX($I$14:$I$18),$I$14:$I$18,0)),"-") -> Serviços - Simples
C22: Economia vs. regime atual | D22: =IFERROR(MAX($I$14:$I$18)-INDEX($I$14:$I$18,MATCH(Cálculos!$D$9,$C$14:$C$18,0)),0) -> R$ 10,742.54
C23: Regime atualmente selecionado | D23: =Cálculos!$D$9 -> Simples Nacional

Sheet Cálculos (hidden)
C2: CÁLCULOS
C8: 1. PARÂMETROS GLOBAIS
C9: Regime tributário ativo | D9: Simples Nacional
C10: Carga tributária do regime (%) | D10: =IFERROR(INDEX(Tributos!$L$8:$L$12,MATCH($D$9,Tributos!$C$8:$C$12,0)),0) -> 8.50%
C11: Volume mensal estimado de vendas (un.) | D11: 1200
C12: Total de custos fixos rateáveis (R$) | D12: =SUMIFS('Custos Fixos'!$F$8:$F$17,'Custos Fixos'!$G$8:$G$17,"Sim") -> R$ 23,730.00
C13: Total de custos fixos (R$) | D13: =SUM('Custos Fixos'!$F$8:$F$17) -> R$ 25,230.00
C14: Custo fixo rateado por unidade (R$) | D14: =IFERROR($D$12/$D$11,0) -> R$ 19.78
C15: Despesas comerciais - total % s/ preço | D15: =SUMIFS('Despesas Comerciais'!$F$8:$F$14,'Despesas Comerciais'!$H$8:$H$14,"Preço de Venda") -> 29.49%
C16: Despesas comerciais - total fixo por un. (R$) | D16: =SUM('Despesas Comerciais'!$G$8:$G$14) -> R$ 13.80
C17: Markup padrão de referência | D17: 2.50x
C18: Margem líquida desejada padrão (%) | D18: 25.00%
C19: Horas produtivas mensais (base) | D19: 176
C22: 2. MATRIZ CONSOLIDADA POR ITEM
C24: Item | D24: Tipo | E24: Categoria | F24: Custo Direto | G24: Custo Fixo Rateado | H24: Custo Total | I24: Preço Praticado | J24: Receita Est. | K24: Tributos R$ | L24: Desp. Comerciais R$ | M24: Lucro Bruto | N24: Lucro Líquido | O24: Margem Bruta % | P24: Margem Líquida % | Q24: Markup Efetivo | R24: Margem Contribuição R$ | S24: MC % | T24: Status | U24: Volume Mensal (un.)
C25: =Produtos!D8 -> Camiseta Premium | D25: Produto | E25: =Produtos!E8 -> Vestuário | F25: =Produtos!M8 -> R$ 26.70 | G25: =$D$14 -> R$ 19.78 | H25: =F25+G25 -> R$ 46.48 | I25: =ROUND(H25*$D$17,2) -> R$ 116.19 | J25: =I25*U25 -> R$ 25,561.80 | K25: =I25*$D$10 -> R$ 9.88 | L25: =I25*$D$15+$D$16 -> R$ 48.06 | M25: =I25-F25 -> R$ 89.49 | N25: =I25-H25-K25-L25 -> R$ 11.77 | O25: =IFERROR(M25/I25,0) -> 77.02% | P25: =IFERROR(N25/I25,0) -> 10.13% | Q25: =IFERROR(I25/H25,0) -> 2.50x | R25: =I25-F25-K25-L25 -> R$ 31.55 | S25: =IFERROR(R25/I25,0) -> 27.15% | T25: =IF(I25=0,"Sem preço",IF(N25<0,"Prejuízo",IF(P25<0.05,"Margem baixa","Saudável"))) -> Saudável | U25: 220
C26: =Produtos!D9 -> Caneca Cerâmica 350ml | D26: Produto | E26: =Produtos!E9 -> Utilidades | F26: =Produtos!M9 -> R$ 9.98 | G26: R$ 19.78 | H26: R$ 29.76 | I26: R$ 74.39 | J26: R$ 28,268.20 | K26: R$ 6.32 | L26: R$ 35.74 | M26: R$ 64.41 | N26: R$ 2.57 | O26: 86.58% | P26: 3.46% | Q26: 2.50x | R26: R$ 22.35 | S26: 30.04% | T26: Margem baixa | U26: 380
C27: =Produtos!D10 -> Kit Presente Gourmet | D27: Produto | E27: =Produtos!E10 -> Alimentos | F27: =Produtos!M10 -> R$ 49.50 | G27: R$ 19.78 | H27: R$ 69.28 | I27: R$ 173.19 | J27: R$ 10,391.40 | K27: R$ 14.72 | L27: R$ 64.87 | M27: R$ 123.69 | N27: R$ 24.32 | O27: 71.42% | P27: 14.04% | Q27: 2.50x | R27: R$ 44.10 | S27: 25.46% | T27: Saudável | U27: 60
C28: =Produtos!D11 -> Mochila Executiva | D28: Produto | E28: =Produtos!E11 -> Acessórios | F28: =Produtos!M11 -> R$ 86.80 | G28: R$ 19.78 | H28: R$ 106.58 | I28: R$ 266.44 | J28: R$ 11,989.80 | K28: R$ 22.65 | L28: R$ 92.37 | M28: R$ 179.64 | N28: R$ 44.84 | O28: 67.42% | P28: 16.83% | Q28: 2.50x | R28: R$ 64.62 | S28: 24.25% | T28: Saudável | U28: 45
C29: =Produtos!D12 -> Fone Bluetooth TWS | D29: Produto | E29: =Produtos!E12 -> Eletrônicos | F29: =Produtos!M12 -> R$ 73.78 | G29: R$ 19.78 | H29: R$ 93.56 | I29: R$ 233.89 | J29: R$ 30,405.70 | K29: R$ 19.88 | L29: R$ 82.77 | M29: R$ 160.11 | N29: R$ 37.68 | O29: 68.46% | P29: 16.11% | Q29: 2.50x | R29: R$ 57.46 | S29: 24.57% | T29: Saudável | U29: 130
C30: =Produtos!D13 -> Garrafa Térmica 1L | D30: Produto | E30: =Produtos!E13 -> Utilidades | F30: =Produtos!M13 -> R$ 36.95 | G30: R$ 19.78 | H30: R$ 56.73 | I30: R$ 141.81 | J30: R$ 21,271.50 | K30: R$ 12.05 | L30: R$ 55.62 | M30: R$ 104.86 | N30: R$ 17.41 | O30: 73.94% | P30: 12.28% | Q30: 2.50x | R30: R$ 37.19 | S30: 26.22% | T30: Saudável | U30: 150
C31: =Produtos!D14 -> Agenda Executiva 2026 | D31: Produto | E31: =Produtos!E14 -> Papelaria | F31: =Produtos!M14 -> R$ 18.76 | G31: R$ 19.78 | H31: R$ 38.54 | I31: R$ 96.34 | J31: R$ 10,597.40 | K31: R$ 8.19 | L31: R$ 42.21 | M31: R$ 77.58 | N31: R$ 7.40 | O31: 80.52% | P31: 7.68% | Q31: 2.50x | R31: R$ 27.18 | S31: 28.21% | T31: Saudável | U31: 110
C32: =Produtos!D15 -> Boné Trucker | D32: Produto | E32: =Produtos!E15 -> Vestuário | F32: =Produtos!M15 -> R$ 15.71 | G32: R$ 19.78 | H32: R$ 35.49 | I32: R$ 88.72 | J32: R$ 9,315.60 | K32: R$ 7.54 | L32: R$ 39.96 | M32: R$ 73.01 | N32: R$ 5.73 | O32: 82.29% | P32: 6.45% | Q32: 2.50x | R32: R$ 25.50 | S32: 28.74% | T32: Saudável | U32: 105
C33: =Serviços!D8 -> Consultoria Empresarial | D33: Serviço | E33: =Serviços!E8 -> Consultoria | F33: =Serviços!K8 -> R$ 2,100.00 | G33: =IFERROR($D$12/$D$19*Serviços!F8/COUNTA(Serviços!$D$8:$D$14),0) -> R$ 192.61 | H33: R$ 2,292.61 | I33: R$ 5,731.53 | J33: R$ 34,389.18 | K33: R$ 487.18 | L33: R$ 1,704.03 | M33: R$ 3,631.53 | N33: R$ 1,247.71 | O33: 63.36% | P33: 21.77% | Q33: 2.50x | R33: R$ 1,440.32 | S33: 25.13% | T33: Saudável | U33: 6
C34: =Serviços!D9 -> Criação de Identidade Visual | D34: Serviço | E34: =Serviços!E9 -> Design | F34: =Serviços!K9 -> R$ 4,840.00 | G34: =IFERROR($D$12/$D$19*Serviços!F9/COUNTA(Serviços!$D$8:$D$14),0) -> R$ 674.15 | H34: R$ 5,514.15 | I34: R$ 13,785.37 | J34: R$ 27,570.74 | K34: R$ 1,171.76 | L34: R$ 4,079.11 | M34: R$ 8,945.37 | N34: R$ 3,020.36 | O34: 64.89% | P34: 21.91% | Q34: 2.50x | R34: R$ 3,694.51 | S34: 26.80% | T34: Saudável | U34: 2
C35: =Serviços!D10 -> Manutenção Predial | D35: Serviço | E35: =Serviços!E10 -> Manutenção | F35: =Serviços!K10 -> R$ 730.00 | G35: =IFERROR($D$12/$D$19*Serviços!F10/COUNTA(Serviços!$D$8:$D$14),0) -> R$ 77.05 | H35: R$ 807.05 | I35: R$ 2,017.61 | J35: R$ 36,316.98 | K35: R$ 171.50 | L35: R$ 608.79 | M35: R$ 1,287.61 | N35: R$ 430.27 | O35: 63.82% | P35: 21.33% | Q35: 2.50x | R35: R$ 507.32 | S35: 25.14% | T35: Saudável | U35: 18
C36: =Serviços!D11 -> Desenvolvimento de Sistema | D36: Serviço | E36: =Serviços!E11 -> Tecnologia | F36: =Serviços!K11 -> R$ 26,550.00 | G36: =IFERROR($D$12/$D$19*Serviços!F11/COUNTA(Serviços!$D$8:$D$14),0) -> R$ 3,081.82 | H36: R$ 29,631.82 | I36: R$ 74,079.55 | J36: R$ 74,079.55 | K36: R$ 6,296.76 | L36: R$ 21,859.86 | M36: R$ 47,529.55 | N36: R$ 16,291.11 | O36: 64.16% | P36: 21.99% | Q36: 2.50x | R36: R$ 19,372.93 | S36: 26.15% | T36: Saudável | U36: 1
C37: =Serviços!D12 -> Assessoria Contábil Mensal | D37: Serviço | E37: =Serviços!E12 -> Contabilidade | F37: =Serviços!K12 -> R$ 1,710.00 | G37: =IFERROR($D$12/$D$19*Serviços!F12/COUNTA(Serviços!$D$8:$D$14),0) -> R$ 231.14 | H37: R$ 1,941.14 | I37: R$ 4,852.84 | J37: R$ 43,675.56 | K37: R$ 412.49 | L37: R$ 1,444.90 | M37: R$ 3,142.84 | N37: R$ 1,054.31 | O37: 64.76% | P37: 21.73% | Q37: 2.50x | R37: R$ 1,285.45 | S37: 26.49% | T37: Saudável | U37: 9
C38: =Serviços!D13 -> Projeto Arquitetônico | D38: Serviço | E38: =Serviços!E13 -> Arquitetura | F38: =Serviços!K13 -> R$ 14,470.00 | G38: =IFERROR($D$12/$D$19*Serviços!F13/COUNTA(Serviços!$D$8:$D$14),0) -> R$ 1,540.91 | H38: R$ 16,010.91 | I38: R$ 40,027.27 | J38: R$ 40,027.27 | K38: R$ 3,402.32 | L38: R$ 11,817.84 | M38: R$ 25,557.27 | N38: R$ 8,796.20 | O38: 63.85% | P38: 21.98% | Q38: 2.50x | R38: R$ 10,337.11 | S38: 25.83% | T38: Saudável | U38: 1
C39: =Serviços!D14 -> Treinamento Corporativo | D39: Serviço | E39: =Serviços!E14 -> Treinamento | F39: =Serviços!K14 -> R$ 2,430.00 | G39: =IFERROR($D$12/$D$19*Serviços!F14/COUNTA(Serviços!$D$8:$D$14),0) -> R$ 154.09 | H39: R$ 2,584.09 | I39: R$ 6,460.23 | J39: R$ 25,840.92 | K39: R$ 549.12 | L39: R$ 1,918.92 | M39: R$ 4,030.23 | N39: R$ 1,408.10 | O39: 62.39% | P39: 21.80% | Q39: 2.50x | R39: R$ 1,562.19 | S39: 24.18% | T39: Saudável | U39: 4
C42: 3. INDICADORES CONSOLIDADOS (alimentam o Dashboard)
C43: Quantidade de itens cadastrados | D43: =COUNTA($C$25:$C$39) -> 15
C44: Quantidade de produtos | D44: =COUNTIF($D$25:$D$39,"Produto") -> 8
C45: Quantidade de serviços | D45: =COUNTIF($D$25:$D$39,"Serviço") -> 7
C46: Quantidade de cenários simulados | D46: =COUNTA('Simulador Cenários'!$D$7:$G$7) -> 4
C47: Receita estimada total | D47: =SUM($J$25:$J$39) -> R$ 429,701.60
C48: Custo total estimado | D48: =SUMPRODUCT($H$25:$H$39,$U$25:$U$39) -> R$ 171,880.29
C49: Lucro bruto estimado | D49: =SUMPRODUCT($M$25:$M$39,$U$25:$U$39) -> R$ 292,761.43
C50: Lucro líquido estimado | D50: =SUMPRODUCT($N$25:$N$39,$U$25:$U$39) -> R$ 77,451.87
C51: Ticket médio | D51: =IFERROR(SUM($J$25:$J$39)/SUM($U$25:$U$39),0) -> R$ 346.25
C52: Custo médio por item | D52: =IFERROR(AVERAGE($H$25:$H$39),0) -> R$ 3,950.54
C53: Margem líquida média | D53: =IFERROR(AVERAGE($P$25:$P$39),0) -> 15.97%
C54: Markup médio efetivo | D54: =IFERROR(AVERAGE($Q$25:$Q$39),0) -> 2.50x
C55: Maior margem líquida (%) | D55: =IFERROR(MAX($P$25:$P$39),0) -> 21.99%
C56: Menor margem líquida (%) | D56: =IFERROR(MIN($P$25:$P$39),0) -> 3.46%
C57: Item de maior margem | D57: =IFERROR(INDEX($C$25:$C$39,MATCH(MAX($P$25:$P$39),$P$25:$P$39,0)),"-") -> Desenvolvimento de Sistema
C58: Item de menor margem | D58: =IFERROR(INDEX($C$25:$C$39,MATCH(MIN($P$25:$P$39),$P$25:$P$39,0)),"-") -> Caneca Cerâmica 350ml
C59: Produto mais lucrativo | D59: =IFERROR(INDEX($C$25:$C$32,MATCH(MAX($N$25:$N$32),$N$25:$N$32,0)),"-") -> Mochila Executiva
C60: Serviço mais lucrativo | D60: =IFERROR(INDEX($C$33:$C$39,MATCH(MAX($N$33:$N$39),$N$33:$N$39,0)),"-") -> Desenvolvimento de Sistema
C61: Margem de contribuição total | D61: =SUMPRODUCT($R$25:$R$39,$U$25:$U$39) -> R$ 112,391.99
C62: MC média (%) | D62: =IFERROR(AVERAGE($S$25:$S$39),0) -> 26.29%
C63: Ponto de equilíbrio (R$ faturamento) | D63: =IFERROR($D$13/AVERAGE($S$25:$S$39),0) -> R$ 95,962.47
C64: Ponto de equilíbrio (unidades médias) | D64: =IFERROR($D$13/AVERAGE($R$25:$R$32),0) -> 651
C65: Rentabilidade sobre receita | D65: =IFERROR($D$50/$D$47,0) -> 18.02%
C66: Itens com prejuízo | D66: =COUNTIF($T$25:$T$39,"Prejuízo") -> 0
C67: Itens com margem baixa | D67: =COUNTIF($T$25:$T$39,"Margem baixa") -> 1
C68: Itens saudáveis | D68: =COUNTIF($T$25:$T$39,"Saudável") -> 14
C71: 4. RANKINGS (Top 10) — base dos gráficos
C73: Top 10 Produtos (lucro líquido/un.) | D73: Lucro Líquido | E73: Margem % | G73: Top 10 Serviços (lucro líquido) | H73: Lucro Líquido | I73: Margem %
C74: =IFERROR(INDEX($C$25:$C$32,MATCH(LARGE($N$25:$N$32,1),$N$25:$N$32,0)),"-") -> Mochila Executiva | D74: =IFERROR(LARGE($N$25:$N$32,1),0) -> R$ 44.84 | E74: =IFERROR(INDEX($P$25:$P$32,MATCH(LARGE($N$25:$N$32,1),$N$25:$N$32,0)),0) -> 16.83% | G74: =IFERROR(INDEX($C$33:$C$39,MATCH(LARGE($N$33:$N$39,1),$N$33:$N$39,0)),"-") -> Desenvolvimento de Sistema | H74: =IFERROR(LARGE($N$33:$N$39,1),0) -> R$ 16,291.11 | I74: =IFERROR(INDEX($P$33:$P$39,MATCH(LARGE($N$33:$N$39,1),$N$33:$N$39,0)),0) -> 21.99%
C75: =IFERROR(INDEX($C$25:$C$32,MATCH(LARGE($N$25:$N$32,2),$N$25:$N$32,0)),"-") -> Fone Bluetooth TWS | D75: =IFERROR(LARGE($N$25:$N$32,2),0) -> R$ 37.68 | E75: =IFERROR(INDEX($P$25:$P$32,MATCH(LARGE($N$25:$N$32,2),$N$25:$N$32,0)),0) -> 16.11% | G75: =IFERROR(INDEX($C$33:$C$39,MATCH(LARGE($N$33:$N$39,2),$N$33:$N$39,0)),"-") -> Projeto Arquitetônico | H75: =IFERROR(LARGE($N$33:$N$39,2),0) -> R$ 8,796.20 | I75: =IFERROR(INDEX($P$33:$P$39,MATCH(LARGE($N$33:$N$39,2),$N$33:$N$39,0)),0) -> 21.98%
C76: =IFERROR(INDEX($C$25:$C$32,MATCH(LARGE($N$25:$N$32,3),$N$25:$N$32,0)),"-") -> Kit Presente Gourmet | D76: =IFERROR(LARGE($N$25:$N$32,3),0) -> R$ 24.32 | E76: =IFERROR(INDEX($P$25:$P$32,MATCH(LARGE($N$25:$N$32,3),$N$25:$N$32,0)),0) -> 14.04% | G76: =IFERROR(INDEX($C$33:$C$39,MATCH(LARGE($N$33:$N$39,3),$N$33:$N$39,0)),"-") -> Criação de Identidade Visual | H76: =IFERROR(LARGE($N$33:$N$39,3),0) -> R$ 3,020.36 | I76: =IFERROR(INDEX($P$33:$P$39,MATCH(LARGE($N$33:$N$39,3),$N$33:$N$39,0)),0) -> 21.91%
C77: =IFERROR(INDEX($C$25:$C$32,MATCH(LARGE($N$25:$N$32,4),$N$25:$N$32,0)),"-") -> Garrafa Térmica 1L | D77: =IFERROR(LARGE($N$25:$N$32,4),0) -> R$ 17.41 | E77: =IFERROR(INDEX($P$25:$P$32,MATCH(LARGE($N$25:$N$32,4),$N$25:$N$32,0)),0) -> 12.28% | G77: =IFERROR(INDEX($C$33:$C$39,MATCH(LARGE($N$33:$N$39,4),$N$33:$N$39,0)),"-") -> Treinamento Corporativo | H77: =IFERROR(LARGE($N$33:$N$39,4),0) -> R$ 1,408.10 | I77: =IFERROR(INDEX($P$33:$P$39,MATCH(LARGE($N$33:$N$39,4),$N$33:$N$39,0)),0) -> 21.80%
C78: =IFERROR(INDEX($C$25:$C$32,MATCH(LARGE($N$25:$N$32,5),$N$25:$N$32,0)),"-") -> Camiseta Premium | D78: =IFERROR(LARGE($N$25:$N$32,5),0) -> R$ 11.77 | E78: =IFERROR(INDEX($P$25:$P$32,MATCH(LARGE($N$25:$N$32,5),$N$25:$N$32,0)),0) -> 10.13% | G78: =IFERROR(INDEX($C$33:$C$39,MATCH(LARGE($N$33:$N$39,5),$N$33:$N$39,0)),"-") -> Consultoria Empresarial | H78: =IFERROR(LARGE($N$33:$N$39,5),0) -> R$ 1,247.71 | I78: =IFERROR(INDEX($P$33:$P$39,MATCH(LARGE($N$33:$N$39,5),$N$33:$N$39,0)),0) -> 21.77%
C79: =IFERROR(INDEX($C$25:$C$32,MATCH(LARGE($N$25:$N$32,6),$N$25:$N$32,0)),"-") -> Agenda Executiva 2026 | D79: =IFERROR(LARGE($N$25:$N$32,6),0) -> R$ 7.40 | E79: =IFERROR(INDEX($P$25:$P$32,MATCH(LARGE($N$25:$N$32,6),$N$25:$N$32,0)),0) -> 7.68% | G79: =IFERROR(INDEX($C$33:$C$39,MATCH(LARGE($N$33:$N$39,6),$N$33:$N$39,0)),"-") -> Assessoria Contábil Mensal | H79: =IFERROR(LARGE($N$33:$N$39,6),0) -> R$ 1,054.31 | I79: =IFERROR(INDEX($P$33:$P$39,MATCH(LARGE($N$33:$N$39,6),$N$33:$N$39,0)),0) -> 21.73%
C80: =IFERROR(INDEX($C$25:$C$32,MATCH(LARGE($N$25:$N$32,7),$N$25:$N$32,0)),"-") -> Boné Trucker | D80: =IFERROR(LARGE($N$25:$N$32,7),0) -> R$ 5.73 | E80: =IFERROR(INDEX($P$25:$P$32,MATCH(LARGE($N$25:$N$32,7),$N$25:$N$32,0)),0) -> 6.45% | G80: =IFERROR(INDEX($C$33:$C$39,MATCH(LARGE($N$33:$N$39,7),$N$33:$N$39,0)),"-") -> Manutenção Predial | H80: =IFERROR(LARGE($N$33:$N$39,7),0) -> R$ 430.27 | I80: =IFERROR(INDEX($P$33:$P$39,MATCH(LARGE($N$33:$N$39,7),$N$33:$N$39,0)),0) -> 21.33%
C81: =IFERROR(INDEX($C$25:$C$32,MATCH(LARGE($N$25:$N$32,8),$N$25:$N$32,0)),"-") -> Caneca Cerâmica 350ml | D81: =IFERROR(LARGE($N$25:$N$32,8),0) -> R$ 2.57 | E81: =IFERROR(INDEX($P$25:$P$32,MATCH(LARGE($N$25:$N$32,8),$N$25:$N$32,0)),0) -> 3.46%
C85: 5. TABELAS AUXILIARES (listas suspensas)
C87: Tipo | D87: Situação | E87: Unidade | F87: Regime Tributário | G87: Rateável | H87: Incide sobre | I87: Cenário | J87: Método de Precificação | K87: Categoria | L87: Fornecedor | M87: Status Margem
C88: Produto | D88: Ativo | E88: UN | F88: Simples Nacional | G88: Sim | H88: Preço de Venda | I88: Atual | J88: Markup | K88: Vestuário | L88: Têxtil Sul Ltda | M88: Saudável
C89: Serviço | D89: Inativo | E89: CX | F89: Lucro Presumido | G89: Não | H89: Custo | I89: Otimista | J89: Margem | K89: Utilidades | L89: Cerâmica Vale | M89: Margem baixa
D90: Descontinuado | E90: KG | F90: Lucro Real | H90: Unidade | I90: Pessimista | J90: Lucro Desejado | K90: Alimentos | L90: Distrib. Gourmet | M90: Prejuízo
D91: Em análise | E91: L | F91: Serviços - Simples | H91: Pedido | I91: Personalizado | J91: Hora Trabalhada | K91: Acessórios | L91: Couro & Cia | M91: Sem preço
E92: M | F92: Serviços - Presumido | J92: Homem Hora | K92: Eletrônicos | L92: ImportTech
E93: M² | J93: Projeto | K93: Papelaria | L93: Gráfica Central
E94: H | J94: Prestador de Serviços | K94: Consultoria | L94: Interno
E95: PROJ | J95: Comércio | K95: Design
E96: VISITA | J96: Indústria | K96: Manutenção
E97: MÊS | J97: E-commerce | K97: Tecnologia
E98: PC | J98: Delivery | K98: Contabilidade
J99: Alimentação | K99: Arquitetura
J100: Artesanato | K100: Treinamento
J101: Infoprodutos
J102: Assinaturas

Sheet Relatórios (hidden)
C2: RELATÓRIOS
C7: ÍNDICE DE RELATÓRIOS
C9: R1 | D9: Lista completa de produtos com preços | E9: linha 20
C10: R2 | D10: Lista de serviços com preços | E10: linha 34
C11: R3 | D11: Itens sem margem adequada / abaixo do custo | E11: linha 46
C12: R4 | D12: Resumo geral de custos e despesas | E12: linha 62
C13: R5 | D13: Resumo financeiro e receitas projetadas | E13: linha 76
C14: R6 | D14: Margem e markup por categoria | E14: linha 90
C15: R7 | D15: Impacto de tributos e despesas comerciais | E15: linha 108
C16: R8 | D16: Comparativo entre métodos de precificação | E16: linha 122
C17: R9 | D17: Ranking de lucratividade e menor margem | E17: linha 136
C18: R10 | D18: Ponto de equilíbrio, MC, ROI, descontos e tributário | E18: linha 152
C20: R1 — LISTA COMPLETA DE PRODUTOS COM PREÇOS
C21: Produto | D21: Categoria | E21: Custo Total | F21: Preço de Venda | G21: Lucro Líquido | H21: Margem Líquida % | I21: Markup | J21: Volume Mensal | K21: Receita Mensal | L21: Status
C22: =Cálculos!C25 -> Camiseta Premium | D22: =Cálculos!E25 -> Vestuário | E22: =Cálculos!H25 -> R$ 46.48 | F22: =Cálculos!I25 -> R$ 116.19 | G22: =Cálculos!N25 -> R$ 11.77 | H22: =Cálculos!P25 -> 10.13% | I22: =Cálculos!Q25 -> 2.50x | J22: =Cálculos!U25 -> 220 | K22: =Cálculos!J25 -> R$ 25,561.80 | L22: =Cálculos!T25 -> Saudável
C23: =Cálculos!C26 -> Caneca Cerâmica 350ml | D23: =Cálculos!E26 -> Utilidades | E23: =Cálculos!H26 -> R$ 29.76 | F23: =Cálculos!I26 -> R$ 74.39 | G23: =Cálculos!N26 -> R$ 2.57 | H23: =Cálculos!P26 -> 3.46% | I23: =Cálculos!Q26 -> 2.50x | J23: =Cálculos!U26 -> 380 | K23: =Cálculos!J26 -> R$ 28,268.20 | L23: =Cálculos!T26 -> Margem baixa
C24: =Cálculos!C27 -> Kit Presente Gourmet | D24: =Cálculos!E27 -> Alimentos | E24: =Cálculos!H27 -> R$ 69.28 | F24: =Cálculos!I27 -> R$ 173.19 | G24: =Cálculos!N27 -> R$ 24.32 | H24: =Cálculos!P27 -> 14.04% | I24: =Cálculos!Q27 -> 2.50x | J24: =Cálculos!U27 -> 60 | K24: =Cálculos!J27 -> R$ 10,391.40 | L24: =Cálculos!T27 -> Saudável
C25: =Cálculos!C28 -> Mochila Executiva | D25: =Cálculos!E28 -> Acessórios | E25: =Cálculos!H28 -> R$ 106.58 | F25: =Cálculos!I28 -> R$ 266.44 | G25: =Cálculos!N28 -> R$ 44.84 | H25: =Cálculos!P28 -> 16.83% | I25: =Cálculos!Q28 -> 2.50x | J25: =Cálculos!U28 -> 45 | K25: =Cálculos!J28 -> R$ 11,989.80 | L25: =Cálculos!T28 -> Saudável
C26: =Cálculos!C29 -> Fone Bluetooth TWS | D26: =Cálculos!E29 -> Eletrônicos | E26: =Cálculos!H29 -> R$ 93.56 | F26: =Cálculos!I29 -> R$ 233.89 | G26: =Cálculos!N29 -> R$ 37.68 | H26: =Cálculos!P29 -> 16.11% | I26: =Cálculos!Q29 -> 2.50x | J26: =Cálculos!U29 -> 130 | K26: =Cálculos!J29 -> R$ 30,405.70 | L26: =Cálculos!T29 -> Saudável
C27: =Cálculos!C30 -> Garrafa Térmica 1L | D27: =Cálculos!E30 -> Utilidades | E27: =Cálculos!H30 -> R$ 56.73 | F27: =Cálculos!I30 -> R$ 141.81 | G27: =Cálculos!N30 -> R$ 17.41 | H27: =Cálculos!P30 -> 12.28% | I27: =Cálculos!Q30 -> 2.50x | J27: =Cálculos!U30 -> 150 | K27: =Cálculos!J30 -> R$ 21,271.50 | L27: =Cálculos!T30 -> Saudável
C28: =Cálculos!C31 -> Agenda Executiva 2026 | D28: =Cálculos!E31 -> Papelaria | E28: =Cálculos!H31 -> R$ 38.54 | F28: =Cálculos!I31 -> R$ 96.34 | G28: =Cálculos!N31 -> R$ 7.40 | H28: =Cálculos!P31 -> 7.68% | I28: =Cálculos!Q31 -> 2.50x | J28: =Cálculos!U31 -> 110 | K28: =Cálculos!J31 -> R$ 10,597.40 | L28: =Cálculos!T31 -> Saudável
C29: =Cálculos!C32 -> Boné Trucker | D29: =Cálculos!E32 -> Vestuário | E29: =Cálculos!H32 -> R$ 35.49 | F29: =Cálculos!I32 -> R$ 88.72 | G29: =Cálculos!N32 -> R$ 5.73 | H29: =Cálculos!P32 -> 6.45% | I29: =Cálculos!Q32 -> 2.50x | J29: =Cálculos!U32 -> 105 | K29: =Cálculos!J32 -> R$ 9,315.60 | L29: =Cálculos!T32 -> Saudável
C30: TOTAL | G30: =SUMPRODUCT(G22:G29,J22:J29) -> R$ 15,971.47 | K30: =SUM(K22:K29) -> R$ 147,801.40
C34: R2 — LISTA DE SERVIÇOS COM PREÇOS
C35: Serviço | D35: Categoria | E35: Custo Total | F35: Preço de Venda | G35: Lucro Líquido | H35: Margem Líquida % | I35: Markup | J35: Volume Mensal | K35: Receita Mensal | L35: Status
C36: =Cálculos!C33 -> Consultoria Empresarial | D36: =Cálculos!E33 -> Consultoria | E36: =Cálculos!H33 -> R$ 2,292.61 | F36: =Cálculos!I33 -> R$ 5,731.53 | G36: =Cálculos!N33 -> R$ 1,247.71 | H36: =Cálculos!P33 -> 21.77% | I36: =Cálculos!Q33 -> 2.50x | J36: =Cálculos!U33 -> 6 | K36: =Cálculos!J33 -> R$ 34,389.18 | L36: =Cálculos!T33 -> Saudável
C37: =Cálculos!C34 -> Criação de Identidade Visual | D37: =Cálculos!E34 -> Design | E37: =Cálculos!H34 -> R$ 5,514.15 | F37: =Cálculos!I34 -> R$ 13,785.37 | G37: =Cálculos!N34 -> R$ 3,020.36 | H37: =Cálculos!P34 -> 21.91% | I37: =Cálculos!Q34 -> 2.50x | J37: =Cálculos!U34 -> 2 | K37: =Cálculos!J34 -> R$ 27,570.74 | L37: =Cálculos!T34 -> Saudável
C38: =Cálculos!C35 -> Manutenção Predial | D38: =Cálculos!E35 -> Manutenção | E38: =Cálculos!H35 -> R$ 807.05 | F38: =Cálculos!I35 -> R$ 2,017.61 | G38: =Cálculos!N35 -> R$ 430.27 | H38: =Cálculos!P35 -> 21.33% | I38: =Cálculos!Q35 -> 2.50x | J38: =Cálculos!U35 -> 18 | K38: =Cálculos!J35 -> R$ 36,316.98 | L38: =Cálculos!T35 -> Saudável
C39: =Cálculos!C36 -> Desenvolvimento de Sistema | D39: =Cálculos!E36 -> Tecnologia | E39: =Cálculos!H36 -> R$ 29,631.82 | F39: =Cálculos!I36 -> R$ 74,079.55 | G39: =Cálculos!N36 -> R$ 16,291.11 | H39: =Cálculos!P36 -> 21.99% | I39: =Cálculos!Q36 -> 2.50x | J39: =Cálculos!U36 -> 1 | K39: =Cálculos!J36 -> R$ 74,079.55 | L39: =Cálculos!T36 -> Saudável
C40: =Cálculos!C37 -> Assessoria Contábil Mensal | D40: =Cálculos!E37 -> Contabilidade | E40: =Cálculos!H37 -> R$ 1,941.14 | F40: =Cálculos!I37 -> R$ 4,852.84 | G40: =Cálculos!N37 -> R$ 1,054.31 | H40: =Cálculos!P37 -> 21.73% | I40: =Cálculos!Q37 -> 2.50x | J40: =Cálculos!U37 -> 9 | K40: =Cálculos!J37 -> R$ 43,675.56 | L40: =Cálculos!T37 -> Saudável
C41: =Cálculos!C38 -> Projeto Arquitetônico | D41: =Cálculos!E38 -> Arquitetura | E41: =Cálculos!H38 -> R$ 16,010.91 | F41: =Cálculos!I38 -> R$ 40,027.27 | G41: =Cálculos!N38 -> R$ 8,796.20 | H41: =Cálculos!P38 -> 21.98% | I41: =Cálculos!Q38 -> 2.50x | J41: =Cálculos!U38 -> 1 | K41: =Cálculos!J38 -> R$ 40,027.27 | L41: =Cálculos!T38 -> Saudável
C42: =Cálculos!C39 -> Treinamento Corporativo | D42: =Cálculos!E39 -> Treinamento | E42: =Cálculos!H39 -> R$ 2,584.09 | F42: =Cálculos!I39 -> R$ 6,460.23 | G42: =Cálculos!N39 -> R$ 1,408.10 | H42: =Cálculos!P39 -> 21.80% | I42: =Cálculos!Q39 -> 2.50x | J42: =Cálculos!U39 -> 4 | K42: =Cálculos!J39 -> R$ 25,840.92 | L42: =Cálculos!T39 -> Saudável
C43: TOTAL | G43: =SUMPRODUCT(G36:G42,J36:J42) -> R$ 61,480.40 | K43: =SUM(K36:K42) -> R$ 281,900.20
C46: R3 — ITENS SEM MARGEM ADEQUADA / ABAIXO DO CUSTO
C47: Item | D47: Tipo | E47: Custo Total | F47: Preço | G47: Lucro Líquido | H47: Margem Líquida % | I47: Status | J47: Ação Recomendada
C48: =Cálculos!C25 -> Camiseta Premium | D48: =Cálculos!D25 -> Produto | E48: =Cálculos!H25 -> R$ 46.48 | F48: =Cálculos!I25 -> R$ 116.19 | G48: =Cálculos!N25 -> R$ 11.77 | H48: =Cálculos!P25 -> 10.13% | I48: =Cálculos!T25 -> Saudável | J48: =IF(H48<0,"Revisar preço urgente — venda com prejuízo",IF(H48<0.05,"Aumentar preço ou reduzir custo",IF(H48<0.15,"Monitorar margem","OK"))) -> Monitorar margem
C49: =Cálculos!C26 -> Caneca Cerâmica 350ml | D49: =Cálculos!D26 -> Produto | E49: =Cálculos!H26 -> R$ 29.76 | F49: =Cálculos!I26 -> R$ 74.39 | G49: =Cálculos!N26 -> R$ 2.57 | H49: =Cálculos!P26 -> 3.46% | I49: =Cálculos!T26 -> Margem baixa | J49: Aumentar preço ou reduzir custo
C50: =Cálculos!C27 -> Kit Presente Gourmet | D50: =Cálculos!D27 -> Produto | E50: =Cálculos!H27 -> R$ 69.28 | F50: =Cálculos!I27 -> R$ 173.19 | G50: =Cálculos!N27 -> R$ 24.32 | H50: =Cálculos!P27 -> 14.04% | I50: =Cálculos!T27 -> Saudável | J50: Monitorar margem
C51: =Cálculos!C28 -> Mochila Executiva | D51: =Cálculos!D28 -> Produto | E51: =Cálculos!H28 -> R$ 106.58 | F51: =Cálculos!I28 -> R$ 266.44 | G51: =Cálculos!N28 -> R$ 44.84 | H51: =Cálculos!P28 -> 16.83% | I51: =Cálculos!T28 -> Saudável | J51: OK
C52: =Cálculos!C29 -> Fone Bluetooth TWS | D52: =Cálculos!D29 -> Produto | E52: =Cálculos!H29 -> R$ 93.56 | F52: =Cálculos!I29 -> R$ 233.89 | G52: =Cálculos!N29 -> R$ 37.68 | H52: =Cálculos!P29 -> 16.11% | I52: =Cálculos!T29 -> Saudável | J52: OK
C53: =Cálculos!C30 -> Garrafa Térmica 1L | D53: =Cálculos!D30 -> Produto | E53: =Cálculos!H30 -> R$ 56.73 | F53: =Cálculos!I30 -> R$ 141.81 | G53: =Cálculos!N30 -> R$ 17.41 | H53: =Cálculos!P30 -> 12.28% | I53: =Cálculos!T30 -> Saudável | J53: Monitorar margem
C54: =Cálculos!C31 -> Agenda Executiva 2026 | D54: =Cálculos!D31 -> Produto | E54: =Cálculos!H31 -> R$ 38.54 | F54: =Cálculos!I31 -> R$ 96.34 | G54: =Cálculos!N31 -> R$ 7.40 | H54: =Cálculos!P31 -> 7.68% | I54: =Cálculos!T31 -> Saudável | J54: Monitorar margem
C55: =Cálculos!C32 -> Boné Trucker | D55: =Cálculos!D32 -> Produto | E55: =Cálculos!H32 -> R$ 35.49 | F55: =Cálculos!I32 -> R$ 88.72 | G55: =Cálculos!N32 -> R$ 5.73 | H55: =Cálculos!P32 -> 6.45% | I55: =Cálculos!T32 -> Saudável | J55: Monitorar margem
C56: =Cálculos!C33 -> Consultoria Empresarial | D56: =Cálculos!D33 -> Serviço | E56: =Cálculos!H33 -> R$ 2,292.61 | F56: =Cálculos!I33 -> R$ 5,731.53 | G56: =Cálculos!N33 -> R$ 1,247.71 | H56: =Cálculos!P33 -> 21.77% | I56: =Cálculos!T33 -> Saudável | J56: OK
C57: =Cálculos!C34 -> Criação de Identidade Visual | D57: =Cálculos!D34 -> Serviço | E57: =Cálculos!H34 -> R$ 5,514.15 | F57: =Cálculos!I34 -> R$ 13,785.37 | G57: =Cálculos!N34 -> R$ 3,020.36 | H57: =Cálculos!P34 -> 21.91% | I57: =Cálculos!T34 -> Saudável | J57: OK
C58: =Cálculos!C35 -> Manutenção Predial | D58: =Cálculos!D35 -> Serviço | E58: =Cálculos!H35 -> R$ 807.05 | F58: =Cálculos!I35 -> R$ 2,017.61 | G58: =Cálculos!N35 -> R$ 430.27 | H58: =Cálculos!P35 -> 21.33% | I58: =Cálculos!T35 -> Saudável | J58: OK
C59: =Cálculos!C36 -> Desenvolvimento de Sistema | D59: =Cálculos!D36 -> Serviço | E59: =Cálculos!H36 -> R$ 29,631.82 | F59: =Cálculos!I36 -> R$ 74,079.55 | G59: =Cálculos!N36 -> R$ 16,291.11 | H59: =Cálculos!P36 -> 21.99% | I59: =Cálculos!T36 -> Saudável | J59: OK
C60: =Cálculos!C37 -> Assessoria Contábil Mensal | D60: =Cálculos!D37 -> Serviço | E60: =Cálculos!H37 -> R$ 1,941.14 | F60: =Cálculos!I37 -> R$ 4,852.84 | G60: =Cálculos!N37 -> R$ 1,054.31 | H60: =Cálculos!P37 -> 21.73% | I60: =Cálculos!T37 -> Saudável | J60: OK
C61: =Cálculos!C38 -> Projeto Arquitetônico | D61: =Cálculos!D38 -> Serviço | E61: =Cálculos!H38 -> R$ 16,010.91 | F61: =Cálculos!I38 -> R$ 40,027.27 | G61: =Cálculos!N38 -> R$ 8,796.20 | H61: =Cálculos!P38 -> 21.98% | I61: =Cálculos!T38 -> Saudável | J61: OK
C62: =Cálculos!C39 -> Treinamento Corporativo | D62: =Cálculos!D39 -> Serviço | E62: =Cálculos!H39 -> R$ 2,584.09 | F62: =Cálculos!I39 -> R$ 6,460.23 | G62: =Cálculos!N39 -> R$ 1,408.10 | H62: =Cálculos!P39 -> 21.80% | I62: =Cálculos!T39 -> Saudável | J62: OK
C64: Itens com prejuízo: | D64: =Cálculos!$D$66 -> 0
C65: Itens com margem baixa: | D65: =Cálculos!$D$67 -> 1
C66: Itens saudáveis: | D66: =Cálculos!$D$68 -> 14
C69: R4 — RESUMO GERAL DE CUSTOS E DESPESAS
C70: Custos fixos totais (mês) | D70: =Cálculos!$D$13 -> R$ 25,230.00
C71: Custos fixos rateáveis | D71: =Cálculos!$D$12 -> R$ 23,730.00
C72: Custos fixos não rateáveis | D72: =Cálculos!$D$13-Cálculos!$D$12 -> R$ 1,500.00
C73: Custo fixo rateado por unidade | D73: =Cálculos!$D$14 -> R$ 19.78
C74: Custos variáveis — total unitário cadastrado | D74: =SUM('Custos Variáveis'!$F$8:$F$15) -> R$ 23.25
C75: Custos variáveis — total percentual | D75: =SUM('Custos Variáveis'!$G$8:$G$15) -> 26.49%
C76: Despesas comerciais — % sobre preço | D76: =Cálculos!$D$15 -> 29.49%
C77: Despesas comerciais — valor fixo por unidade | D77: =Cálculos!$D$16 -> R$ 13.80
C78: Carga tributária do regime ativo | D78: =Cálculos!$D$10 -> 8.50%
C79: Custo total estimado (mês) | D79: =Cálculos!$D$48 -> R$ 171,880.29
C80: Custo médio por item | D80: =Cálculos!$D$52 -> R$ 3,950.54
C81: Folha de pagamento (salários + encargos) | D81: =SUMPRODUCT(Funcionários!$E$8:$E$14,1+Funcionários!$F$8:$F$14) -> R$ 69,280.00
C82: Depreciação mensal de máquinas | D82: =SUM(Máquinas!$F$8:$F$13) -> R$ 2,032.29
C85: R5 — RESUMO FINANCEIRO E RECEITAS PROJETADAS
C86: Receita estimada mensal | D86: =Cálculos!$D$47 -> R$ 429,701.60
C87: Receita anualizada | D87: =Cálculos!$D$47*12 -> R$ 5,156,419.20
C88: Lucro bruto estimado | D88: =Cálculos!$D$49 -> R$ 292,761.43
C89: Lucro líquido estimado | D89: =Cálculos!$D$50 -> R$ 77,451.87
C90: Lucro líquido anualizado | D90: =Cálculos!$D$50*12 -> R$ 929,422.48
C91: Ticket médio | D91: =Cálculos!$D$51 -> R$ 346.25
C92: Margem líquida média | D92: =Cálculos!$D$53 -> 15.97%
C93: Markup médio efetivo | D93: =Cálculos!$D$54 -> 2.50x
C94: Margem de contribuição total | D94: =Cálculos!$D$61 -> R$ 112,391.99
C95: MC média (%) | D95: =Cálculos!$D$62 -> 26.29%
C96: Ponto de equilíbrio (faturamento) | D96: =Cálculos!$D$63 -> R$ 95,962.47
C97: Rentabilidade sobre receita | D97: =Cálculos!$D$65 -> 18.02%
C98: Tributos totais estimados | D98: =Cálculos!$D$47*Cálculos!$D$10 -> R$ 36,524.64
C99: Despesas comerciais totais estimadas | D99: =Cálculos!$D$47*Cálculos!$D$15 -> R$ 126,719.00
C102: R6 — MARGEM, MARKUP E LUCRO POR CATEGORIA
C103: Categoria | D103: Nº Itens | E103: Receita | F103: Lucro Líquido Total | G103: Margem Média % | H103: Markup Médio | I103: Custo Médio | J103: Participação na Receita %
C104: Vestuário | D104: =COUNTIF(Cálculos!$E$25:$E$39,$C104) -> 2 | E104: =SUMIF(Cálculos!$E$25:$E$39,$C104,Cálculos!$J$25:$J$39) -> R$ 34,877.40 | F104: =SUMPRODUCT((Cálculos!$E$25:$E$39=$C104)*Cálculos!$N$25:$N$39*Cálculos!$U$25:$U$39) -> R$ 3,191.60 | G104: =IFERROR(AVERAGEIF(Cálculos!$E$25:$E$39,$C104,Cálculos!$P$25:$P$39),0) -> 8.29% | H104: =IFERROR(AVERAGEIF(Cálculos!$E$25:$E$39,$C104,Cálculos!$Q$25:$Q$39),0) -> 2.50x | I104: =IFERROR(AVERAGEIF(Cálculos!$E$25:$E$39,$C104,Cálculos!$H$25:$H$39),0) -> R$ 40.98 | J104: =IFERROR(E104/Cálculos!$D$47,0) -> 8.12%
C105: Utilidades | D105: =COUNTIF(Cálculos!$E$25:$E$39,$C105) -> 2 | E105: =SUMIF(Cálculos!$E$25:$E$39,$C105,Cálculos!$J$25:$J$39) -> R$ 49,539.70 | F105: =SUMPRODUCT((Cálculos!$E$25:$E$39=$C105)*Cálculos!$N$25:$N$39*Cálculos!$U$25:$U$39) -> R$ 3,589.92 | G105: =IFERROR(AVERAGEIF(Cálculos!$E$25:$E$39,$C105,Cálculos!$P$25:$P$39),0) -> 7.87% | H105: =IFERROR(AVERAGEIF(Cálculos!$E$25:$E$39,$C105,Cálculos!$Q$25:$Q$39),0) -> 2.50x | I105: =IFERROR(AVERAGEIF(Cálculos!$E$25:$E$39,$C105,Cálculos!$H$25:$H$39),0) -> R$ 43.24 | J105: =IFERROR(E105/Cálculos!$D$47,0) -> 11.53%
C106: Alimentos | D106: =COUNTIF(Cálculos!$E$25:$E$39,$C106) -> 1 | E106: =SUMIF(Cálculos!$E$25:$E$39,$C106,Cálculos!$J$25:$J$39) -> R$ 10,391.40 | F106: =SUMPRODUCT((Cálculos!$E$25:$E$39=$C106)*Cálculos!$N$25:$N$39*Cálculos!$U$25:$U$39) -> R$ 1,459.21 | G106: =IFERROR(AVERAGEIF(Cálculos!$E$25:$E$39,$C106,Cálculos!$P$25:$P$39),0) -> 14.04% | H106: =IFERROR(AVERAGEIF(Cálculos!$E$25:$E$39,$C106,Cálculos!$Q$25:$Q$39),0) -> 2.50x | I106: =IFERROR(AVERAGEIF(Cálculos!$E$25:$E$39,$C106,Cálculos!$H$25:$H$39),0) -> R$ 69.28 | J106: =IFERROR(E106/Cálculos!$D$47,0) -> 2.42%
C107: Acessórios | D107: =COUNTIF(Cálculos!$E$25:$E$39,$C107) -> 1 | E107: =SUMIF(Cálculos!$E$25:$E$39,$C107,Cálculos!$J$25:$J$39) -> R$ 11,989.80 | F107: =SUMPRODUCT((Cálculos!$E$25:$E$39=$C107)*Cálculos!$N$25:$N$39*Cálculos!$U$25:$U$39) -> R$ 2,018.00 | G107: =IFERROR(AVERAGEIF(Cálculos!$E$25:$E$39,$C107,Cálculos!$P$25:$P$39),0) -> 16.83% | H107: =IFERROR(AVERAGEIF(Cálculos!$E$25:$E$39,$C107,Cálculos!$Q$25:$Q$39),0) -> 2.50x | I107: =IFERROR(AVERAGEIF(Cálculos!$E$25:$E$39,$C107,Cálculos!$H$25:$H$39),0) -> R$ 106.58 | J107: =IFERROR(E107/Cálculos!$D$47,0) -> 2.79%
C108: Eletrônicos | D108: =COUNTIF(Cálculos!$E$25:$E$39,$C108) -> 1 | E108: =SUMIF(Cálculos!$E$25:$E$39,$C108,Cálculos!$J$25:$J$39) -> R$ 30,405.70 | F108: =SUMPRODUCT((Cálculos!$E$25:$E$39=$C108)*Cálculos!$N$25:$N$39*Cálculos!$U$25:$U$39) -> R$ 4,898.42 | G108: =IFERROR(AVERAGEIF(Cálculos!$E$25:$E$39,$C108,Cálculos!$P$25:$P$39),0) -> 16.11% | H108: =IFERROR(AVERAGEIF(Cálculos!$E$25:$E$39,$C108,Cálculos!$Q$25:$Q$39),0) -> 2.50x | I108: =IFERROR(AVERAGEIF(Cálculos!$E$25:$E$39,$C108,Cálculos!$H$25:$H$39),0) -> R$ 93.56 | J108: =IFERROR(E108/Cálculos!$D$47,0) -> 7.08%
C109: Papelaria | D109: =COUNTIF(Cálculos!$E$25:$E$39,$C109) -> 1 | E109: =SUMIF(Cálculos!$E$25:$E$39,$C109,Cálculos!$J$25:$J$39) -> R$ 10,597.40 | F109: =SUMPRODUCT((Cálculos!$E$25:$E$39=$C109)*Cálculos!$N$25:$N$39*Cálculos!$U$25:$U$39) -> R$ 814.32 | G109: =IFERROR(AVERAGEIF(Cálculos!$E$25:$E$39,$C109,Cálculos!$P$25:$P$39),0) -> 7.68% | H109: =IFERROR(AVERAGEIF(Cálculos!$E$25:$E$39,$C109,Cálculos!$Q$25:$Q$39),0) -> 2.50x | I109: =IFERROR(AVERAGEIF(Cálculos!$E$25:$E$39,$C109,Cálculos!$H$25:$H$39),0) -> R$ 38.54 | J109: =IFERROR(E109/Cálculos!$D$47,0) -> 2.47%
C110: Consultoria | D110: =COUNTIF(Cálculos!$E$25:$E$39,$C110) -> 1 | E110: =SUMIF(Cálculos!$E$25:$E$39,$C110,Cálculos!$J$25:$J$39) -> R$ 34,389.18 | F110: =SUMPRODUCT((Cálculos!$E$25:$E$39=$C110)*Cálculos!$N$25:$N$39*Cálculos!$U$25:$U$39) -> R$ 7,486.25 | G110: =IFERROR(AVERAGEIF(Cálculos!$E$25:$E$39,$C110,Cálculos!$P$25:$P$39),0) -> 21.77% | H110: =IFERROR(AVERAGEIF(Cálculos!$E$25:$E$39,$C110,Cálculos!$Q$25:$Q$39),0) -> 2.50x | I110: =IFERROR(AVERAGEIF(Cálculos!$E$25:$E$39,$C110,Cálculos!$H$25:$H$39),0) -> R$ 2,292.61 | J110: =IFERROR(E110/Cálculos!$D$47,0) -> 8.00%
C111: Design | D111: =COUNTIF(Cálculos!$E$25:$E$39,$C111) -> 1 | E111: =SUMIF(Cálculos!$E$25:$E$39,$C111,Cálculos!$J$25:$J$39) -> R$ 27,570.74 | F111: =SUMPRODUCT((Cálculos!$E$25:$E$39=$C111)*Cálculos!$N$25:$N$39*Cálculos!$U$25:$U$39) -> R$ 6,040.72 | G111: =IFERROR(AVERAGEIF(Cálculos!$E$25:$E$39,$C111,Cálculos!$P$25:$P$39),0) -> 21.91% | H111: =IFERROR(AVERAGEIF(Cálculos!$E$25:$E$39,$C111,Cálculos!$Q$25:$Q$39),0) -> 2.50x | I111: =IFERROR(AVERAGEIF(Cálculos!$E$25:$E$39,$C111,Cálculos!$H$25:$H$39),0) -> R$ 5,514.15 | J111: =IFERROR(E111/Cálculos!$D$47,0) -> 6.42%
C112: Manutenção | D112: =COUNTIF(Cálculos!$E$25:$E$39,$C112) -> 1 | E112: =SUMIF(Cálculos!$E$25:$E$39,$C112,Cálculos!$J$25:$J$39) -> R$ 36,316.98 | F112: =SUMPRODUCT((Cálculos!$E$25:$E$39=$C112)*Cálculos!$N$25:$N$39*Cálculos!$U$25:$U$39) -> R$ 7,744.94 | G112: =IFERROR(AVERAGEIF(Cálculos!$E$25:$E$39,$C112,Cálculos!$P$25:$P$39),0) -> 21.33% | H112: =IFERROR(AVERAGEIF(Cálculos!$E$25:$E$39,$C112,Cálculos!$Q$25:$Q$39),0) -> 2.50x | I112: =IFERROR(AVERAGEIF(Cálculos!$E$25:$E$39,$C112,Cálculos!$H$25:$H$39),0) -> R$ 807.05 | J112: =IFERROR(E112/Cálculos!$D$47,0) -> 8.45%
C113: Tecnologia | D113: =COUNTIF(Cálculos!$E$25:$E$39,$C113) -> 1 | E113: =SUMIF(Cálculos!$E$25:$E$39,$C113,Cálculos!$J$25:$J$39) -> R$ 74,079.55 | F113: =SUMPRODUCT((Cálculos!$E$25:$E$39=$C113)*Cálculos!$N$25:$N$39*Cálculos!$U$25:$U$39) -> R$ 16,291.11 | G113: =IFERROR(AVERAGEIF(Cálculos!$E$25:$E$39,$C113,Cálculos!$P$25:$P$39),0) -> 21.99% | H113: =IFERROR(AVERAGEIF(Cálculos!$E$25:$E$39,$C113,Cálculos!$Q$25:$Q$39),0) -> 2.50x | I113: =IFERROR(AVERAGEIF(Cálculos!$E$25:$E$39,$C113,Cálculos!$H$25:$H$39),0) -> R$ 29,631.82 | J113: =IFERROR(E113/Cálculos!$D$47,0) -> 17.24%
C114: Contabilidade | D114: =COUNTIF(Cálculos!$E$25:$E$39,$C114) -> 1 | E114: =SUMIF(Cálculos!$E$25:$E$39,$C114,Cálculos!$J$25:$J$39) -> R$ 43,675.56 | F114: =SUMPRODUCT((Cálculos!$E$25:$E$39=$C114)*Cálculos!$N$25:$N$39*Cálculos!$U$25:$U$39) -> R$ 9,488.79 | G114: =IFERROR(AVERAGEIF(Cálculos!$E$25:$E$39,$C114,Cálculos!$P$25:$P$39),0) -> 21.73% | H114: =IFERROR(AVERAGEIF(Cálculos!$E$25:$E$39,$C114,Cálculos!$Q$25:$Q$39),0) -> 2.50x | I114: =IFERROR(AVERAGEIF(Cálculos!$E$25:$E$39,$C114,Cálculos!$H$25:$H$39),0) -> R$ 1,941.14 | J114: =IFERROR(E114/Cálculos!$D$47,0) -> 10.16%
C115: Arquitetura | D115: =COUNTIF(Cálculos!$E$25:$E$39,$C115) -> 1 | E115: =SUMIF(Cálculos!$E$25:$E$39,$C115,Cálculos!$J$25:$J$39) -> R$ 40,027.27 | F115: =SUMPRODUCT((Cálculos!$E$25:$E$39=$C115)*Cálculos!$N$25:$N$39*Cálculos!$U$25:$U$39) -> R$ 8,796.20 | G115: =IFERROR(AVERAGEIF(Cálculos!$E$25:$E$39,$C115,Cálculos!$P$25:$P$39),0) -> 21.98% | H115: =IFERROR(AVERAGEIF(Cálculos!$E$25:$E$39,$C115,Cálculos!$Q$25:$Q$39),0) -> 2.50x | I115: =IFERROR(AVERAGEIF(Cálculos!$E$25:$E$39,$C115,Cálculos!$H$25:$H$39),0) -> R$ 16,010.91 | J115: =IFERROR(E115/Cálculos!$D$47,0) -> 9.32%
C116: Treinamento | D116: =COUNTIF(Cálculos!$E$25:$E$39,$C116) -> 1 | E116: =SUMIF(Cálculos!$E$25:$E$39,$C116,Cálculos!$J$25:$J$39) -> R$ 25,840.92 | F116: =SUMPRODUCT((Cálculos!$E$25:$E$39=$C116)*Cálculos!$N$25:$N$39*Cálculos!$U$25:$U$39) -> R$ 5,632.39 | G116: =IFERROR(AVERAGEIF(Cálculos!$E$25:$E$39,$C116,Cálculos!$P$25:$P$39),0) -> 21.80% | H116: =IFERROR(AVERAGEIF(Cálculos!$E$25:$E$39,$C116,Cálculos!$Q$25:$Q$39),0) -> 2.50x | I116: =IFERROR(AVERAGEIF(Cálculos!$E$25:$E$39,$C116,Cálculos!$H$25:$H$39),0) -> R$ 2,584.09 | J116: =IFERROR(E116/Cálculos!$D$47,0) -> 6.01%
C118: TOTAL | E118: =SUM(E104:E116) -> R$ 429,701.60 | F118: =SUM(F104:F116) -> R$ 77,451.87 | J118: =SUM(J104:J116) -> 100.00%
C121: R7 — IMPACTO DOS TRIBUTOS E DAS DESPESAS COMERCIAIS NO PREÇO
C122: Item | D122: Preço de Venda | E122: Custo (%) | F122: Tributos (%) | G122: Desp. Comerciais (%) | H122: Lucro (%) | I122: Tributos R$ | J122: Desp. Comerciais R$ | K122: Total de Deduções
C123: =Cálculos!C25 -> Camiseta Premium | D123: =Cálculos!I25 -> R$ 116.19 | E123: =IFERROR(Cálculos!H25/Cálculos!I25,0) -> 40.00% | F123: =IFERROR(Cálculos!K25/Cálculos!I25,0) -> 8.50% | G123: =IFERROR(Cálculos!L25/Cálculos!I25,0) -> 41.37% | H123: =Cálculos!P25 -> 10.13% | I123: =Cálculos!K25 -> R$ 9.88 | J123: =Cálculos!L25 -> R$ 48.06 | K123: =I123+J123 -> R$ 57.94
C124: =Cálculos!C26 -> Caneca Cerâmica 350ml | D124: =Cálculos!I26 -> R$ 74.39 | E124: =IFERROR(Cálculos!H26/Cálculos!I26,0) -> 40.00% | F124: =IFERROR(Cálculos!K26/Cálculos!I26,0) -> 8.50% | G124: =IFERROR(Cálculos!L26/Cálculos!I26,0) -> 48.04% | H124: =Cálculos!P26 -> 3.46% | I124: =Cálculos!K26 -> R$ 6.32 | J124: =Cálculos!L26 -> R$ 35.74 | K124: R$ 42.06
C125: =Cálculos!C27 -> Kit Presente Gourmet | D125: =Cálculos!I27 -> R$ 173.19 | E125: =IFERROR(Cálculos!H27/Cálculos!I27,0) -> 40.00% | F125: =IFERROR(Cálculos!K27/Cálculos!I27,0) -> 8.50% | G125: =IFERROR(Cálculos!L27/Cálculos!I27,0) -> 37.46% | H125: =Cálculos!P27 -> 14.04% | I125: =Cálculos!K27 -> R$ 14.72 | J125: =Cálculos!L27 -> R$ 64.87 | K125: R$ 79.59
C126: =Cálculos!C28 -> Mochila Executiva | D126: =Cálculos!I28 -> R$ 266.44 | E126: =IFERROR(Cálculos!H28/Cálculos!I28,0) -> 40.00% | F126: =IFERROR(Cálculos!K28/Cálculos!I28,0) -> 8.50% | G126: =IFERROR(Cálculos!L28/Cálculos!I28,0) -> 34.67% | H126: =Cálculos!P28 -> 16.83% | I126: =Cálculos!K28 -> R$ 22.65 | J126: =Cálculos!L28 -> R$ 92.37 | K126: R$ 115.02
C127: =Cálculos!C29 -> Fone Bluetooth TWS | D127: =Cálculos!I29 -> R$ 233.89 | E127: =IFERROR(Cálculos!H29/Cálculos!I29,0) -> 40.00% | F127: =IFERROR(Cálculos!K29/Cálculos!I29,0) -> 8.50% | G127: =IFERROR(Cálculos!L29/Cálculos!I29,0) -> 35.39% | H127: =Cálculos!P29 -> 16.11% | I127: =Cálculos!K29 -> R$ 19.88 | J127: =Cálculos!L29 -> R$ 82.77 | K127: R$ 102.65
C128: =Cálculos!C30 -> Garrafa Térmica 1L | D128: =Cálculos!I30 -> R$ 141.81 | E128: =IFERROR(Cálculos!H30/Cálculos!I30,0) -> 40.00% | F128: =IFERROR(Cálculos!K30/Cálculos!I30,0) -> 8.50% | G128: =IFERROR(Cálculos!L30/Cálculos!I30,0) -> 39.22% | H128: =Cálculos!P30 -> 12.28% | I128: =Cálculos!K30 -> R$ 12.05 | J128: =Cálculos!L30 -> R$ 55.62 | K128: R$ 67.67
C129: =Cálculos!C31 -> Agenda Executiva 2026 | D129: =Cálculos!I31 -> R$ 96.34 | E129: =IFERROR(Cálculos!H31/Cálculos!I31,0) -> 40.00% | F129: =IFERROR(Cálculos!K31/Cálculos!I31,0) -> 8.50% | G129: =IFERROR(Cálculos!L31/Cálculos!I31,0) -> 43.81% | H129: =Cálculos!P31 -> 7.68% | I129: =Cálculos!K31 -> R$ 8.19 | J129: =Cálculos!L31 -> R$ 42.21 | K129: R$ 50.40
C130: =Cálculos!C32 -> Boné Trucker | D130: =Cálculos!I32 -> R$ 88.72 | E130: =IFERROR(Cálculos!H32/Cálculos!I32,0) -> 40.00% | F130: =IFERROR(Cálculos!K32/Cálculos!I32,0) -> 8.50% | G130: =IFERROR(Cálculos!L32/Cálculos!I32,0) -> 45.04% | H130: =Cálculos!P32 -> 6.45% | I130: =Cálculos!K32 -> R$ 7.54 | J130: =Cálculos!L32 -> R$ 39.96 | K130: R$ 47.50
C131: =Cálculos!C33 -> Consultoria Empresarial | D131: =Cálculos!I33 -> R$ 5,731.53 | E131: =IFERROR(Cálculos!H33/Cálculos!I33,0) -> 40.00% | F131: =IFERROR(Cálculos!K33/Cálculos!I33,0) -> 8.50% | G131: =IFERROR(Cálculos!L33/Cálculos!I33,0) -> 29.73% | H131: =Cálculos!P33 -> 21.77% | I131: =Cálculos!K33 -> R$ 487.18 | J131: =Cálculos!L33 -> R$ 1,704.03 | K131: R$ 2,191.21
C132: =Cálculos!C34 -> Criação de Identidade Visual | D132: =Cálculos!I34 -> R$ 13,785.37 | E132: =IFERROR(Cálculos!H34/Cálculos!I34,0) -> 40.00% | F132: =IFERROR(Cálculos!K34/Cálculos!I34,0) -> 8.50% | G132: =IFERROR(Cálculos!L34/Cálculos!I34,0) -> 29.59% | H132: =Cálculos!P34 -> 21.91% | I132: =Cálculos!K34 -> R$ 1,171.76 | J132: =Cálculos!L34 -> R$ 4,079.11 | K132: R$ 5,250.86
C133: =Cálculos!C35 -> Manutenção Predial | D133: =Cálculos!I35 -> R$ 2,017.61 | E133: =IFERROR(Cálculos!H35/Cálculos!I35,0) -> 40.00% | F133: =IFERROR(Cálculos!K35/Cálculos!I35,0) -> 8.50% | G133: =IFERROR(Cálculos!L35/Cálculos!I35,0) -> 30.17% | H133: =Cálculos!P35 -> 21.33% | I133: =Cálculos!K35 -> R$ 171.50 | J133: =Cálculos!L35 -> R$ 608.79 | K133: R$ 780.29
C134: =Cálculos!C36 -> Desenvolvimento de Sistema | D134: =Cálculos!I36 -> R$ 74,079.55 | E134: =IFERROR(Cálculos!H36/Cálculos!I36,0) -> 40.00% | F134: =IFERROR(Cálculos!K36/Cálculos!I36,0) -> 8.50% | G134: =IFERROR(Cálculos!L36/Cálculos!I36,0) -> 29.51% | H134: =Cálculos!P36 -> 21.99% | I134: =Cálculos!K36 -> R$ 6,296.76 | J134: =Cálculos!L36 -> R$ 21,859.86 | K134: R$ 28,156.62
C135: =Cálculos!C37 -> Assessoria Contábil Mensal | D135: =Cálculos!I37 -> R$ 4,852.84 | E135: =IFERROR(Cálculos!H37/Cálculos!I37,0) -> 40.00% | F135: =IFERROR(Cálculos!K37/Cálculos!I37,0) -> 8.50% | G135: =IFERROR(Cálculos!L37/Cálculos!I37,0) -> 29.77% | H135: =Cálculos!P37 -> 21.73% | I135: =Cálculos!K37 -> R$ 412.49 | J135: =Cálculos!L37 -> R$ 1,444.90 | K135: R$ 1,857.39
C136: =Cálculos!C38 -> Projeto Arquitetônico | D136: =Cálculos!I38 -> R$ 40,027.27 | E136: =IFERROR(Cálculos!H38/Cálculos!I38,0) -> 40.00% | F136: =IFERROR(Cálculos!K38/Cálculos!I38,0) -> 8.50% | G136: =IFERROR(Cálculos!L38/Cálculos!I38,0) -> 29.52% | H136: =Cálculos!P38 -> 21.98% | I136: =Cálculos!K38 -> R$ 3,402.32 | J136: =Cálculos!L38 -> R$ 11,817.84 | K136: R$ 15,220.16
C137: =Cálculos!C39 -> Treinamento Corporativo | D137: =Cálculos!I39 -> R$ 6,460.23 | E137: =IFERROR(Cálculos!H39/Cálculos!I39,0) -> 40.00% | F137: =IFERROR(Cálculos!K39/Cálculos!I39,0) -> 8.50% | G137: =IFERROR(Cálculos!L39/Cálculos!I39,0) -> 29.70% | H137: =Cálculos!P39 -> 21.80% | I137: =Cálculos!K39 -> R$ 549.12 | J137: =Cálculos!L39 -> R$ 1,918.92 | K137: R$ 2,468.04
C140: R8 — COMPARATIVO ENTRE MÉTODOS DE PRECIFICAÇÃO
C141: Produto | D141: Markup | E141: Margem | F141: Lucro Desejado | G141: Comércio | H141: Indústria | I141: E-commerce | J141: Delivery | K141: Artesanato | L141: Diferença % | M141: Método de Maior Preço
C142: ='Comparativo Métodos'!C8 -> Camiseta Premium | D142: ='Comparativo Métodos'!E8 -> R$ 116.19 | E142: ='Comparativo Métodos'!F8 -> R$ 162.86 | F142: ='Comparativo Métodos'!G8 -> R$ 115.94 | G142: ='Comparativo Métodos'!H8 -> R$ 64.00 | H142: ='Comparativo Métodos'!I8 -> R$ 198.39 | I142: ='Comparativo Métodos'!J8 -> R$ 140.14 | J142: ='Comparativo Métodos'!K8 -> R$ 126.04 | K142: ='Comparativo Métodos'!L8 -> R$ 140.15 | L142: ='Comparativo Métodos'!O8 -> 209.98% | M142: ='Comparativo Métodos'!P8 -> Indústria
C143: ='Comparativo Métodos'!C9 -> Caneca Cerâmica 350ml | D143: ='Comparativo Métodos'!E9 -> R$ 74.39 | E143: ='Comparativo Métodos'!F9 -> R$ 117.68 | F143: ='Comparativo Métodos'!G9 -> R$ 82.24 | G143: ='Comparativo Métodos'!H9 -> R$ 24.25 | H143: ='Comparativo Métodos'!I9 -> R$ 129.78 | I143: ='Comparativo Métodos'!J9 -> R$ 101.27 | J143: ='Comparativo Métodos'!K9 -> R$ 83.71 | K143: ='Comparativo Métodos'!L9 -> R$ 69.92 | L143: ='Comparativo Métodos'!O9 -> 435.18% | M143: ='Comparativo Métodos'!P9 -> Indústria
C144: ='Comparativo Métodos'!C10 -> Kit Presente Gourmet | D144: ='Comparativo Métodos'!E10 -> R$ 173.19 | E144: ='Comparativo Métodos'!F10 -> R$ 224.47 | F144: ='Comparativo Métodos'!G10 -> R$ 161.90 | G144: ='Comparativo Métodos'!H10 -> R$ 120.00 | H144: ='Comparativo Métodos'!I10 -> R$ 308.66 | I144: ='Comparativo Métodos'!J10 -> R$ 193.15 | J144: ='Comparativo Métodos'!K10 -> R$ 183.76 | K144: ='Comparativo Métodos'!L10 -> R$ 209.92 | L144: ='Comparativo Métodos'!O10 -> 157.22% | M144: ='Comparativo Métodos'!P10 -> Indústria
C145: ='Comparativo Métodos'!C11 -> Mochila Executiva | D145: ='Comparativo Métodos'!E11 -> R$ 266.44 | E145: ='Comparativo Métodos'!F11 -> R$ 325.25 | F145: ='Comparativo Métodos'!G11 -> R$ 237.08 | G145: ='Comparativo Métodos'!H11 -> R$ 210.00 | H145: ='Comparativo Métodos'!I11 -> R$ 461.55 | I145: ='Comparativo Métodos'!J11 -> R$ 279.88 | J145: ='Comparativo Métodos'!K11 -> R$ 278.19 | K145: ='Comparativo Métodos'!L11 -> R$ 364.51 | L145: ='Comparativo Métodos'!O11 -> 119.79% | M145: ='Comparativo Métodos'!P11 -> Indústria
C146: ='Comparativo Métodos'!C12 -> Fone Bluetooth TWS | D146: ='Comparativo Métodos'!E12 -> R$ 233.89 | E146: ='Comparativo Métodos'!F12 -> R$ 290.07 | F146: ='Comparativo Métodos'!G12 -> R$ 210.85 | G146: ='Comparativo Métodos'!H12 -> R$ 178.83 | H146: ='Comparativo Métodos'!I12 -> R$ 322.47 | I146: ='Comparativo Métodos'!J12 -> R$ 249.60 | J146: ='Comparativo Métodos'!K12 -> R$ 245.23 | K146: ='Comparativo Métodos'!L12 -> R$ 178.65 | L146: ='Comparativo Métodos'!O12 -> 80.50% | M146: ='Comparativo Métodos'!P12 -> Indústria
C147: ='Comparativo Métodos'!C13 -> Garrafa Térmica 1L | D147: ='Comparativo Métodos'!E13 -> R$ 141.81 | E147: ='Comparativo Métodos'!F13 -> R$ 190.56 | F147: ='Comparativo Métodos'!G13 -> R$ 136.60 | G147: ='Comparativo Métodos'!H13 -> R$ 90.83 | H147: ='Comparativo Métodos'!I13 -> R$ 214.68 | I147: ='Comparativo Métodos'!J13 -> R$ 163.97 | J147: ='Comparativo Métodos'!K13 -> R$ 151.99 | K147: ='Comparativo Métodos'!L13 -> R$ 122.41 | L147: ='Comparativo Métodos'!O13 -> 136.35% | M147: ='Comparativo Métodos'!P13 -> Indústria
C148: ='Comparativo Métodos'!C14 -> Agenda Executiva 2026 | D148: ='Comparativo Métodos'!E14 -> R$ 96.34 | E148: ='Comparativo Métodos'!F14 -> R$ 141.41 | F148: ='Comparativo Métodos'!G14 -> R$ 99.93 | G148: ='Comparativo Métodos'!H14 -> R$ 46.25 | H148: ='Comparativo Métodos'!I14 -> R$ 145.69 | I148: ='Comparativo Métodos'!J14 -> R$ 121.69 | J148: ='Comparativo Métodos'!K14 -> R$ 105.94 | K148: ='Comparativo Métodos'!L14 -> R$ 68.87 | L148: ='Comparativo Métodos'!O14 -> 215.01% | M148: ='Comparativo Métodos'!P14 -> Indústria
C149: ='Comparativo Métodos'!C15 -> Boné Trucker | D149: ='Comparativo Métodos'!E15 -> R$ 88.72 | E149: ='Comparativo Métodos'!F15 -> R$ 133.18 | F149: ='Comparativo Métodos'!G15 -> R$ 93.79 | G149: ='Comparativo Métodos'!H15 -> R$ 38.39 | H149: ='Comparativo Métodos'!I15 -> R$ 152.37 | I149: ='Comparativo Métodos'!J15 -> R$ 114.60 | J149: ='Comparativo Métodos'!K15 -> R$ 98.23 | K149: ='Comparativo Métodos'!L15 -> R$ 84.66 | L149: ='Comparativo Métodos'!O15 -> 296.90% | M149: ='Comparativo Métodos'!P15 -> Indústria
C152: R9 — RANKING DE LUCRATIVIDADE E ITENS COM MENOR MARGEM
C153: # | D153: Mais Lucrativos (Produtos) | E153: Lucro Líquido | G153: # | H153: Mais Lucrativos (Serviços) | I153: Lucro Líquido
C154: 1 | D154: =Cálculos!C74 -> Mochila Executiva | E154: =Cálculos!D74 -> R$ 44.84 | G154: 1 | H154: =Cálculos!G74 -> Desenvolvimento de Sistema | I154: =Cálculos!H74 -> R$ 16,291.11
C155: 2 | D155: =Cálculos!C75 -> Fone Bluetooth TWS | E155: =Cálculos!D75 -> R$ 37.68 | G155: 2 | H155: =Cálculos!G75 -> Projeto Arquitetônico | I155: =Cálculos!H75 -> R$ 8,796.20
C156: 3 | D156: =Cálculos!C76 -> Kit Presente Gourmet | E156: =Cálculos!D76 -> R$ 24.32 | G156: 3 | H156: =Cálculos!G76 -> Criação de Identidade Visual | I156: =Cálculos!H76 -> R$ 3,020.36
C157: 4 | D157: =Cálculos!C77 -> Garrafa Térmica 1L | E157: =Cálculos!D77 -> R$ 17.41 | G157: 4 | H157: =Cálculos!G77 -> Treinamento Corporativo | I157: =Cálculos!H77 -> R$ 1,408.10
C158: 5 | D158: =Cálculos!C78 -> Camiseta Premium | E158: =Cálculos!D78 -> R$ 11.77 | G158: 5 | H158: =Cálculos!G78 -> Consultoria Empresarial | I158: =Cálculos!H78 -> R$ 1,247.71
C159: 6 | D159: =Cálculos!C79 -> Agenda Executiva 2026 | E159: =Cálculos!D79 -> R$ 7.40 | G159: 6 | H159: =Cálculos!G79 -> Assessoria Contábil Mensal | I159: =Cálculos!H79 -> R$ 1,054.31
C160: 7 | D160: =Cálculos!C80 -> Boné Trucker | E160: =Cálculos!D80 -> R$ 5.73 | G160: 7 | H160: =Cálculos!G80 -> Manutenção Predial | I160: =Cálculos!H80 -> R$ 430.27
C161: 8 | D161: =Cálculos!C81 -> Caneca Cerâmica 350ml | E161: =Cálculos!D81 -> R$ 2.57
C164: # | D164: Itens com Menor Margem Líquida | E164: Margem % | F164: Lucro Líquido | G164: Status
C165: 1 | D165: =IFERROR(INDEX(Cálculos!$C$25:$C$39,MATCH(SMALL(Cálculos!$P$25:$P$39,1),Cálculos!$P$25:$P$39,0)),"-") -> Caneca Cerâmica 350ml | E165: =IFERROR(SMALL(Cálculos!$P$25:$P$39,1),0) -> 3.46% | F165: =IFERROR(INDEX(Cálculos!$N$25:$N$39,MATCH(SMALL(Cálculos!$P$25:$P$39,1),Cálculos!$P$25:$P$39,0)),0) -> R$ 2.57 | G165: =IFERROR(INDEX(Cálculos!$T$25:$T$39,MATCH(SMALL(Cálculos!$P$25:$P$39,1),Cálculos!$P$25:$P$39,0)),"-") -> Margem baixa
C166: 2 | D166: =IFERROR(INDEX(Cálculos!$C$25:$C$39,MATCH(SMALL(Cálculos!$P$25:$P$39,2),Cálculos!$P$25:$P$39,0)),"-") -> Boné Trucker | E166: =IFERROR(SMALL(Cálculos!$P$25:$P$39,2),0) -> 6.45% | F166: =IFERROR(INDEX(Cálculos!$N$25:$N$39,MATCH(SMALL(Cálculos!$P$25:$P$39,2),Cálculos!$P$25:$P$39,0)),0) -> R$ 5.73 | G166: =IFERROR(INDEX(Cálculos!$T$25:$T$39,MATCH(SMALL(Cálculos!$P$25:$P$39,2),Cálculos!$P$25:$P$39,0)),"-") -> Saudável
C167: 3 | D167: =IFERROR(INDEX(Cálculos!$C$25:$C$39,MATCH(SMALL(Cálculos!$P$25:$P$39,3),Cálculos!$P$25:$P$39,0)),"-") -> Agenda Executiva 2026 | E167: =IFERROR(SMALL(Cálculos!$P$25:$P$39,3),0) -> 7.68% | F167: =IFERROR(INDEX(Cálculos!$N$25:$N$39,MATCH(SMALL(Cálculos!$P$25:$P$39,3),Cálculos!$P$25:$P$39,0)),0) -> R$ 7.40 | G167: =IFERROR(INDEX(Cálculos!$T$25:$T$39,MATCH(SMALL(Cálculos!$P$25:$P$39,3),Cálculos!$P$25:$P$39,0)),"-") -> Saudável
C168: 4 | D168: =IFERROR(INDEX(Cálculos!$C$25:$C$39,MATCH(SMALL(Cálculos!$P$25:$P$39,4),Cálculos!$P$25:$P$39,0)),"-") -> Camiseta Premium | E168: =IFERROR(SMALL(Cálculos!$P$25:$P$39,4),0) -> 10.13% | F168: =IFERROR(INDEX(Cálculos!$N$25:$N$39,MATCH(SMALL(Cálculos!$P$25:$P$39,4),Cálculos!$P$25:$P$39,0)),0) -> R$ 11.77 | G168: =IFERROR(INDEX(Cálculos!$T$25:$T$39,MATCH(SMALL(Cálculos!$P$25:$P$39,4),Cálculos!$P$25:$P$39,0)),"-") -> Saudável
C169: 5 | D169: =IFERROR(INDEX(Cálculos!$C$25:$C$39,MATCH(SMALL(Cálculos!$P$25:$P$39,5),Cálculos!$P$25:$P$39,0)),"-") -> Garrafa Térmica 1L | E169: =IFERROR(SMALL(Cálculos!$P$25:$P$39,5),0) -> 12.28% | F169: =IFERROR(INDEX(Cálculos!$N$25:$N$39,MATCH(SMALL(Cálculos!$P$25:$P$39,5),Cálculos!$P$25:$P$39,0)),0) -> R$ 17.41 | G169: =IFERROR(INDEX(Cálculos!$T$25:$T$39,MATCH(SMALL(Cálculos!$P$25:$P$39,5),Cálculos!$P$25:$P$39,0)),"-") -> Saudável
C172: R10 — PAINEL CONSOLIDADO: EQUILÍBRIO, MC, ROI, DESCONTOS, CENÁRIOS E TRIBUTOS
C173: Ponto de equilíbrio — quantidade (produtos) | D173: ='Ponto de Equilíbrio'!$D$13 -> 651
C174: Ponto de equilíbrio — faturamento | D174: ='Ponto de Equilíbrio'!$D$14 -> R$ 96,950.32
C175: Margem de segurança (%) | D175: ='Ponto de Equilíbrio'!$D$17 -> 77.44%
C176: Grau de alavancagem operacional | D176: ='Ponto de Equilíbrio'!$D$18 -> 1.45
C177: MC unitária média (produtos) | D177: ='Ponto de Equilíbrio'!$D$11 -> R$ 38.74
C178: MC média (%) | D178: =Cálculos!$D$62 -> 26.29%
C179: Itens com MC classificada como Crítica | D179: =COUNTIF('Margem Contribuição'!$K$8:$K$22,"Crítica") -> 0
C180: ROI médio da carteira de investimentos | D180: =IFERROR(AVERAGE(ROI!$I$8:$I$14),0) -> 162.75%
C181: Melhor ROI | D181: =IFERROR(INDEX(ROI!$C$8:$C$14,MATCH(MAX(ROI!$I$8:$I$14),ROI!$I$8:$I$14,0)),"-") -> Máquina de corte laser
C182: Payback médio (meses) | D182: =IFERROR(AVERAGE(ROI!$K$8:$K$14),0) -> 9.69
C183: Desconto máximo médio sem prejuízo | D183: =IFERROR(AVERAGE(Descontos!$D$27:$D$41),0) -> 25.75%
C184: Itens que já operam com prejuízo no desconto simulado | D184: =COUNTIF(Descontos!$K$8:$K$22,"<0") -> 3
C185: Lucro — cenário Atual | D185: ='Simulador Cenários'!$D$23 -> R$ 66,223.03
C186: Lucro — cenário Otimista | D186: ='Simulador Cenários'!$E$23 -> R$ 154,752.49
C187: Lucro — cenário Pessimista | D187: ='Simulador Cenários'!$F$23 -> (R$ 4,949.84)
C188: Lucro — cenário Personalizado | D188: ='Simulador Cenários'!$G$23 -> R$ 92,301.90
C189: Regime tributário mais vantajoso | D189: ='Simulação Tributária'!$D$21 -> Serviços - Simples
C190: Economia tributária potencial (mês) | D190: ='Simulação Tributária'!$D$22 -> R$ 10,742.54
C191: Economia tributária potencial (ano) | D191: ='Simulação Tributária'!$D$22*12 -> R$ 128,910.48
C192: Perda de margem em 12x (vs. à vista) | D192: =IFERROR(Parcelamentos!$J$15-Parcelamentos!$J$26,0) -> 18.08%
